Workbook

Sheet Main
B10: 2022-03-08
B12: Sheet No. | C12: Template Name | D12: Summary
B13: 1 | C13: Future Intra | D13: For Intraday trading in F&O segment
B14: 2 | C14: Cash Intra | D14: For Intraday trading in cash market segment
B15: 3 | C15: Mid-cap Intra | D15: For Intraday trading in Mid-cap stocks
B16: 4 | C16: Bulk Deals | D16: Reveals Bulk Deals carried on NSE & BSE
B17: 5 | C17: Call Tracker
K27: `

Sheet Future Intra
M5: Back to Main Page
A6: FOR INTRA DAY TRADING | L6: =Main!B10 -> 2022-03-08
A9: Sr.no | B9: Sector | C9: Scrip | D9: Expiry Date | E9: CLOSE RATE | F9: Pivot Point | G9: Supports | J9: Resistances
E10: Point | F10: Point | G10: S1 | H10: S2 | I10: S3 | J10: R1 | K10: R2 | L10: R3 | M10: HIGH | N10: LOW | O10: OI | P10: % Change in OI
A11: 1 | B11: Index | C11: NIFTY | D11: 2022-03-31 | E11: 15872.20 | F11: 15847.15 | G11: 15736.20 | H11: 15600.20 | I11: 15489.25 | J11: 15983.15 | K11: 16094.10 | L11: 16230.10 | M11: 15958.1 | N11: 15711.15 | O11: 16272250 | P11: 0.63%
A12: 2 | B12: Index | C12: BANKNIFTY | D12: 2022-03-31 | E12: 32975.40 | F12: 33034.53 | G12: 32391.07 | H12: 31806.73 | I12: 31163.27 | J12: 33618.87 | K12: 34262.33 | L12: 34846.67 | M12: 33678 | N12: 32450.2 | O12: 4863375 | P12: 11.78%
A13: 3 | B13: Index | C13: FINNIFTY | D13: 2022-03-29 | E13: 15432.85 | F13: 15417.68 | G13: 15274.37 | H13: 15115.88 | I13: 14972.57 | J13: 15576.17 | K13: 15719.48 | L13: 15877.97 | M13: 15561 | N13: 15259.2 | O13: 4720 | P13: 26.88%
A14: 4 | B14: Index | C14: MIDCPNIFTY | D14: 2022-03-29 | E14: 6600.00 | F14: 6564.97 | G14: 6385.18 | H14: 6170.37 | I14: 5990.58 | J14: 6779.78 | K14: 6959.57 | L14: 7174.38 | M14: 6744.75 | N14: 6350.15 | O14: 2100 | P14: 7.69%
A15: 5 | B15: Chemical | C15: AARTIIND | D15: 2022-03-31 | E15: 807.40 | F15: 805.47 | G15: 791.48 | H15: 775.57 | I15: 761.58 | J15: 821.38 | K15: 835.37 | L15: 851.28 | M15: 819.45 | N15: 789.55 | O15: 2512600 | P15: -2.57%
A16: 6 | B16: Capital_Goods | C16: ABB | D16: 2022-03-31 | E16: 2106.10 | F16: 2112.00 | G16: 2074.15 | H16: 2042.20 | I16: 2004.35 | J16: 2143.95 | K16: 2181.80 | L16: 2213.75 | M16: 2149.85 | N16: 2080.05 | O16: 338000 | P16: 0.75%
A17: 7 | B17: Pharma | C17: ABBOTINDIA | D17: 2022-03-31 | E17: 17435.20 | F17: 17335.30 | G17: 17152.55 | H17: 16869.90 | I17: 16687.15 | J17: 17617.95 | K17: 17800.70 | L17: 18083.35 | M17: 17518.05 | N17: 17052.65 | O17: 32175 | P17: -4.95%
A18: 8 | B18: Others | C18: ABCAPITAL | D18: 2022-03-31 | E18: 98.65 | F18: 98.72 | G18: 96.83 | H18: 95.02 | I18: 93.13 | J18: 100.53 | K18: 102.42 | L18: 104.23 | M18: 100.6 | N18: 96.9 | O18: 15989600 | P18: -0.25%
A19: 9 | B19: Textile | C19: ABFRL | D19: 2022-03-31 | E19: 261.50 | F19: 258.90 | G19: 254.25 | H19: 247.00 | I19: 242.35 | J19: 266.15 | K19: 270.80 | L19: 278.05 | M19: 263.55 | N19: 251.65 | O19: 12792000 | P19: -0.73%
A20: 10 | B20: Cement | C20: ACC | D20: 2022-03-31 | E20: 1949.30 | F20: 1940.70 | G20: 1911.55 | H20: 1873.80 | I20: 1844.65 | J20: 1978.45 | K20: 2007.60 | L20: 2045.35 | M20: 1969.85 | N20: 1902.95 | O20: 2217000 | P20: -1.21%
A21: 11 | B21: Others | C21: ADANIENT | D21: 2022-03-31 | E21: 1568.95 | F21: 1568.60 | G21: 1540.50 | H21: 1512.05 | I21: 1483.95 | J21: 1597.05 | K21: 1625.15 | L21: 1653.60 | M21: 1596.7 | N21: 1540.15 | O21: 20684000 | P21: 0.50%
A22: 12 | B22: Others | C22: ADANIPORTS | D22: 2022-03-31 | E22: 677.25 | F22: 677.57 | G22: 663.13 | H22: 649.02 | I22: 634.58 | J22: 691.68 | K22: 706.12 | L22: 720.23 | M22: 692 | N22: 663.45 | O22: 84615000 | P22: 0.27%
A23: 13 | B23: Pharma | C23: ALKEM | D23: 2022-03-31 | E23: 3254.30 | F23: 3206.30 | G23: 3147.50 | H23: 3040.70 | I23: 2981.90 | J23: 3313.10 | K23: 3371.90 | L23: 3478.70 | M23: 3265.1 | N23: 3099.5 | O23: 225000 | P23: -3.85%
A24: 14 | B24: Automobile | C24: AMARAJABAT | D24: 2022-03-31 | E24: 548.75 | F24: 546.52 | G24: 539.48 | H24: 530.22 | I24: 523.18 | J24: 555.78 | K24: 562.82 | L24: 572.08 | M24: 553.55 | N24: 537.25 | O24: 6926000 | P24: -0.55%
A25: 15 | B25: Cement | C25: AMBUJACEM | D25: 2022-03-31 | E25: 276.00 | F25: 276.77 | G25: 270.93 | H25: 265.87 | I25: 260.03 | J25: 281.83 | K25: 287.67 | L25: 292.73 | M25: 282.6 | N25: 271.7 | O25: 26355000 | P25: 2.80%
A26: 16 | B26: Pharma | C26: APLLTD | D26: 2022-03-31 | E26: 713.20 | F26: 709.18 | G26: 701.32 | H26: 689.43 | I26: 681.57 | J26: 721.07 | K26: 728.93 | L26: 740.82 | M26: 717.05 | N26: 697.3 | O26: 1581300 | P26: 0.53%
A27: 17 | B27: Others | C27: APOLLOHOSP | D27: 2022-03-31 | E27: 4677.35 | F27: 4662.43 | G27: 4584.92 | H27: 4492.48 | I27: 4414.97 | J27: 4754.87 | K27: 4832.38 | L27: 4924.82 | M27: 4739.95 | N27: 4570 | O27: 2145125 | P27: -1.11%
A28: 18 | B28: Automobile | C28: APOLLOTYRE | D28: 2022-03-31 | E28: 174.00 | F28: 171.42 | G28: 167.68 | H28: 161.37 | I28: 157.63 | J28: 177.73 | K28: 181.47 | L28: 187.78 | M28: 175.15 | N28: 165.1 | O28: 13465000 | P28: 2.79%
A29: 19 | B29: Automobile | C29: ASHOKLEY | D29: 2022-03-31 | E29: 99.50 | F29: 100.08 | G29: 96.32 | H29: 93.13 | I29: 89.37 | J29: 103.27 | K29: 107.03 | L29: 110.22 | M29: 103.85 | N29: 96.9 | O29: 41368500 | P29: -1.85%
A30: 20 | B30: FMCG | C30: ASIANPAINT | D30: 2022-03-31 | E30: 2711.60 | F30: 2683.10 | G30: 2632.20 | H30: 2552.80 | I30: 2501.90 | J30: 2762.50 | K30: 2813.40 | L30: 2892.80 | M30: 2734 | N30: 2603.7 | O30: 6358650 | P30: 3.38%
A31: 21 | B31: Others | C31: ASTRAL | D31: 2022-03-31 | E31: 1825.90 | F31: 1819.33 | G31: 1788.67 | H31: 1751.43 | I31: 1720.77 | J31: 1856.57 | K31: 1887.23 | L31: 1924.47 | M31: 1850 | N31: 1782.1 | O31: 977350 | P31: -4.54%
A32: 22 | B32: Others | C32: ATUL | D32: 2022-03-31 | E32: 8564.30 | F32: 8475.95 | G32: 8308.70 | H32: 8053.10 | I32: 7885.85 | J32: 8731.55 | K32: 8898.80 | L32: 9154.40 | M32: 8643.2 | N32: 8220.35 | O32: 91725 | P32: 2.09%
A33: 23 | B33: Banking | C33: AUBANK | D33: 2022-03-31 | E33: 1069.30 | F33: 1075.40 | G33: 1048.90 | H33: 1028.50 | I33: 1002.00 | J33: 1095.80 | K33: 1122.30 | L33: 1142.70 | M33: 1101.9 | N33: 1055 | O33: 2861000 | P33: 4.68%
A34: 24 | B34: Pharma | C34: AUROPHARMA | D34: 2022-03-31 | E34: 609.65 | F34: 602.83 | G34: 591.22 | H34: 572.78 | I34: 561.17 | J34: 621.27 | K34: 632.88 | L34: 651.32 | M34: 614.45 | N34: 584.4 | O34: 14375250 | P34: -0.31%
A35: 25 | B35: Banking | C35: AXISBANK | D35: 2022-03-31 | E35: 669.95 | F35: 678.10 | G35: 649.60 | H35: 629.25 | I35: 600.75 | J35: 698.45 | K35: 726.95 | L35: 747.30 | M35: 706.6 | N35: 657.75 | O35: 48417600 | P35: 7.60%
A36: 26 | B36: Automobile | C36: BAJAJ-AUTO | D36: 2022-03-31 | E36: 3214.50 | F36: 3185.30 | G36: 3144.95 | H36: 3075.40 | I36: 3035.05 | J36: 3254.85 | K36: 3295.20 | L36: 3364.75 | M36: 3225.65 | N36: 3115.75 | O36: 1762000 | P36: 0.07%
A37: 27 | B37: Finance | C37: BAJAJFINSV | D37: 2022-03-31 | E37: 14407.95 | F37: 14631.58 | G37: 14062.42 | H37: 13716.88 | I37: 13147.72 | J37: 14977.12 | K37: 15546.28 | L37: 15891.82 | M37: 15200.75 | N37: 14286.05 | O37: 701650 | P37: 5.66%
A38: 28 | B38: Finance | C38: BAJFINANCE | D38: 2022-03-31 | E38: 6144.20 | F38: 6219.17 | G38: 6037.03 | H38: 5929.87 | I38: 5747.73 | J38: 6326.33 | K38: 6508.47 | L38: 6615.63 | M38: 6401.3 | N38: 6112 | O38: 4380375 | P38: -0.09%
A39: 29 | B39: Automobile | C39: BALKRISIND | D39: 2022-03-31 | E39: 1824.85 | F39: 1785.87 | G39: 1733.03 | H39: 1641.22 | I39: 1588.38 | J39: 1877.68 | K39: 1930.52 | L39: 2022.33 | M39: 1838.7 | N39: 1694.05 | O39: 1499400 | P39: -2.67%
A40: 30 | B40: Others | C40: BALRAMCHIN | D40: 2022-03-31 | E40: 444.90 | F40: 434.88 | G40: 419.77 | H40: 394.63 | I40: 379.52 | J40: 460.02 | K40: 475.13 | L40: 500.27 | M40: 450 | N40: 409.75 | O40: 7332800 | P40: 2.34%
A41: 31 | B41: Banking | C41: BANDHANBNK | D41: 2022-03-31 | E41: 254.75 | F41: 257.38 | G41: 248.47 | H41: 242.18 | I41: 233.27 | J41: 263.67 | K41: 272.58 | L41: 278.87 | M41: 266.3 | N41: 251.1 | O41: 24652800 | P41: 2.55%
A42: 32 | B42: Banking | C42: BANKBARODA | D42: 2022-03-31 | E42: 93.15 | F42: 95.98 | G42: 88.42 | H42: 83.68 | I42: 76.12 | J42: 100.72 | K42: 108.28 | L42: 113.02 | M42: 103.55 | N42: 91.25 | O42: 125236800 | P42: 23.05%
A43: 33 | B43: FMCG | C43: BATAINDIA | D43: 2022-03-31 | E43: 1698.75 | F43: 1690.32 | G43: 1662.53 | H43: 1626.32 | I43: 1598.53 | J43: 1726.53 | K43: 1754.32 | L43: 1790.53 | M43: 1718.1 | N43: 1654.1 | O43: 1423950 | P43: -6.84%
A44: 34 | B44: Capital_Goods | C44: BEL | D44: 2022-03-31 | E44: 213.20 | F44: 211.70 | G44: 207.05 | H44: 200.90 | I44: 196.25 | J44: 217.85 | K44: 222.50 | L44: 228.65 | M44: 216.35 | N44: 205.55 | O44: 22287000 | P44: -4.04%
A45: 35 | B45: FMCG | C45: BERGEPAINT | D45: 2022-03-31 | E45: 631.05 | F45: 630.78 | G45: 620.27 | H45: 609.48 | I45: 598.97 | J45: 641.57 | K45: 652.08 | L45: 662.87 | M45: 641.3 | N45: 620 | O45: 5099600 | P45: 3.14%
A46: 36 | B46: Automobile | C46: BHARATFORG | D46: 2022-03-31 | E46: 610.50 | F46: 612.27 | G46: 600.03 | H46: 589.57 | I46: 577.33 | J46: 622.73 | K46: 634.97 | L46: 645.43 | M46: 624.5 | N46: 601.8 | O46: 5883000 | P46: -2.87%
A47: 37 | B47: Telecom | C47: BHARTIARTL | D47: 2022-03-31 | E47: 676.00 | F47: 665.30 | G47: 651.25 | H47: 626.50 | I47: 612.45 | J47: 690.05 | K47: 704.10 | L47: 728.85 | M47: 679.35 | N47: 640.55 | O47: 56937300 | P47: -5.77%
A48: 38 | B48: Capital_Goods | C48: BHEL | D48: 2022-03-31 | E48: 48.85 | F48: 48.47 | G48: 47.73 | H48: 46.62 | I48: 45.88 | J48: 49.58 | K48: 50.32 | L48: 51.43 | M48: 49.2 | N48: 47.35 | O48: 107047500 | P48: -1.10%
A49: 39 | B49: Pharma | C49: BIOCON | D49: 2022-03-31 | E49: 330.45 | F49: 327.28 | G49: 322.67 | H49: 314.88 | I49: 310.27 | J49: 335.07 | K49: 339.68 | L49: 347.47 | M49: 331.9 | N49: 319.5 | O49: 18496600 | P49: -1.17%
A50: 40 | B50: Automobile | C50: BOSCHLTD | D50: 2022-03-31 | E50: 14133.75 | F50: 14150.32 | G50: 13897.33 | H50: 13660.92 | I50: 13407.93 | J50: 14386.73 | K50: 14639.72 | L50: 14876.13 | M50: 14403.3 | N50: 13913.9 | O50: 136650 | P50: -1.12%
A51: 41 | B51: Oil_Gas | C51: BPCL | D51: 2022-03-31 | E51: 337.25 | F51: 336.85 | G51: 330.10 | H51: 322.95 | I51: 316.20 | J51: 344.00 | K51: 350.75 | L51: 357.90 | M51: 343.6 | N51: 329.7 | O51: 25095600 | P51: 4.74%
A52: 42 | B52: FMCG | C52: BRITANNIA | D52: 2022-03-31 | E52: 3157.90 | F52: 3207.13 | G52: 3097.57 | H52: 3037.23 | I52: 2927.67 | J52: 3267.47 | K52: 3377.03 | L52: 3437.37 | M52: 3316.7 | N52: 3146.8 | O52: 1803200 | P52: -3.27%
A53: 43 | B53: Technology | C53: BSOFT | D53: 2022-03-31 | E53: 432.90 | F53: 433.80 | G53: 425.00 | H53: 417.10 | I53: 408.30 | J53: 441.70 | K53: 450.50 | L53: 458.40 | M53: 442.6 | N53: 425.9 | O53: 3445000 | P53: 2.16%
A54: 44 | B54: Banking | C54: CANBK | D54: 2022-03-31 | E54: 201.20 | F54: 202.20 | G54: 195.40 | H54: 189.60 | I54: 182.80 | J54: 208.00 | K54: 214.80 | L54: 220.60 | M54: 209 | N54: 196.4 | O54: 42584400 | P54: 0.37%
A55: 45 | B55: Finance | C55: CANFINHOME | D55: 2022-03-31 | E55: 542.55 | F55: 539.23 | G55: 526.02 | H55: 509.48 | I55: 496.27 | J55: 555.77 | K55: 568.98 | L55: 585.52 | M55: 552.45 | N55: 522.7 | O55: 3205800 | P55: -3.04%
A56: 46 | B56: Others | C56: CHAMBLFERT | D56: 2022-03-31 | E56: 377.85 | F56: 379.28 | G56: 371.82 | H56: 365.78 | I56: 358.32 | J56: 385.32 | K56: 392.78 | L56: 398.82 | M56: 386.75 | N56: 373.25 | O56: 1830000 | P56: 2.26%
A57: 47 | B57: Finance | C57: CHOLAFIN | D57: 2022-03-31 | E57: 610.00 | F57: 618.28 | G57: 589.57 | H57: 569.13 | I57: 540.42 | J57: 638.72 | K57: 667.43 | L57: 687.87 | M57: 647 | N57: 597.85 | O57: 9405000 | P57: -1.38%
A58: 48 | B58: Pharma | C58: CIPLA | D58: 2022-03-31 | E58: 941.45 | F58: 934.58 | G58: 924.17 | H58: 906.88 | I58: 896.47 | J58: 951.87 | K58: 962.28 | L58: 979.57 | M58: 945 | N58: 917.3 | O58: 9336600 | P58: -0.67%
A59: 49 | B59: Others | C59: COALINDIA | D59: 2022-03-31 | E59: 188.00 | F59: 186.67 | G59: 182.63 | H59: 177.27 | I59: 173.23 | J59: 192.03 | K59: 196.07 | L59: 201.43 | M59: 190.7 | N59: 181.3 | O59: 33352200 | P59: 0.56%
A60: 50 | B60: Technology | C60: COFORGE | D60: 2022-03-31 | E60: 4684.45 | F60: 4620.38 | G60: 4521.77 | H60: 4359.08 | I60: 4260.47 | J60: 4783.07 | K60: 4881.68 | L60: 5044.37 | M60: 4719 | N60: 4457.7 | O60: 496500 | P60: -1.92%
A61: 51 | B61: FMCG | C61: COLPAL | D61: 2022-03-31 | E61: 1394.10 | F61: 1394.75 | G61: 1381.10 | H61: 1368.10 | I61: 1354.45 | J61: 1407.75 | K61: 1421.40 | L61: 1434.40 | M61: 1408.4 | N61: 1381.75 | O61: 2151800 | P61: 0.28%
A62: 52 | B62: Others | C62: CONCOR | D62: 2022-03-31 | E62: 575.05 | F62: 573.17 | G62: 565.38 | H62: 555.72 | I62: 547.93 | J62: 582.83 | K62: 590.62 | L62: 600.28 | M62: 580.95 | N62: 563.5 | O62: 5673600 | P62: -0.64%
A63: 53 | B63: Others | C63: COROMANDEL | D63: 2022-03-31 | E63: 750.85 | F63: 748.37 | G63: 741.18 | H63: 731.52 | I63: 724.33 | J63: 758.03 | K63: 765.22 | L63: 774.88 | M63: 755.55 | N63: 738.7 | O63: 866875 | P63: 5.32%
A64: 54 | B64: Capital_Goods | C64: CROMPTON | D64: 2022-03-31 | E64: 377.10 | F64: 378.57 | G64: 372.03 | H64: 366.97 | I64: 360.43 | J64: 383.63 | K64: 390.17 | L64: 395.23 | M64: 385.1 | N64: 373.5 | O64: 4251500 | P64: 1.79%
A65: 55 | B65: Banking | C65: CUB | D65: 2022-03-31 | E65: 110.30 | F65: 111.73 | G65: 107.47 | H65: 104.63 | I65: 100.37 | J65: 114.57 | K65: 118.83 | L65: 121.67 | M65: 116 | N65: 108.9 | O65: 12267200 | P65: -2.41%
A66: 56 | B66: Capital_Goods | C66: CUMMINSIND | D66: 2022-03-31 | E66: 940.05 | F66: 933.53 | G66: 913.57 | H66: 887.08 | I66: 867.12 | J66: 960.02 | K66: 979.98 | L66: 1006.47 | M66: 953.5 | N66: 907.05 | O66: 1280400 | P66: -1.79%
A67: 57 | B67: FMCG | C67: DABUR | D67: 2022-03-31 | E67: 507.70 | F67: 513.18 | G67: 497.87 | H67: 488.03 | I67: 472.72 | J67: 523.02 | K67: 538.33 | L67: 548.17 | M67: 528.5 | N67: 503.35 | O67: 13596250 | P67: 1.66%
A68: 58 | B68: Cement | C68: DALBHARAT | D68: 2022-03-31 | E68: 1334.25 | F68: 1330.27 | G68: 1300.53 | H68: 1266.82 | I68: 1237.08 | J68: 1363.98 | K68: 1393.72 | L68: 1427.43 | M68: 1360 | N68: 1296.55 | O68: 768500 | P68: 1.42%
A69: 59 | B69: Chemical | C69: DEEPAKNTR | D69: 2022-03-31 | E69: 1836.40 | F69: 1842.70 | G69: 1801.75 | H69: 1767.10 | I69: 1726.15 | J69: 1877.35 | K69: 1918.30 | L69: 1952.95 | M69: 1883.65 | N69: 1808.05 | O69: 1928000 | P69: -1.76%
A70: 60 | B70: Others | C70: DELTACORP | D70: 2022-03-31 | E70: 251.60 | F70: 250.27 | G70: 244.98 | H70: 238.37 | I70: 233.08 | J70: 256.88 | K70: 262.17 | L70: 268.78 | M70: 255.55 | N70: 243.65 | O70: 14956900 | P70: 0.40%
A71: 61 | B71: Pharma | C71: DIVISLAB | D71: 2022-03-31 | E71: 4079.80 | F71: 4063.77 | G71: 3998.68 | H71: 3917.57 | I71: 3852.48 | J71: 4144.88 | K71: 4209.97 | L71: 4291.08 | M71: 4128.85 | N71: 3982.65 | O71: 2566300 | P71: -2.29%
A72: 62 | B72: Others | C72: DIXON | D72: 2022-03-31 | E72: 4038.50 | F72: 4006.63 | G72: 3928.07 | H72: 3817.63 | I72: 3739.07 | J72: 4117.07 | K72: 4195.63 | L72: 4306.07 | M72: 4085.2 | N72: 3896.2 | O72: 501750 | P72: 4.67%
A73: 63 | B73: Realty | C73: DLF | D73: 2022-03-31 | E73: 314.35 | F73: 314.77 | G73: 305.13 | H73: 295.92 | I73: 286.28 | J73: 323.98 | K73: 333.62 | L73: 342.83 | M73: 324.4 | N73: 305.55 | O73: 39439950 | P73: -1.55%
A74: 64 | B74: Pharma | C74: DRREDDY | D74: 2022-03-31 | E74: 3769.25 | F74: 3744.15 | G74: 3693.30 | H74: 3617.35 | I74: 3566.50 | J74: 3820.10 | K74: 3870.95 | L74: 3946.90 | M74: 3795 | N74: 3668.2 | O74: 3257375 | P74: -2.81%
A75: 65 | B75: Automobile | C75: EICHERMOT | D75: 2022-03-31 | E75: 2267.85 | F75: 2255.47 | G75: 2210.93 | H75: 2154.02 | I75: 2109.48 | J75: 2312.38 | K75: 2356.92 | L75: 2413.83 | M75: 2300 | N75: 2198.55 | O75: 3275300 | P75: 3.03%
A76: 66 | B76: Automobile | C76: ESCORTS | D76: 2022-03-31 | E76: 1571.50 | F76: 1596.07 | G76: 1533.53 | H76: 1495.57 | I76: 1433.03 | J76: 1634.03 | K76: 1696.57 | L76: 1734.53 | M76: 1658.6 | N76: 1558.1 | O76: 6466350 | P76: 2.45%
A77: 67 | B77: Automobile | C77: EXIDEIND | D77: 2022-03-31 | E77: 141.75 | F77: 141.32 | G77: 139.58 | H77: 137.42 | I77: 135.68 | J77: 143.48 | K77: 145.22 | L77: 147.38 | M77: 143.05 | N77: 139.15 | O77: 22780800 | P77: -2.22%
A78: 68 | B78: Banking | C78: FEDERALBNK | D78: 2022-03-31 | E78: 87.70 | F78: 88.72 | G78: 85.08 | H78: 82.47 | I78: 78.83 | J78: 91.33 | K78: 94.97 | L78: 97.58 | M78: 92.35 | N78: 86.1 | O78: 69260000 | P78: 0.06%
A79: 69 | B79: Technology | C79: FSL | D79: 2022-03-31 | E79: 126.80 | F79: 124.52 | G79: 121.23 | H79: 115.67 | I79: 112.38 | J79: 130.08 | K79: 133.37 | L79: 138.93 | M79: 127.8 | N79: 118.95 | O79: 15087800 | P79: -0.26%
A80: 70 | B80: Oil_Gas | C80: GAIL | D80: 2022-03-31 | E80: 158.10 | F80: 156.60 | G80: 152.25 | H80: 146.40 | I80: 142.05 | J80: 162.45 | K80: 166.80 | L80: 172.65 | M80: 160.95 | N80: 150.75 | O80: 24253600 | P80: -4.08%
A81: 71 | B81: Pharma | C81: GLENMARK | D81: 2022-03-31 | E81: 436.35 | F81: 430.13 | G81: 422.07 | H81: 407.78 | I81: 399.72 | J81: 444.42 | K81: 452.48 | L81: 466.77 | M81: 438.2 | N81: 415.85 | O81: 7383000 | P81: -0.65%
A82: 72 | B82: Infrastructure | C82: GMRINFRA | D82: 2022-03-31 | E82: 36.40 | F82: 36.38 | G82: 35.87 | H82: 35.33 | I82: 34.82 | J82: 36.92 | K82: 37.43 | L82: 37.97 | M82: 36.9 | N82: 35.85 | O82: 101542500 | P82: -0.22%
A83: 73 | B83: Others | C83: GNFC | D83: 2022-03-31 | E83: 609.40 | F83: 598.87 | G83: 581.53 | H83: 553.67 | I83: 536.33 | J83: 626.73 | K83: 644.07 | L83: 671.93 | M83: 616.2 | N83: 571 | O83: 2537600 | P83: -7.53%
A84: 74 | B84: FMCG | C84: GODREJCP | D84: 2022-03-31 | E84: 666.30 | F84: 677.57 | G84: 649.48 | H84: 632.67 | I84: 604.58 | J84: 694.38 | K84: 722.47 | L84: 739.28 | M84: 705.65 | N84: 660.75 | O84: 7885500 | P84: 3.07%
A85: 75 | B85: Realty | C85: GODREJPROP | D85: 2022-03-31 | E85: 1377.80 | F85: 1388.50 | G85: 1338.40 | H85: 1299.00 | I85: 1248.90 | J85: 1427.90 | K85: 1478.00 | L85: 1517.40 | M85: 1438.6 | N85: 1349.1 | O85: 5042050 | P85: -0.79%
A86: 76 | B86: Pharma | C86: GRANULES | D86: 2022-03-31 | E86: 287.10 | F86: 284.97 | G86: 280.23 | H86: 273.37 | I86: 268.63 | J86: 291.83 | K86: 296.57 | L86: 303.43 | M86: 289.7 | N86: 278.1 | O86: 11268500 | P86: -0.38%
A87: 77 | B87: Cement | C87: GRASIM | D87: 2022-03-31 | E87: 1446.50 | F87: 1448.57 | G87: 1423.33 | H87: 1400.17 | I87: 1374.93 | J87: 1471.73 | K87: 1496.97 | L87: 1520.13 | M87: 1473.8 | N87: 1425.4 | O87: 10894600 | P87: -0.65%
A88: 78 | B88: Oil_Gas | C88: GSPL | D88: 2022-03-31 | E88: 265.60 | F88: 267.68 | G88: 260.47 | H88: 255.33 | I88: 248.12 | J88: 272.82 | K88: 280.03 | L88: 285.17 | M88: 274.9 | N88: 262.55 | O88: 1252900 | P88: -0.67%
A89: 79 | B89: Oil_Gas | C89: GUJGASLTD | D89: 2022-03-31 | E89: 498.55 | F89: 499.07 | G89: 484.53 | H89: 470.52 | I89: 455.98 | J89: 513.08 | K89: 527.62 | L89: 541.63 | M89: 513.6 | N89: 485.05 | O89: 3035000 | P89: 2.53%
A90: 80 | B90: Others | C90: HAL | D90: 2022-03-31 | E90: 1327.70 | F90: 1330.88 | G90: 1298.17 | H90: 1268.63 | I90: 1235.92 | J90: 1360.42 | K90: 1393.13 | L90: 1422.67 | M90: 1363.6 | N90: 1301.35 | O90: 1925175 | P90: 1.45%
A91: 81 | B91: Capital_Goods | C91: HAVELLS | D91: 2022-03-31 | E91: 1072.85 | F91: 1063.67 | G91: 1048.33 | H91: 1023.82 | I91: 1008.48 | J91: 1088.18 | K91: 1103.52 | L91: 1128.03 | M91: 1079 | N91: 1039.15 | O91: 5113000 | P91: 0.79%
A92: 82 | B92: Technology | C92: HCLTECH | D92: 2022-03-31 | E92: 1157.90 | F92: 1145.33 | G92: 1125.77 | H92: 1093.63 | I92: 1074.07 | J92: 1177.47 | K92: 1197.03 | L92: 1229.17 | M92: 1164.9 | N92: 1113.2 | O92: 21277900 | P92: 0.96%
A93: 83 | B93: Finance | C93: HDFC | D93: 2022-03-31 | E93: 2129.70 | F93: 2131.38 | G93: 2103.42 | H93: 2077.13 | I93: 2049.17 | J93: 2157.67 | K93: 2185.63 | L93: 2211.92 | M93: 2159.35 | N93: 2105.1 | O93: 26690700 | P93: 3.78%
A94: 84 | B94: Finance | C94: HDFCAMC | D94: 2022-03-31 | E94: 2029.85 | F94: 2023.82 | G94: 1987.88 | H94: 1945.92 | I94: 1909.98 | J94: 2065.78 | K94: 2101.72 | L94: 2143.68 | M94: 2059.75 | N94: 1981.85 | O94: 2639000 | P94: -1.53%
A95: 85 | B95: Banking | C95: HDFCBANK | D95: 2022-03-31 | E95: 1322.80 | F95: 1316.63 | G95: 1305.02 | H95: 1287.23 | I95: 1275.62 | J95: 1334.42 | K95: 1346.03 | L95: 1363.82 | M95: 1328.25 | N95: 1298.85 | O95: 38061650 | P95: 3.26%
A96: 86 | B96: Finance | C96: HDFCLIFE | D96: 2022-03-31 | E96: 505.00 | F96: 508.28 | G96: 496.27 | H96: 487.53 | I96: 475.52 | J96: 517.02 | K96: 529.03 | L96: 537.77 | M96: 520.3 | N96: 499.55 | O96: 31071700 | P96: 1.33%
A97: 87 | B97: Automobile | C97: HEROMOTOCO | D97: 2022-03-31 | E97: 2202.50 | F97: 2218.08 | G97: 2161.22 | H97: 2119.93 | I97: 2063.07 | J97: 2259.37 | K97: 2316.23 | L97: 2357.52 | M97: 2274.95 | N97: 2176.8 | O97: 3463500 | P97: -1.32%
A98: 88 | B98: Metals | C98: HINDALCO | D98: 2022-03-31 | E98: 618.20 | F98: 609.22 | G98: 596.98 | H98: 575.77 | I98: 563.53 | J98: 630.43 | K98: 642.67 | L98: 663.88 | M98: 621.45 | N98: 588 | O98: 35846950 | P98: -1.73%
A99: 89 | B99: Metals | C99: HINDCOPPER | D99: 2022-03-31 | E99: 125.00 | F99: 123.48 | G99: 120.52 | H99: 116.03 | I99: 113.07 | J99: 127.97 | K99: 130.93 | L99: 135.42 | M99: 126.45 | N99: 119 | O99: 15222000 | P99: 1.20%
A100: 90 | B100: Oil_Gas | C100: HINDPETRO | D100: 2022-03-31 | E100: 275.85 | F100: 274.55 | G100: 270.80 | H100: 265.75 | I100: 262.00 | J100: 279.60 | K100: 283.35 | L100: 288.40 | M100: 278.3 | N100: 269.5 | O100: 12152700 | P100: 2.86%
A101: 91 | B101: FMCG | C101: HINDUNILVR | D101: 2022-03-31 | E101: 1947.15 | F101: 1952.95 | G101: 1922.20 | H101: 1897.25 | I101: 1866.50 | J101: 1977.90 | K101: 2008.65 | L101: 2033.60 | M101: 1983.7 | N101: 1928 | O101: 13488900 | P101: 0.86%
A102: 92 | B102: Others | C102: HONAUT | D102: 2022-03-31 | E102: 39153.75 | F102: 39020.47 | G102: 37873.13 | H102: 36592.52 | I102: 35445.18 | J102: 40301.08 | K102: 41448.42 | L102: 42729.03 | M102: 40167.8 | N102: 37739.85 | O102: 8445 | P102: 4.45%
A103: 93 | B103: Finance | C103: IBULHSGFIN | D103: 2022-03-31 | E103: 136.25 | F103: 137.38 | G103: 132.37 | H103: 128.48 | I103: 123.47 | J103: 141.27 | K103: 146.28 | L103: 150.17 | M103: 142.4 | N103: 133.5 | O103: 36679200 | P103: 1.71%
A104: 94 | B104: Banking | C104: ICICIBANK | D104: 2022-03-31 | E104: 655.10 | F104: 655.30 | G104: 643.70 | H104: 632.30 | I104: 620.70 | J104: 666.70 | K104: 678.30 | L104: 689.70 | M104: 666.9 | N104: 643.9 | O104: 123935625 | P104: 2.47%
A105: 95 | B105: Finance | C105: ICICIGI | D105: 2022-03-31 | E105: 1208.60 | F105: 1208.87 | G105: 1191.83 | H105: 1175.07 | I105: 1158.03 | J105: 1225.63 | K105: 1242.67 | L105: 1259.43 | M105: 1225.9 | N105: 1192.1 | O105: 3467575 | P105: -8.28%
A106: 96 | B106: Finance | C106: ICICIPRULI | D106: 2022-03-31 | E106: 446.80 | F106: 445.48 | G106: 436.97 | H106: 427.13 | I106: 418.62 | J106: 455.32 | K106: 463.83 | L106: 473.67 | M106: 454 | N106: 435.65 | O106: 8377500 | P106: 0.22%
A107: 97 | B107: Telecom | C107: IDEA | D107: 2022-03-31 | E107: 9.55 | F107: 9.70 | G107: 9.20 | H107: 8.85 | I107: 8.35 | J107: 10.05 | K107: 10.55 | L107: 10.90 | M107: 10.2 | N107: 9.35 | O107: 826420000 | P107: -0.83%
A108: 98 | B108: Finance | C108: IDFC | D108: 2022-03-31 | E108: 53.40 | F108: 53.43 | G108: 52.22 | H108: 51.03 | I108: 49.82 | J108: 54.62 | K108: 55.83 | L108: 57.02 | M108: 54.65 | N108: 52.25 | O108: 86440000 | P108: 1.51%
A109: 99 | B109: Banking | C109: IDFCFIRSTB | D109: 2022-03-31 | E109: 40.10 | F109: 39.75 | G109: 39.25 | H109: 38.40 | I109: 37.90 | J109: 40.60 | K109: 41.10 | L109: 41.95 | M109: 40.25 | N109: 38.9 | O109: 149949900 | P109: 1.09%
A110: 100 | B110: Others | C110: IEX | D110: 2022-03-31 | E110: 208.00 | F110: 206.22 | G110: 203.18 | H110: 198.37 | I110: 195.33 | J110: 211.03 | K110: 214.07 | L110: 218.88 | M110: 209.25 | N110: 201.4 | O110: 43556250 | P110: -1.81%
A111: 101 | B111: Oil_Gas | C111: IGL | D111: 2022-03-31 | E111: 337.60 | F111: 334.37 | G111: 325.23 | H111: 312.87 | I111: 303.73 | J111: 346.73 | K111: 355.87 | L111: 368.23 | M111: 343.5 | N111: 322 | O111: 18903500 | P111: -0.76%
A112: 102 | B112: Infrastructure | C112: INDHOTEL | D112: 2022-03-31 | E112: 189.65 | F112: 187.48 | G112: 183.07 | H112: 176.48 | I112: 172.07 | J112: 194.07 | K112: 198.48 | L112: 205.07 | M112: 191.9 | N112: 180.9 | O112: 17741042 | P112: -8.07%
A113: 103 | B113: Cement | C113: INDIACEM | D113: 2022-03-31 | E113: 184.95 | F113: 185.25 | G113: 181.30 | H113: 177.65 | I113: 173.70 | J113: 188.90 | K113: 192.85 | L113: 196.50 | M113: 189.2 | N113: 181.6 | O113: 13058700 | P113: -0.55%
A114: 104 | B114: Others | C114: INDIAMART | D114: 2022-03-31 | E114: 4004.95 | F114: 4064.27 | G114: 3914.78 | H114: 3824.62 | I114: 3675.13 | J114: 4154.43 | K114: 4303.92 | L114: 4394.08 | M114: 4213.75 | N114: 3974.1 | O114: 350325 | P114: 0.34%
A115: 105 | B115: Others | C115: INDIGO | D115: 2022-03-31 | E115: 1616.35 | F115: 1622.98 | G115: 1585.77 | H115: 1555.18 | I115: 1517.97 | J115: 1653.57 | K115: 1690.78 | L115: 1721.37 | M115: 1660.2 | N115: 1592.4 | O115: 3737250 | P115: -4.60%
A116: 106 | B116: Banking | C116: INDUSINDBK | D116: 2022-03-31 | E116: 837.45 | F116: 853.68 | G116: 809.77 | H116: 782.08 | I116: 738.17 | J116: 881.37 | K116: 925.28 | L116: 952.97 | M116: 897.6 | N116: 826 | O116: 27009900 | P116: 4.27%
A117: 107 | B117: Telecom | C117: INDUSTOWER | D117: 2022-03-31 | E117: 198.80 | F117: 200.93 | G117: 194.97 | H117: 191.13 | I117: 185.17 | J117: 204.77 | K117: 210.73 | L117: 214.57 | M117: 206.9 | N117: 197.1 | O117: 24315200 | P117: 2.73%
A118: 108 | B118: Technology | C118: INFY | D118: 2022-03-31 | E118: 1739.60 | F118: 1730.57 | G118: 1709.13 | H118: 1678.67 | I118: 1657.23 | J118: 1761.03 | K118: 1782.47 | L118: 1812.93 | M118: 1752 | N118: 1700.1 | O118: 37527300 | P118: -3.65%
A119: 109 | B119: Technology | C119: INTELLECT | D119: 2022-03-31 | E119: 681.60 | F119: 674.78 | G119: 661.82 | H119: 642.03 | I119: 629.07 | J119: 694.57 | K119: 707.53 | L119: 727.32 | M119: 687.75 | N119: 655 | O119: 588750 | P119: -1.01%
A120: 110 | B120: Oil_Gas | C120: IOC | D120: 2022-03-31 | E120: 111.90 | F120: 111.47 | G120: 110.23 | H120: 108.57 | I120: 107.33 | J120: 113.13 | K120: 114.37 | L120: 116.03 | M120: 112.7 | N120: 109.8 | O120: 38376000 | P120: 4.51%
A121: 111 | B121: Pharma | C121: IPCALAB | D121: 2022-03-31 | E121: 970.00 | F121: 958.63 | G121: 942.27 | H121: 914.53 | I121: 898.17 | J121: 986.37 | K121: 1002.73 | L121: 1030.47 | M121: 975 | N121: 930.9 | O121: 865800 | P121: -1.08%
A122: 112 | B122: Others | C122: IRCTC | D122: 2022-03-31 | E122: 679.35 | F122: 694.08 | G122: 658.27 | H122: 637.18 | I122: 601.37 | J122: 715.17 | K122: 750.98 | L122: 772.07 | M122: 729.9 | N122: 673 | O122: 14759500 | P122: 10.62%
A123: 113 | B123: FMCG | C123: ITC | D123: 2022-03-31 | E123: 224.80 | F123: 224.12 | G123: 221.48 | H123: 218.17 | I123: 215.53 | J123: 227.43 | K123: 230.07 | L123: 233.38 | M123: 226.75 | N123: 220.8 | O123: 131056000 | P123: -7.06%
A124: 114 | B124: Metals | C124: JINDALSTEL | D124: 2022-03-31 | E124: 439.30 | F124: 437.75 | G124: 429.65 | H124: 420.00 | I124: 411.90 | J124: 447.40 | K124: 455.50 | L124: 465.15 | M124: 445.85 | N124: 428.1 | O124: 32825000 | P124: -0.73%
A125: 115 | B125: Cement | C125: JKCEMENT | D125: 2022-03-31 | E125: 2335.55 | F125: 2393.52 | G125: 2247.03 | H125: 2158.52 | I125: 2012.03 | J125: 2482.03 | K125: 2628.52 | L125: 2717.03 | M125: 2540 | N125: 2305 | O125: 312200 | P125: 10.67%
A126: 116 | B126: Metals | C126: JSWSTEEL | D126: 2022-03-31 | E126: 636.90 | F126: 633.90 | G126: 625.05 | H126: 613.20 | I126: 604.35 | J126: 645.75 | K126: 654.60 | L126: 666.45 | M126: 642.75 | N126: 622.05 | O126: 35525250 | P126: -0.25%
A127: 117 | B127: Others | C127: JUBLFOOD | D127: 2022-03-31 | E127: 2562.35 | F127: 2540.13 | G127: 2503.32 | H127: 2444.28 | I127: 2407.47 | J127: 2599.17 | K127: 2635.98 | L127: 2695.02 | M127: 2576.95 | N127: 2481.1 | O127: 2834000 | P127: 4.59%
A128: 118 | B128: Banking | C128: KOTAKBANK | D128: 2022-03-31 | E128: 1712.20 | F128: 1707.98 | G128: 1685.97 | H128: 1659.73 | I128: 1637.72 | J128: 1734.22 | K128: 1756.23 | L128: 1782.47 | M128: 1730 | N128: 1681.75 | O128: 15376800 | P128: 4.52%
A129: 119 | B129: Finance | C129: L&TFH | D129: 2022-03-31 | E129: 59.40 | F129: 59.42 | G129: 58.38 | H129: 57.37 | I129: 56.33 | J129: 60.43 | K129: 61.47 | L129: 62.48 | M129: 60.45 | N129: 58.4 | O129: 69812452 | P129: -0.82%
A130: 120 | B130: Others | C130: LALPATHLAB | D130: 2022-03-31 | E130: 2335.05 | F130: 2302.93 | G130: 2255.87 | H130: 2176.68 | I130: 2129.62 | J130: 2382.12 | K130: 2429.18 | L130: 2508.37 | M130: 2350 | N130: 2223.75 | O130: 882875 | P130: 0.41%
A131: 121 | B131: Pharma | C131: LAURUSLABS | D131: 2022-03-31 | E131: 529.90 | F131: 529.02 | G131: 524.53 | H131: 519.17 | I131: 514.68 | J131: 534.38 | K131: 538.87 | L131: 544.23 | M131: 533.5 | N131: 523.65 | O131: 5480100 | P131: 1.01%
A132: 122 | B132: Finance | C132: LICHSGFIN | D132: 2022-03-31 | E132: 331.45 | F132: 330.75 | G132: 321.50 | H132: 311.55 | I132: 302.30 | J132: 340.70 | K132: 349.95 | L132: 359.90 | M132: 340 | N132: 320.8 | O132: 19842000 | P132: -2.19%
A133: 123 | B133: Capital_Goods | C133: LT | D133: 2022-03-31 | E133: 1638.95 | F133: 1645.30 | G133: 1604.95 | H133: 1570.95 | I133: 1530.60 | J133: 1679.30 | K133: 1719.65 | L133: 1753.65 | M133: 1685.65 | N133: 1611.3 | O133: 15355950 | P133: 8.82%
A134: 124 | B134: Technology | C134: LTI | D134: 2022-03-31 | E134: 6222.50 | F134: 6144.75 | G134: 6040.00 | H134: 5857.50 | I134: 5752.75 | J134: 6327.25 | K134: 6432.00 | L134: 6614.50 | M134: 6249.5 | N134: 5962.25 | O134: 932700 | P134: -2.93%
A135: 125 | B135: Technology | C135: LTTS | D135: 2022-03-31 | E135: 4612.50 | F135: 4590.32 | G135: 4526.68 | H135: 4440.87 | I135: 4377.23 | J135: 4676.13 | K135: 4739.77 | L135: 4825.58 | M135: 4653.95 | N135: 4504.5 | O135: 613600 | P135: -3.70%
A136: 126 | B136: Pharma | C136: LUPIN | D136: 2022-03-31 | E136: 703.25 | F136: 696.33 | G136: 687.27 | H136: 671.28 | I136: 662.22 | J136: 712.32 | K136: 721.38 | L136: 737.37 | M136: 705.4 | N136: 680.35 | O136: 9241200 | P136: -0.65%
A137: 127 | B137: Automobile | C137: M&M | D137: 2022-03-31 | E137: 692.40 | F137: 698.00 | G137: 678.40 | H137: 664.40 | I137: 644.80 | J137: 712.00 | K137: 731.60 | L137: 745.60 | M137: 717.6 | N137: 684 | O137: 15932700 | P137: -2.55%
A138: 128 | B138: Finance | C138: M&MFIN | D138: 2022-03-31 | E138: 130.90 | F138: 131.37 | G138: 126.73 | H138: 122.57 | I138: 117.93 | J138: 135.53 | K138: 140.17 | L138: 144.33 | M138: 136 | N138: 127.2 | O138: 34764000 | P138: 0.15%
A139: 129 | B139: Finance | C139: MANAPPURAM | D139: 2022-03-31 | E139: 114.90 | F139: 113.80 | G139: 112.25 | H139: 109.60 | I139: 108.05 | J139: 116.45 | K139: 118.00 | L139: 120.65 | M139: 115.35 | N139: 111.15 | O139: 24600000 | P139: -2.67%
A140: 130 | B140: FMCG | C140: MARICO | D140: 2022-03-31 | E140: 483.05 | F140: 485.37 | G140: 475.73 | H140: 468.42 | I140: 458.78 | J140: 492.68 | K140: 502.32 | L140: 509.63 | M140: 495 | N140: 478.05 | O140: 9090000 | P140: -0.89%
A141: 131 | B141: Automobile | C141: MARUTI | D141: 2022-03-31 | E141: 6791.90 | F141: 6854.33 | G141: 6683.67 | H141: 6575.43 | I141: 6404.77 | J141: 6962.57 | K141: 7133.23 | L141: 7241.47 | M141: 7025 | N141: 6746.1 | O141: 3223500 | P141: 6.17%
A142: 132 | B142: FMCG | C142: MCDOWELL-N | D142: 2022-03-31 | E142: 777.10 | F142: 785.77 | G142: 759.23 | H142: 741.37 | I142: 714.83 | J142: 803.63 | K142: 830.17 | L142: 848.03 | M142: 812.3 | N142: 767.9 | O142: 13163750 | P142: -0.59%
A143: 133 | B143: Others | C143: MCX | D143: 2022-03-31 | E143: 1259.70 | F143: 1260.70 | G143: 1226.70 | H143: 1193.70 | I143: 1159.70 | J143: 1293.70 | K143: 1327.70 | L143: 1360.70 | M143: 1294.7 | N143: 1227.7 | O143: 1694350 | P143: 1.59%
A144: 134 | B144: Pharma | C144: METROPOLIS | D144: 2022-03-31 | E144: 1872.00 | F144: 1849.83 | G144: 1803.67 | H144: 1735.33 | I144: 1689.17 | J144: 1918.17 | K144: 1964.33 | L144: 2032.67 | M144: 1896 | N144: 1781.5 | O144: 758600 | P144: -3.14%
A145: 135 | B145: Finance | C145: MFSL | D145: 2022-03-31 | E145: 771.45 | F145: 771.67 | G145: 749.78 | H145: 728.12 | I145: 706.23 | J145: 793.33 | K145: 815.22 | L145: 836.88 | M145: 793.55 | N145: 750 | O145: 1496950 | P145: -2.66%
A146: 136 | B146: Oil_Gas | C146: MGL | D146: 2022-03-31 | E146: 713.65 | F146: 712.77 | G146: 695.33 | H146: 677.02 | I146: 659.58 | J146: 731.08 | K146: 748.52 | L146: 766.83 | M146: 730.2 | N146: 694.45 | O146: 3822000 | P146: -3.19%
A147: 137 | B147: Technology | C147: MINDTREE | D147: 2022-03-31 | E147: 3870.65 | F147: 3849.03 | G147: 3802.62 | H147: 3734.58 | I147: 3688.17 | J147: 3917.07 | K147: 3963.48 | L147: 4031.52 | M147: 3895.45 | N147: 3781 | O147: 2781400 | P147: 0.22%
A148: 138 | B148: Automobile | C148: MOTHERSUMI | D148: 2022-03-31 | E148: 128.65 | F148: 129.13 | G148: 124.32 | H148: 119.98 | I148: 115.17 | J148: 133.47 | K148: 138.28 | L148: 142.62 | M148: 133.95 | N148: 124.8 | O148: 26887000 | P148: 10.09%
A149: 139 | B149: Technology | C149: MPHASIS | D149: 2022-03-31 | E149: 3136.65 | F149: 3146.02 | G149: 3093.13 | H149: 3049.62 | I149: 2996.73 | J149: 3189.53 | K149: 3242.42 | L149: 3285.93 | M149: 3198.9 | N149: 3102.5 | O149: 1611225 | P149: -0.50%
A150: 140 | B150: Automobile | C150: MRF | D150: 2022-03-31 | E150: 65543.00 | F150: 64832.57 | G150: 63739.13 | H150: 61935.27 | I150: 60841.83 | J150: 66636.43 | K150: 67729.87 | L150: 69533.73 | M150: 65926 | N150: 63028.7 | O150: 85500 | P150: 6.70%
A151: 141 | B151: Finance | C151: MUTHOOTFIN | D151: 2022-03-31 | E151: 1348.95 | F151: 1347.55 | G151: 1333.35 | H151: 1317.75 | I151: 1303.55 | J151: 1363.15 | K151: 1377.35 | L151: 1392.95 | M151: 1361.75 | N151: 1331.95 | O151: 3173250 | P151: -0.53%
A152: 142 | B152: Others | C152: NAM-INDIA | D152: 2022-03-31 | E152: 288.30 | F152: 287.32 | G152: 282.53 | H152: 276.77 | I152: 271.98 | J152: 293.08 | K152: 297.87 | L152: 303.63 | M152: 292.1 | N152: 281.55 | O152: 2748800 | P152: 0.82%
A153: 143 | B153: Metals | C153: NATIONALUM | D153: 2022-03-31 | E153: 127.30 | F153: 125.83 | G153: 123.42 | H153: 119.53 | I153: 117.12 | J153: 129.72 | K153: 132.13 | L153: 136.02 | M153: 128.25 | N153: 121.95 | O153: 85365500 | P153: -0.58%
A154: 144 | B154: Others | C154: NAUKRI | D154: 2022-03-31 | E154: 4297.00 | F154: 4276.00 | G154: 4206.00 | H154: 4115.00 | I154: 4045.00 | J154: 4367.00 | K154: 4437.00 | L154: 4528.00 | M154: 4346 | N154: 4185 | O154: 1650875 | P154: 1.12%
A155: 145 | B155: Chemical | C155: NAVINFLUOR | D155: 2022-03-31 | E155: 3558.35 | F155: 3537.18 | G155: 3432.37 | H155: 3306.38 | I155: 3201.57 | J155: 3663.17 | K155: 3767.98 | L155: 3893.97 | M155: 3642 | N155: 3411.2 | O155: 403650 | P155: -8.19%
A156: 146 | B156: Others | C156: NBCC | D156: 2022-03-31 | E156: 36.50 | F156: 36.48 | G156: 35.77 | H156: 35.03 | I156: 34.32 | J156: 37.22 | K156: 37.93 | L156: 38.67 | M156: 37.2 | N156: 35.75 | O156: 23808000 | P156: 0.46%
A157: 147 | B157: FMCG | C157: NESTLEIND | D157: 2022-03-31 | E157: 17327.75 | F157: 17251.68 | G157: 17110.47 | H157: 16893.18 | I157: 16751.97 | J157: 17468.97 | K157: 17610.18 | L157: 17827.47 | M157: 17392.9 | N157: 17034.4 | O157: 382925 | P157: -1.17%
A158: 148 | B158: Metals | C158: NMDC | D158: 2022-03-31 | E158: 153.45 | F158: 151.55 | G158: 148.80 | H158: 144.15 | I158: 141.40 | J158: 156.20 | K158: 158.95 | L158: 163.60 | M158: 154.3 | N158: 146.9 | O158: 72400200 | P158: 1.70%
A159: 149 | B159: Power | C159: NTPC | D159: 2022-03-31 | E159: 129.45 | F159: 128.73 | G159: 127.72 | H159: 125.98 | I159: 124.97 | J159: 130.47 | K159: 131.48 | L159: 133.22 | M159: 129.75 | N159: 127 | O159: 46073100 | P159: 0.90%
A160: 150 | B160: Realty | C160: OBEROIRLTY | D160: 2022-03-31 | E160: 797.20 | F160: 802.73 | G160: 775.97 | H160: 754.73 | I160: 727.97 | J160: 823.97 | K160: 850.73 | L160: 871.97 | M160: 829.5 | N160: 781.5 | O160: 1981000 | P160: -2.31%
A161: 151 | B161: Technology | C161: OFSS | D161: 2022-03-31 | E161: 3353.80 | F161: 3335.02 | G161: 3290.38 | H161: 3226.97 | I161: 3182.33 | J161: 3398.43 | K161: 3443.07 | L161: 3506.48 | M161: 3379.65 | N161: 3271.6 | O161: 609000 | P161: -2.13%
A162: 152 | B162: Oil_Gas | C162: ONGC | D162: 2022-03-31 | E162: 182.60 | F162: 177.62 | G162: 170.03 | H162: 157.47 | I162: 149.88 | J162: 190.18 | K162: 197.77 | L162: 210.33 | M162: 185.2 | N162: 165.05 | O162: 38161200 | P162: 36.38%
A163: 153 | B163: Textile | C163: PAGEIND | D163: 2022-03-31 | E163: 39989.95 | F163: 39959.28 | G163: 39599.67 | H163: 39209.38 | I163: 38849.77 | J163: 40349.57 | K163: 40709.18 | L163: 41099.47 | M163: 40318.9 | N163: 39569 | O163: 98940 | P163: -0.51%
A164: 154 | B164: Pharma | C164: PEL | D164: 2022-03-31 | E164: 1893.05 | F164: 1919.47 | G164: 1839.18 | H164: 1785.32 | I164: 1705.03 | J164: 1973.33 | K164: 2053.62 | L164: 2107.48 | M164: 1999.75 | N164: 1865.6 | O164: 4694250 | P164: -0.48%
A165: 155 | B165: Technology | C165: PERSISTENT | D165: 2022-03-31 | E165: 4146.30 | F165: 4098.13 | G165: 4008.27 | H165: 3870.23 | I165: 3780.37 | J165: 4236.17 | K165: 4326.03 | L165: 4464.07 | M165: 4188 | N165: 3960.1 | O165: 493350 | P165: -1.20%
A166: 156 | B166: Oil_Gas | C166: PETRONET | D166: 2022-03-31 | E166: 218.25 | F166: 216.62 | G166: 213.78 | H166: 209.32 | I166: 206.48 | J166: 221.08 | K166: 223.92 | L166: 228.38 | M166: 219.45 | N166: 212.15 | O166: 16728000 | P166: -0.55%
A167: 157 | B167: Finance | C167: PFC | D167: 2022-03-31 | E167: 106.15 | F167: 106.08 | G167: 104.37 | H167: 102.58 | I167: 100.87 | J167: 107.87 | K167: 109.58 | L167: 111.37 | M167: 107.8 | N167: 104.3 | O167: 40318600 | P167: 0.88%
A168: 158 | B168: Pharma | C168: PFIZER | D168: 2022-03-31 | E168: 4283.25 | F168: 4293.08 | G168: 4215.62 | H168: 4147.98 | I168: 4070.52 | J168: 4360.72 | K168: 4438.18 | L168: 4505.82 | M168: 4370.55 | N168: 4225.45 | O168: 106000 | P168: -2.42%
A169: 159 | B169: FMCG | C169: PIDILITIND | D169: 2022-03-31 | E169: 2168.95 | F169: 2174.65 | G169: 2142.30 | H169: 2115.65 | I169: 2083.30 | J169: 2201.30 | K169: 2233.65 | L169: 2260.30 | M169: 2207 | N169: 2148 | O169: 3263250 | P169: 7.94%
A170: 160 | B170: Chemical | C170: PIIND | D170: 2022-03-31 | E170: 2413.70 | F170: 2397.60 | G170: 2362.20 | H170: 2310.70 | I170: 2275.30 | J170: 2449.10 | K170: 2484.50 | L170: 2536.00 | M170: 2433 | N170: 2346.1 | O170: 1880000 | P170: -0.86%
A171: 161 | B171: Banking | C171: PNB | D171: 2022-03-31 | E171: 34.35 | F171: 34.20 | G171: 33.55 | H171: 32.75 | I171: 32.10 | J171: 35.00 | K171: 35.65 | L171: 36.45 | M171: 34.85 | N171: 33.4 | O171: 184432000 | P171: 2.51%
A172: 162 | B172: Others | C172: POLYCAB | D172: 2022-03-31 | E172: 2182.95 | F172: 2182.98 | G172: 2115.97 | H172: 2048.98 | I172: 1981.97 | J172: 2249.97 | K172: 2316.98 | L172: 2383.97 | M172: 2250 | N172: 2116 | O172: 799500 | P172: 4.39%
A173: 163 | B173: Power | C173: POWERGRID | D173: 2022-03-31 | E173: 212.90 | F173: 212.17 | G173: 209.78 | H173: 206.67 | I173: 204.28 | J173: 215.28 | K173: 217.67 | L173: 220.78 | M173: 214.55 | N173: 209.05 | O173: 27950253 | P173: -1.02%
A174: 164 | B174: Media | C174: PVR | D174: 2022-03-31 | E174: 1503.95 | F174: 1515.97 | G174: 1478.88 | H174: 1453.82 | I174: 1416.73 | J174: 1541.03 | K174: 1578.12 | L174: 1603.18 | M174: 1553.05 | N174: 1490.9 | O174: 3137563 | P174: -0.13%
A175: 165 | B175: Others | C175: RAIN | D175: 2022-03-31 | E175: 169.40 | F175: 168.63 | G175: 164.27 | H175: 159.13 | I175: 154.77 | J175: 173.77 | K175: 178.13 | L175: 183.27 | M175: 173 | N175: 163.5 | O175: 6965000 | P175: 1.86%
A176: 166 | B176: Cement | C176: RAMCOCEM | D176: 2022-03-31 | E176: 700.10 | F176: 705.20 | G176: 688.30 | H176: 676.50 | I176: 659.60 | J176: 717.00 | K176: 733.90 | L176: 745.70 | M176: 722.1 | N176: 693.4 | O176: 2428450 | P176: 4.61%
A177: 167 | B177: Banking | C177: RBLBANK | D177: 2022-03-31 | E177: 122.20 | F177: 121.57 | G177: 118.63 | H177: 115.07 | I177: 112.13 | J177: 125.13 | K177: 128.07 | L177: 131.63 | M177: 124.5 | N177: 118 | O177: 36948900 | P177: -2.25%
A178: 168 | B178: Power | C178: RECLTD | D178: 2022-03-31 | E178: 120.90 | F178: 120.75 | G178: 119.35 | H178: 117.80 | I178: 116.40 | J178: 122.30 | K178: 123.70 | L178: 125.25 | M178: 122.15 | N178: 119.2 | O178: 27498000 | P178: 0.02%
A179: 169 | B179: Oil_Gas | C179: RELIANCE | D179: 2022-03-31 | E179: 2245.70 | F179: 2264.13 | G179: 2209.67 | H179: 2173.63 | I179: 2119.17 | J179: 2300.17 | K179: 2354.63 | L179: 2390.67 | M179: 2318.6 | N179: 2228.1 | O179: 34488500 | P179: 2.19%
A180: 170 | B180: Metals | C180: SAIL | D180: 2022-03-31 | E180: 97.45 | F180: 96.43 | G180: 94.82 | H180: 92.18 | I180: 90.57 | J180: 99.07 | K180: 100.68 | L180: 103.32 | M180: 98.05 | N180: 93.8 | O180: 160331500 | P180: 1.61%
A181: 171 | B181: Banking | C181: SBICARD | D181: 2022-03-31 | E181: 732.50 | F181: 727.88 | G181: 717.92 | H181: 703.33 | I181: 693.37 | J181: 742.47 | K181: 752.43 | L181: 767.02 | M181: 737.85 | N181: 713.3 | O181: 5502500 | P181: -1.31%
A182: 172 | B182: Finance | C182: SBILIFE | D182: 2022-03-31 | E182: 1028.90 | F182: 1033.58 | G182: 1018.47 | H182: 1008.03 | I182: 992.92 | J182: 1044.02 | K182: 1059.13 | L182: 1069.57 | M182: 1048.7 | N182: 1023.15 | O182: 7647000 | P182: 0.56%
A183: 173 | B183: Banking | C183: SBIN | D183: 2022-03-31 | E183: 441.80 | F183: 443.38 | G183: 432.92 | H183: 424.03 | I183: 413.57 | J183: 452.27 | K183: 462.73 | L183: 471.62 | M183: 453.85 | N183: 434.5 | O183: 78423000 | P183: 4.92%
A184: 174 | B184: Cement | C184: SHREECEM | D184: 2022-03-31 | E184: 21289.90 | F184: 21560.88 | G184: 20840.77 | H184: 20391.63 | I184: 19671.52 | J184: 22010.02 | K184: 22730.13 | L184: 23179.27 | M184: 22281 | N184: 21111.75 | O184: 219200 | P184: 6.72%
A185: 175 | B185: Capital_Goods | C185: SIEMENS | D185: 2022-03-31 | E185: 2222.55 | F185: 2233.98 | G185: 2191.47 | H185: 2160.38 | I185: 2117.87 | J185: 2265.07 | K185: 2307.58 | L185: 2338.67 | M185: 2276.5 | N185: 2202.9 | O185: 1532850 | P185: 1.57%
A186: 176 | B186: Textile | C186: SRF | D186: 2022-03-31 | E186: 2161.60 | F186: 2167.05 | G186: 2106.75 | H186: 2051.90 | I186: 1991.60 | J186: 2221.90 | K186: 2282.20 | L186: 2337.05 | M186: 2227.35 | N186: 2112.2 | O186: 3142500 | P186: 2.23%
A187: 177 | B187: Finance | C187: SRTRANSFIN | D187: 2022-03-31 | E187: 1010.65 | F187: 1021.32 | G187: 992.73 | H187: 974.82 | I187: 946.23 | J187: 1039.23 | K187: 1067.82 | L187: 1085.73 | M187: 1049.9 | N187: 1003.4 | O187: 4104000 | P187: 1.96%
A188: 178 | B188: Pharma | C188: STAR | D188: 2022-03-31 | E188: 319.35 | F188: 316.63 | G188: 312.27 | H188: 305.18 | I188: 300.82 | J188: 323.72 | K188: 328.08 | L188: 335.17 | M188: 321 | N188: 309.55 | O188: 4211100 | P188: -0.64%
A189: 179 | B189: Pharma | C189: SUNPHARMA | D189: 2022-03-31 | E189: 823.70 | F189: 820.70 | G189: 812.90 | H189: 802.10 | I189: 794.30 | J189: 831.50 | K189: 839.30 | L189: 850.10 | M189: 828.5 | N189: 809.9 | O189: 22227800 | P189: -2.12%
A190: 180 | B190: Media | C190: SUNTV | D190: 2022-03-31 | E190: 435.10 | F190: 431.70 | G190: 425.40 | H190: 415.70 | I190: 409.40 | J190: 441.40 | K190: 447.70 | L190: 457.40 | M190: 438 | N190: 422 | O190: 12511500 | P190: -0.13%
A191: 181 | B191: Pharma | C191: SYNGENE | D191: 2022-03-31 | E191: 539.60 | F191: 534.10 | G191: 525.15 | H191: 510.70 | I191: 501.75 | J191: 548.55 | K191: 557.50 | L191: 571.95 | M191: 543.05 | N191: 519.65 | O191: 846600 | P191: -0.80%
A192: 182 | B192: Chemical | C192: TATACHEM | D192: 2022-03-31 | E192: 850.85 | F192: 846.95 | G192: 834.30 | H192: 817.75 | I192: 805.10 | J192: 863.50 | K192: 876.15 | L192: 892.70 | M192: 859.6 | N192: 830.4 | O192: 5459000 | P192: -0.46%
A193: 183 | B193: Telecom | C193: TATACOMM | D193: 2022-03-31 | E193: 1130.95 | F193: 1118.47 | G193: 1100.98 | H193: 1071.02 | I193: 1053.53 | J193: 1148.43 | K193: 1165.92 | L193: 1195.88 | M193: 1135.95 | N193: 1088.5 | O193: 2776000 | P193: -0.57%
A194: 184 | B194: FMCG | C194: TATACONSUM | D194: 2022-03-31 | E194: 661.85 | F194: 661.98 | G194: 650.82 | H194: 639.78 | I194: 628.62 | J194: 673.02 | K194: 684.18 | L194: 695.22 | M194: 673.15 | N194: 650.95 | O194: 11147625 | P194: -3.67%
A195: 185 | B195: Automobile | C195: TATAMOTORS | D195: 2022-03-31 | E195: 394.60 | F195: 394.78 | G195: 384.12 | H195: 373.63 | I195: 362.97 | J195: 405.27 | K195: 415.93 | L195: 426.42 | M195: 405.45 | N195: 384.3 | O195: 77810700 | P195: -1.35%
A196: 186 | B196: Power | C196: TATAPOWER | D196: 2022-03-31 | E196: 216.60 | F196: 216.20 | G196: 212.50 | H196: 208.40 | I196: 204.70 | J196: 220.30 | K196: 224.00 | L196: 228.10 | M196: 219.9 | N196: 212.1 | O196: 102890250 | P196: 1.09%
A197: 187 | B197: Metals | C197: TATASTEEL | D197: 2022-03-31 | E197: 1295.80 | F197: 1287.13 | G197: 1271.67 | H197: 1247.53 | I197: 1232.07 | J197: 1311.27 | K197: 1326.73 | L197: 1350.87 | M197: 1302.6 | N197: 1263 | O197: 36657100 | P197: 0.10%
A198: 188 | B198: Technology | C198: TCS | D198: 2022-03-31 | E198: 3495.10 | F198: 3499.63 | G198: 3445.47 | H198: 3395.83 | I198: 3341.67 | J198: 3549.27 | K198: 3603.43 | L198: 3653.07 | M198: 3553.8 | N198: 3450 | O198: 13747650 | P198: 0.43%
A199: 189 | B199: Technology | C199: TECHM | D199: 2022-03-31 | E199: 1428.70 | F199: 1434.82 | G199: 1406.03 | H199: 1383.37 | I199: 1354.58 | J199: 1457.48 | K199: 1486.27 | L199: 1508.93 | M199: 1463.6 | N199: 1412.15 | O199: 14777400 | P199: -4.38%
A200: 190 | B200: FMCG | C200: TITAN | D200: 2022-03-31 | E200: 2389.55 | F200: 2382.67 | G200: 2342.43 | H200: 2295.32 | I200: 2255.08 | J200: 2429.78 | K200: 2470.02 | L200: 2517.13 | M200: 2422.9 | N200: 2335.55 | O200: 5601375 | P200: -1.67%
A201: 191 | B201: Pharma | C201: TORNTPHARM | D201: 2022-03-31 | E201: 2702.30 | F201: 2700.42 | G201: 2656.98 | H201: 2611.67 | I201: 2568.23 | J201: 2745.73 | K201: 2789.17 | L201: 2834.48 | M201: 2743.85 | N201: 2655.1 | O201: 805250 | P201: -1.41%
A202: 192 | B202: Power | C202: TORNTPOWER | D202: 2022-03-31 | E202: 466.70 | F202: 466.38 | G202: 459.12 | H202: 451.53 | I202: 444.27 | J202: 473.97 | K202: 481.23 | L202: 488.82 | M202: 473.65 | N202: 458.8 | O202: 3339000 | P202: -0.40%
A203: 193 | B203: Others | C203: TRENT | D203: 2022-03-31 | E203: 1066.95 | F203: 1062.78 | G203: 1045.12 | H203: 1023.28 | I203: 1005.62 | J203: 1084.62 | K203: 1102.28 | L203: 1124.12 | M203: 1080.45 | N203: 1040.95 | O203: 2947850 | P203: -0.44%
A204: 194 | B204: Automobile | C204: TVSMOTOR | D204: 2022-03-31 | E204: 530.00 | F204: 527.00 | G204: 515.80 | H204: 501.60 | I204: 490.40 | J204: 541.20 | K204: 552.40 | L204: 566.60 | M204: 538.2 | N204: 512.8 | O204: 8464400 | P204: 2.32%
A205: 195 | B205: FMCG | C205: UBL | D205: 2022-03-31 | E205: 1301.80 | F205: 1298.55 | G205: 1278.35 | H205: 1254.90 | I205: 1234.70 | J205: 1322.00 | K205: 1342.20 | L205: 1365.65 | M205: 1318.75 | N205: 1275.1 | O205: 1219750 | P205: -0.85%
A206: 196 | B206: Cement | C206: ULTRACEMCO | D206: 2022-03-31 | E206: 5719.30 | F206: 5778.10 | G206: 5646.20 | H206: 5573.10 | I206: 5441.20 | J206: 5851.20 | K206: 5983.10 | L206: 6056.20 | M206: 5910 | N206: 5705 | O206: 3378800 | P206: 7.21%
... 22 more rows

Sheet Cash Intra
M5: Back to Main Page
A6: FOR INTRA DAY TRADING | K6: =Main!B10 -> 2022-03-08
A8: Sr.no | C8: CLOSE RATE | D8: Pivot Point | E8: Supports | H8: Resistances
E9: S1 | F9: S2 | G9: S3 | H9: R1 | I9: R2 | J9: R3 | K9: HIGH | L9: LOW | M9: Total Trade Quanity in Lakhs
A10: 1 | B10: Nifty 50 | C10: 15863.15 | D10: 15839.73 | E10: 15734.87 | F10: 15606.58 | G10: 15501.72 | H10: 15968.02 | I10: 16072.88 | J10: 16201.17 | K10: 15944.6 | L10: 15711.45
A11: 2 | B11: Nifty Bank | C11: 32871.25 | D11: 32930.35 | E11: 32317.40 | F11: 31763.55 | G11: 31150.60 | H11: 33484.20 | I11: 34097.15 | J11: 34651.00 | K11: 33543.3 | L11: 32376.5
A12: 3 | B12: Nifty CPSE | C12: 2560.8 | D12: 2530.52 | E12: 2493.93 | F12: 2427.07 | G12: 2390.48 | H12: 2597.38 | I12: 2633.97 | J12: 2700.83 | K12: 2567.1 | L12: 2463.65
A13: 4 | B13: Nifty Infra | C13: 4578.5 | D13: 4561.25 | E13: 4531.00 | F13: 4483.50 | G13: 4453.25 | H13: 4608.75 | I13: 4639.00 | J13: 4686.50 | K13: 4591.5 | L13: 4513.75
A14: 5 | B14: Nifty IT | C14: 34135.9 | D14: 34023.62 | E14: 33611.63 | F14: 33087.37 | G14: 32675.38 | H14: 34547.88 | I14: 34959.87 | J14: 35484.13 | K14: 34435.6 | L14: 33499.35
A15: 6 | B15: Nifty PSE | C15: 4065.65 | D15: 4034.03 | E15: 3994.22 | F15: 3922.78 | G15: 3882.97 | H15: 4105.47 | I15: 4145.28 | J15: 4216.72 | K15: 4073.85 | L15: 3962.6
A16: 7 | B16: Nifty Midcap 50 | C16: 7386.35 | D16: 7359.78 | E16: 7303.27 | F16: 7220.18 | G16: 7163.67 | H16: 7442.87 | I16: 7499.38 | J16: 7582.47 | K16: 7416.3 | L16: 7276.7
A17: 8 | B17: ACC | C17: 1950.15 | D17: 1942.72 | E17: 1907.43 | F17: 1864.72 | G17: 1829.43 | H17: 1985.43 | I17: 2020.72 | J17: 2063.43 | K17: 1978 | L17: 1900 | M17: 5.36549
A18: 9 | B18: AUBANK | C18: 1064.9 | D18: 1071.57 | E18: 1045.18 | F18: 1025.47 | G18: 999.08 | H18: 1091.28 | I18: 1117.67 | J18: 1137.38 | K18: 1097.95 | L18: 1051.85 | M18: 16.26925
A19: 10 | B19: AARTIIND | C19: 804.85 | D19: 801.78 | E19: 785.62 | F19: 766.38 | G19: 750.22 | H19: 821.02 | I19: 837.18 | J19: 856.42 | K19: 817.95 | L19: 782.55 | M19: 10.30588
A20: 11 | B20: ADANIENT | C20: 1564.05 | D20: 1565.12 | E20: 1538.23 | F20: 1512.42 | G20: 1485.53 | H20: 1590.93 | I20: 1617.82 | J20: 1643.63 | K20: 1592 | L20: 1539.3 | M20: 15.08821
A21: 12 | B21: ADANIGREEN | C21: 1803.75 | D21: 1822.45 | E21: 1765.40 | F21: 1727.05 | G21: 1670.00 | H21: 1860.80 | I21: 1917.85 | J21: 1956.20 | K21: 1879.5 | L21: 1784.1 | M21: 6.36784
A22: 13 | B22: ADANIPORTS | C22: 677.8 | D22: 677.68 | E22: 663.67 | F22: 649.53 | G22: 635.52 | H22: 691.82 | I22: 705.83 | J22: 719.97 | K22: 691.7 | L22: 663.55 | M22: 48.90958
A23: 14 | B23: ATGL | C23: 1714.95 | D23: 1739.90 | E23: 1690.00 | F23: 1665.05 | G23: 1615.15 | H23: 1764.85 | I23: 1814.75 | J23: 1839.70 | K23: 1789.8 | L23: 1714.95 | M23: 1.62241
A24: 15 | B24: ADANITRANS | C24: 2207.35 | D24: 2259.80 | E24: 2154.60 | F24: 2101.85 | G24: 1996.65 | H24: 2312.55 | I24: 2417.75 | J24: 2470.50 | K24: 2365 | L24: 2207.05 | M24: 2.26577
A25: 16 | B25: ABCAPITAL | C25: 98.6 | D25: 98.73 | E25: 96.72 | F25: 94.83 | G25: 92.82 | H25: 100.62 | I25: 102.63 | J25: 104.52 | K25: 100.75 | L25: 96.85 | M25: 53.63013
A26: 17 | B26: ABFRL | C26: 261.35 | D26: 259.12 | E26: 254.23 | F26: 247.12 | G26: 242.23 | H26: 266.23 | I26: 271.12 | J26: 278.23 | K26: 264 | L26: 252 | M26: 24.74598
A27: 18 | B27: AJANTPHARM | C27: 1705.4 | D27: 1693.87 | E27: 1642.68 | F27: 1579.97 | G27: 1528.78 | H27: 1756.58 | I27: 1807.77 | J27: 1870.48 | K27: 1745.05 | L27: 1631.15 | M27: 0.55593
A28: 19 | B28: APLLTD | C28: 709.65 | D28: 706.68 | E28: 698.37 | F28: 687.08 | G28: 678.77 | H28: 717.97 | I28: 726.28 | J28: 737.57 | K28: 715 | L28: 695.4 | M28: 1.14566
A29: 20 | B29: ALKEM | C29: 3261.3 | D29: 3244.60 | E29: 3124.55 | F29: 2987.80 | G29: 2867.75 | H29: 3381.35 | I29: 3501.40 | J29: 3638.15 | K29: 3364.65 | L29: 3107.85 | M29: 1.03285
A30: 21 | B30: AMARAJABAT | C30: 547.7 | D30: 545.85 | E30: 538.85 | F30: 530.00 | G30: 523.00 | H30: 554.70 | I30: 561.70 | J30: 570.55 | K30: 552.85 | L30: 537 | M30: 5.14419
A31: 22 | B31: AMBUJACEM | C31: 281.2 | D31: 282.73 | E31: 276.47 | F31: 271.73 | G31: 265.47 | H31: 287.47 | I31: 293.73 | J31: 298.47 | K31: 289 | L31: 278 | M31: 69.36569
A32: 23 | B32: APOLLOHOSP | C32: 4664.35 | D32: 4660.33 | E32: 4587.87 | F32: 4511.38 | G32: 4438.92 | H32: 4736.82 | I32: 4809.28 | J32: 4885.77 | K32: 4732.8 | L32: 4583.85 | M32: 6.43012
A33: 24 | B33: APOLLOTYRE | C33: 173.8 | D33: 171.52 | E33: 167.53 | F33: 161.27 | G33: 157.28 | H33: 177.78 | I33: 181.77 | J33: 188.03 | K33: 175.5 | L33: 165.25 | M33: 46.32142
A34: 25 | B34: ASHOKLEY | C34: 99.15 | D34: 99.95 | E34: 96.00 | F34: 92.85 | G34: 88.90 | H34: 103.10 | I34: 107.05 | J34: 110.20 | K34: 103.9 | L34: 96.8 | M34: 402.1268
A35: 26 | B35: ASIANPAINT | C35: 2708.45 | D35: 2678.58 | E35: 2629.22 | F35: 2549.98 | G35: 2500.62 | H35: 2757.82 | I35: 2807.18 | J35: 2886.42 | K35: 2727.95 | L35: 2599.35 | M35: 32.3376
A36: 27 | B36: ASTRAL | C36: 1828.05 | D36: 1822.03 | E36: 1791.07 | F36: 1754.08 | G36: 1723.12 | H36: 1859.02 | I36: 1889.98 | J36: 1926.97 | K36: 1853 | L36: 1785.05 | M36: 2.83897
A37: 28 | B37: AUROPHARMA | C37: 608.95 | D37: 602.20 | E37: 591.00 | F37: 573.05 | G37: 561.85 | H37: 620.15 | I37: 631.35 | J37: 649.30 | K37: 613.4 | L37: 584.25 | M37: 20.48437
A38: 29 | B38: DMART | C38: 3991.65 | D38: 4045.82 | E38: 3916.63 | F38: 3841.62 | G38: 3712.43 | H38: 4120.83 | I38: 4250.02 | J38: 4325.03 | K38: 4175 | L38: 3970.8 | M38: 6.94633
A39: 30 | B39: AXISBANK | C39: 667.55 | D39: 676.05 | E39: 647.10 | F39: 626.65 | G39: 597.70 | H39: 696.50 | I39: 725.45 | J39: 745.90 | K39: 705 | L39: 655.6 | M39: 201.47061
A40: 31 | B40: BAJAJ-AUTO | C40: 3234.65 | D40: 3212.88 | E40: 3146.77 | F40: 3058.88 | G40: 2992.77 | H40: 3300.77 | I40: 3366.88 | J40: 3454.77 | K40: 3279 | L40: 3125 | M40: 3.35205
A41: 32 | B41: BAJFINANCE | C41: 6125 | D41: 6198.33 | E41: 6026.67 | F41: 5928.33 | G41: 5756.67 | H41: 6296.67 | I41: 6468.33 | J41: 6566.67 | K41: 6370 | L41: 6100 | M41: 28.43588
A42: 33 | B42: BAJAJFINSV | C42: 14373.2 | D42: 14389.03 | E42: 13784.07 | F42: 13194.93 | G42: 12589.97 | H42: 14978.17 | I42: 15583.13 | J42: 16172.27 | K42: 14994 | L42: 13799.9 | M42: 3.71521
A43: 34 | B43: BAJAJHLDNG | C43: 4846.8 | D43: 4869.43 | E43: 4729.42 | F43: 4612.03 | G43: 4472.02 | H43: 4986.82 | I43: 5126.83 | J43: 5244.22 | K43: 5009.45 | L43: 4752.05 | M43: 0.43534
A44: 35 | B44: BALKRISIND | C44: 1824.8 | D44: 1785.45 | E44: 1729.90 | F44: 1635.00 | G44: 1579.45 | H44: 1880.35 | I44: 1935.90 | J44: 2030.80 | K44: 1841 | L44: 1690.55 | M44: 8.09797
A45: 36 | B45: BANDHANBNK | C45: 253.85 | D45: 256.57 | E45: 247.68 | F45: 241.52 | G45: 232.63 | H45: 262.73 | I45: 271.62 | J45: 277.78 | K45: 265.45 | L45: 250.4 | M45: 82.83275
A46: 37 | B46: BANKBARODA | C46: 92.8 | D46: 94.77 | E46: 89.03 | F46: 85.27 | G46: 79.53 | H46: 98.53 | I46: 104.27 | J46: 108.03 | K46: 100.5 | L46: 91 | M46: 846.78404
A47: 38 | B47: BANKINDIA | C47: 46.25 | D47: 46.13 | E47: 45.17 | F47: 44.08 | G47: 43.12 | H47: 47.22 | I47: 48.18 | J47: 49.27 | K47: 47.1 | L47: 45.05 | M47: 52.00513
A48: 39 | B48: BATAINDIA | C48: 1699.05 | D48: 1690.60 | E48: 1662.50 | F48: 1625.95 | G48: 1597.85 | H48: 1727.15 | I48: 1755.25 | J48: 1791.80 | K48: 1718.7 | L48: 1654.05 | M48: 2.74726
A49: 40 | B49: BERGEPAINT | C49: 628.75 | D49: 631.18 | E49: 620.92 | F49: 613.08 | G49: 602.82 | H49: 639.02 | I49: 649.28 | J49: 657.12 | K49: 641.45 | L49: 623.35 | M49: 11.36428
A50: 41 | B50: BEL | C50: 214.25 | D50: 213.07 | E50: 207.73 | F50: 201.22 | G50: 195.88 | H50: 219.58 | I50: 224.92 | J50: 231.43 | K50: 218.4 | L50: 206.55 | M50: 127.48011
A51: 42 | B51: BHARATFORG | C51: 612.65 | D51: 612.87 | E51: 602.98 | F51: 593.32 | G51: 583.43 | H51: 622.53 | I51: 632.42 | J51: 642.08 | K51: 622.75 | L51: 603.2 | M51: 21.97227
A52: 43 | B52: BHEL | C52: 48.75 | D52: 48.47 | E52: 47.78 | F52: 46.82 | G52: 46.13 | H52: 49.43 | I52: 50.12 | J52: 51.08 | K52: 49.15 | L52: 47.5 | M52: 256.8651
A53: 44 | B53: BPCL | C53: 338 | D53: 338.93 | E53: 330.87 | F53: 323.73 | G53: 315.67 | H53: 346.07 | I53: 354.13 | J53: 361.27 | K53: 347 | L53: 331.8 | M53: 99.68
A54: 45 | B54: BHARTIARTL | C54: 675.4 | D54: 664.58 | E54: 649.82 | F54: 624.23 | G54: 609.47 | H54: 690.17 | I54: 704.93 | J54: 730.52 | K54: 679.35 | L54: 639 | M54: 126.15451
A55: 46 | B55: BIOCON | C55: 330 | D55: 327.03 | E55: 322.07 | F55: 314.13 | G55: 309.17 | H55: 334.97 | I55: 339.93 | J55: 347.87 | K55: 332 | L55: 319.1 | M55: 33.43221
A56: 47 | B56: BOSCHLTD | C56: 14165.95 | D56: 14266.48 | E56: 13953.42 | F56: 13740.88 | G56: 13427.82 | H56: 14479.02 | I56: 14792.08 | J56: 15004.62 | K56: 14579.55 | L56: 14053.95 | M56: 0.28624
A57: 48 | B57: BRITANNIA | C57: 3153.45 | D57: 3197.52 | E57: 3094.48 | F57: 3035.52 | G57: 2932.48 | H57: 3256.48 | I57: 3359.52 | J57: 3418.48 | K57: 3300.55 | L57: 3138.55 | M57: 7.11477
A58: 49 | B58: INTELLECT | C58: 681.2 | D58: 673.67 | E58: 660.63 | F58: 640.07 | G58: 627.03 | H58: 694.23 | I58: 707.27 | J58: 727.83 | K58: 686.7 | L58: 653.1 | M58: 4.68536
A59: 50 | B59: CANBK | C59: 200.85 | D59: 200.97 | E59: 196.28 | F59: 191.72 | G59: 187.03 | H59: 205.53 | I59: 210.22 | J59: 214.78 | K59: 205.65 | L59: 196.4 | M59: 155.76434
A60: 51 | B60: CASTROLIND | C60: 107.25 | D60: 107.10 | E60: 106.20 | F60: 105.15 | G60: 104.25 | H60: 108.15 | I60: 109.05 | J60: 110.10 | K60: 108 | L60: 106.05 | M60: 6.9384
A61: 52 | B61: CHOLAFIN | C61: 607.3 | D61: 617.10 | E61: 586.20 | F61: 565.10 | G61: 534.20 | H61: 638.20 | I61: 669.10 | J61: 690.20 | K61: 648 | L61: 596 | M61: 36.84167
A62: 53 | B62: CIPLA | C62: 941.15 | D62: 934.73 | E62: 923.47 | F62: 905.78 | G62: 894.52 | H62: 952.42 | I62: 963.68 | J62: 981.37 | K62: 946 | L62: 917.05 | M62: 26.04231
A63: 54 | B63: CUB | C63: 110.35 | D63: 112.05 | E63: 107.30 | F63: 104.25 | G63: 99.50 | H63: 115.10 | I63: 119.85 | J63: 122.90 | K63: 116.8 | L63: 109 | M63: 28.87417
A64: 55 | B64: COALINDIA | C64: 188.7 | D64: 187.47 | E64: 182.93 | F64: 177.17 | G64: 172.63 | H64: 193.23 | I64: 197.77 | J64: 203.53 | K64: 192 | L64: 181.7 | M64: 416.42776
A65: 56 | B65: COFORGE | C65: 4722.4 | D65: 4650.52 | E65: 4553.03 | F65: 4383.67 | G65: 4286.18 | H65: 4819.88 | I65: 4917.37 | J65: 5086.73 | K65: 4748 | L65: 4481.15 | M65: 4.93455
A66: 57 | B66: COLPAL | C66: 1401.25 | D66: 1405.07 | E66: 1386.18 | F66: 1371.12 | G66: 1352.23 | H66: 1420.13 | I66: 1439.02 | J66: 1454.08 | K66: 1423.95 | L66: 1390 | M66: 4.06101
A67: 58 | B67: CONCOR | C67: 573.55 | D67: 571.80 | E67: 563.85 | F67: 554.15 | G67: 546.20 | H67: 581.50 | I67: 589.45 | J67: 599.15 | K67: 579.75 | L67: 562.1 | M67: 16.76862
A68: 59 | B68: COROMANDEL | C68: 759.1 | D68: 758.52 | E68: 742.03 | F68: 724.97 | G68: 708.48 | H68: 775.58 | I68: 792.07 | J68: 809.13 | K68: 775 | L68: 741.45 | M68: 2.6045
A69: 60 | B69: CROMPTON | C69: 376 | D69: 378.00 | E69: 370.50 | F69: 365.00 | G69: 357.50 | H69: 383.50 | I69: 391.00 | J69: 396.50 | K69: 385.5 | L69: 372.5 | M69: 18.06681
A70: 61 | B70: CUMMINSIND | C70: 942.55 | D70: 938.83 | E70: 912.87 | F70: 883.18 | G70: 857.22 | H70: 968.52 | I70: 994.48 | J70: 1024.17 | K70: 964.8 | L70: 909.15 | M70: 4.05357
A71: 62 | B71: DLF | C71: 313.6 | D71: 313.37 | E71: 306.23 | F71: 298.87 | G71: 291.73 | H71: 320.73 | I71: 327.87 | J71: 335.23 | K71: 320.5 | L71: 306 | M71: 110.47929
A72: 63 | B72: DABUR | C72: 505.95 | D72: 511.65 | E72: 496.30 | F72: 486.65 | G72: 471.30 | H72: 521.30 | I72: 536.65 | J72: 546.30 | K72: 527 | L72: 502 | M72: 31.7803
A73: 64 | B73: DALBHARAT | C73: 1331 | D73: 1331.68 | E73: 1289.47 | F73: 1247.93 | G73: 1205.72 | H73: 1373.22 | I73: 1415.43 | J73: 1456.97 | K73: 1373.9 | L73: 1290.15 | M73: 5.53126
A74: 65 | B74: DEEPAKNTR | C74: 1830.65 | D74: 1843.20 | E74: 1797.70 | F74: 1764.75 | G74: 1719.25 | H74: 1876.15 | I74: 1921.65 | J74: 1954.60 | K74: 1888.7 | L74: 1810.25 | M74: 7.81215
A75: 66 | B75: DHANI | C75: 69.25 | D75: 70.02 | E75: 67.33 | F75: 65.42 | G75: 62.73 | H75: 71.93 | I75: 74.62 | J75: 76.53 | K75: 72.7 | L75: 68.1 | M75: 63.54722
A76: 67 | B76: DIVISLAB | C76: 4074.95 | D76: 4047.98 | E76: 4001.02 | F76: 3927.08 | G76: 3880.12 | H76: 4121.92 | I76: 4168.88 | J76: 4242.82 | K76: 4094.95 | L76: 3974.05 | M76: 5.40735
A77: 68 | B77: DIXON | C77: 4060.65 | D77: 4030.88 | E77: 3966.77 | F77: 3872.88 | G77: 3808.77 | H77: 4124.77 | I77: 4188.88 | J77: 4282.77 | K77: 4095 | L77: 3937 | M77: 2.63177
A78: 69 | B78: LALPATHLAB | C78: 2326 | D78: 2312.28 | E78: 2277.12 | F78: 2228.23 | G78: 2193.07 | H78: 2361.17 | I78: 2396.33 | J78: 2445.22 | K78: 2347.45 | L78: 2263.4 | M78: 3.31492
A79: 70 | B79: DRREDDY | C79: 3769.4 | D79: 3743.12 | E79: 3694.28 | F79: 3619.17 | G79: 3570.33 | H79: 3818.23 | I79: 3867.07 | J79: 3942.18 | K79: 3791.95 | L79: 3668 | M79: 6.03086
A80: 71 | B80: EICHERMOT | C80: 2259.65 | D80: 2249.32 | E80: 2201.38 | F80: 2143.12 | G80: 2095.18 | H80: 2307.58 | I80: 2355.52 | J80: 2413.78 | K80: 2297.25 | L80: 2191.05 | M80: 15.1343
A81: 72 | B81: EMAMILTD | C81: 453.6 | D81: 455.53 | E81: 443.32 | F81: 433.03 | G81: 420.82 | H81: 465.82 | I81: 478.03 | J81: 488.32 | K81: 467.75 | L81: 445.25 | M81: 8.83023
A82: 73 | B82: ENDURANCE | C82: 1134.35 | D82: 1128.47 | E82: 1088.93 | F82: 1043.52 | G82: 1003.98 | H82: 1173.88 | I82: 1213.42 | J82: 1258.83 | K82: 1168 | L82: 1083.05 | M82: 2.02785
A83: 74 | B83: ESCORTS | C83: 1797.15 | D83: 1798.00 | E83: 1777.15 | F83: 1757.15 | G83: 1736.30 | H83: 1818.00 | I83: 1838.85 | J83: 1858.85 | K83: 1818.85 | L83: 1778 | M83: 13.70571
A84: 75 | B84: EXIDEIND | C84: 141.3 | D84: 141.50 | E84: 139.10 | F84: 136.90 | G84: 134.50 | H84: 143.70 | I84: 146.10 | J84: 148.30 | K84: 143.9 | L84: 139.3 | M84: 30.48239
A85: 76 | B85: FEDERALBNK | C85: 87.4 | D85: 88.63 | E85: 84.77 | F85: 82.13 | G85: 78.27 | H85: 91.27 | I85: 95.13 | J85: 97.77 | K85: 92.5 | L85: 86 | M85: 245.02834
A86: 77 | B86: FORTIS | C86: 256.55 | D86: 255.43 | E86: 252.12 | F86: 247.68 | G86: 244.37 | H86: 259.87 | I86: 263.18 | J86: 267.62 | K86: 258.75 | L86: 251 | M86: 7.16152
A87: 78 | B87: GAIL | C87: 161.65 | D87: 160.28 | E87: 156.57 | F87: 151.48 | G87: 147.77 | H87: 165.37 | I87: 169.08 | J87: 174.17 | K87: 164 | L87: 155.2 | M87: 332.35321
A88: 79 | B88: GMRINFRA | C88: 36.4 | D88: 36.35 | E88: 35.75 | F88: 35.10 | G88: 34.50 | H88: 37.00 | I88: 37.60 | J88: 38.25 | K88: 36.95 | L88: 35.7 | M88: 75.8443
A89: 80 | B89: GLAND | C89: 3199.75 | D89: 3193.23 | E89: 3139.77 | F89: 3079.78 | G89: 3026.32 | H89: 3253.22 | I89: 3306.68 | J89: 3366.67 | K89: 3246.7 | L89: 3133.25 | M89: 1.13299
A90: 81 | B90: GLENMARK | C90: 435.55 | D90: 429.03 | E90: 420.62 | F90: 405.68 | G90: 397.27 | H90: 443.97 | I90: 452.38 | J90: 467.32 | K90: 437.45 | L90: 414.1 | M90: 19.60144
A91: 82 | B91: GODREJCP | C91: 664.7 | D91: 685.63 | E91: 639.12 | F91: 613.53 | G91: 567.02 | H91: 711.22 | I91: 757.73 | J91: 783.32 | K91: 732.15 | L91: 660.05 | M91: 32.63788
A92: 83 | B92: GODREJIND | C92: 492.4 | D92: 485.12 | E92: 472.28 | F92: 452.17 | G92: 439.33 | H92: 505.23 | I92: 518.07 | J92: 538.18 | K92: 497.95 | L92: 465 | M92: 0.99977
A93: 84 | B93: GODREJPROP | C93: 1374.8 | D93: 1384.78 | E93: 1340.57 | F93: 1306.33 | G93: 1262.12 | H93: 1419.02 | I93: 1463.23 | J93: 1497.47 | K93: 1429 | L93: 1350.55 | M93: 15.88956
A94: 85 | B94: GRASIM | C94: 1446.55 | D94: 1443.98 | E94: 1412.27 | F94: 1377.98 | G94: 1346.27 | H94: 1478.27 | I94: 1509.98 | J94: 1544.27 | K94: 1475.7 | L94: 1409.7 | M94: 9.23769
A95: 86 | B95: GUJGASLTD | C95: 496.75 | D95: 498.95 | E95: 483.80 | F95: 470.85 | G95: 455.70 | H95: 511.90 | I95: 527.05 | J95: 540.00 | K95: 514.1 | L95: 486 | M95: 19.63539
A96: 87 | B96: GSPL | C96: 264.35 | D96: 267.12 | E96: 258.23 | F96: 252.12 | G96: 243.23 | H96: 273.23 | I96: 282.12 | J96: 288.23 | K96: 276 | L96: 261 | M96: 12.09967
A97: 88 | B97: HCLTECH | C97: 1154.2 | D97: 1142.03 | E97: 1122.67 | F97: 1091.13 | G97: 1071.77 | H97: 1173.57 | I97: 1192.93 | J97: 1224.47 | K97: 1161.4 | L97: 1110.5 | M97: 52.49845
A98: 89 | B98: HDFCAMC | C98: 2038.55 | D98: 2035.47 | E98: 1990.93 | F98: 1943.32 | G98: 1898.78 | H98: 2083.08 | I98: 2127.62 | J98: 2175.23 | K98: 2080 | L98: 1987.85 | M98: 3.03012
A99: 90 | B99: HDFCBANK | C99: 1324.8 | D99: 1318.07 | E99: 1303.78 | F99: 1282.77 | G99: 1268.48 | H99: 1339.08 | I99: 1353.37 | J99: 1374.38 | K99: 1332.35 | L99: 1297.05 | M99: 135.27229
A100: 91 | B100: HDFCLIFE | C100: 503.5 | D100: 507.17 | E100: 494.33 | F100: 485.17 | G100: 472.33 | H100: 516.33 | I100: 529.17 | J100: 538.33 | K100: 520 | L100: 498 | M100: 91.56126
A101: 92 | B101: HAVELLS | C101: 1072.05 | D101: 1063.48 | E101: 1045.97 | F101: 1019.88 | G101: 1002.37 | H101: 1089.57 | I101: 1107.08 | J101: 1133.17 | K101: 1081 | L101: 1037.4 | M101: 15.96458
A102: 93 | B102: HEROMOTOCO | C102: 2198.7 | D102: 2219.53 | E102: 2149.27 | F102: 2099.83 | G102: 2029.57 | H102: 2268.97 | I102: 2339.23 | J102: 2388.67 | K102: 2289.8 | L102: 2170.1 | M102: 12.84637
A103: 94 | B103: HINDALCO | C103: 619.75 | D103: 609.83 | E103: 596.67 | F103: 573.58 | G103: 560.42 | H103: 632.92 | I103: 646.08 | J103: 669.17 | K103: 623 | L103: 586.75 | M103: 209.63374
A104: 95 | B104: HAL | C104: 1325.05 | D104: 1331.25 | E104: 1298.35 | F104: 1271.65 | G104: 1238.75 | H104: 1357.95 | I104: 1390.85 | J104: 1417.55 | K104: 1364.15 | L104: 1304.55 | M104: 5.88068
A105: 96 | B105: HINDCOPPER | C105: 124.7 | D105: 123.22 | E105: 120.48 | F105: 116.27 | G105: 113.53 | H105: 127.43 | I105: 130.17 | J105: 134.38 | K105: 125.95 | L105: 119 | M105: 79.84133
A106: 97 | B106: HINDPETRO | C106: 276.3 | D106: 277.03 | E106: 271.37 | F106: 266.43 | G106: 260.77 | H106: 281.97 | I106: 287.63 | J106: 292.57 | K106: 282.7 | L106: 272.1 | M106: 47.81082
A107: 98 | B107: HINDUNILVR | C107: 1943.95 | D107: 1950.37 | E107: 1920.58 | F107: 1897.22 | G107: 1867.43 | H107: 1973.73 | I107: 2003.52 | J107: 2026.88 | K107: 1980.15 | L107: 1927 | M107: 29.76453
A108: 99 | B108: HINDZINC | C108: 319.45 | D108: 321.88 | E108: 313.07 | F108: 306.68 | G108: 297.87 | H108: 328.27 | I108: 337.08 | J108: 343.47 | K108: 330.7 | L108: 315.5 | M108: 33.70332
A109: 100 | B109: HDFC | C109: 2121.95 | D109: 2125.02 | E109: 2095.13 | F109: 2068.32 | G109: 2038.43 | H109: 2151.83 | I109: 2181.72 | J109: 2208.53 | K109: 2154.9 | L109: 2098.2 | M109: 76.75627
A110: 101 | B110: ICICIBANK | C110: 653.75 | D110: 654.30 | E110: 641.60 | F110: 629.45 | G110: 616.75 | H110: 666.45 | I110: 679.15 | J110: 691.30 | K110: 667 | L110: 642.15 | M110: 277.99873
A111: 102 | B111: ICICIGI | C111: 1205.35 | D111: 1207.85 | E111: 1189.50 | F111: 1173.65 | G111: 1155.30 | H111: 1223.70 | I111: 1242.05 | J111: 1257.90 | K111: 1226.2 | L111: 1192 | M111: 7.1106
A112: 103 | B112: ICICIPRULI | C112: 446.8 | D112: 446.25 | E112: 435.90 | F112: 425.00 | G112: 414.65 | H112: 457.15 | I112: 467.50 | J112: 478.40 | K112: 456.6 | L112: 435.35 | M112: 10.18923
A113: 104 | B113: ISEC | C113: 593.1 | D113: 597.73 | E113: 583.37 | F113: 573.63 | G113: 559.27 | H113: 607.47 | I113: 621.83 | J113: 631.57 | K113: 612.1 | L113: 588 | M113: 3.04752
A114: 105 | B114: IDFCFIRSTB | C114: 40.1 | D114: 39.82 | E114: 39.28 | F114: 38.47 | G114: 37.93 | H114: 40.63 | I114: 41.17 | J114: 41.98 | K114: 40.35 | L114: 39 | M114: 318.31228
A115: 106 | B115: ITC | C115: 224.95 | D115: 224.02 | E115: 221.03 | F115: 217.12 | G115: 214.13 | H115: 227.93 | I115: 230.92 | J115: 234.83 | K115: 227 | L115: 220.1 | M115: 452.58669
A116: 107 | B116: INDIAMART | C116: 4033.8 | D116: 4120.57 | E116: 3921.13 | F116: 3808.47 | G116: 3609.03 | H116: 4233.23 | I116: 4432.67 | J116: 4545.33 | K116: 4320 | L116: 4007.9 | M116: 2.76327
A117: 108 | B117: INDIANB | C117: 132.45 | D117: 134.32 | E117: 129.63 | F117: 126.82 | G117: 122.13 | H117: 137.13 | I117: 141.82 | J117: 144.63 | K117: 139 | L117: 131.5 | M117: 44.54746
A118: 109 | B118: INDHOTEL | C118: 189.65 | D118: 187.40 | E118: 182.85 | F118: 176.05 | G118: 171.50 | H118: 194.20 | I118: 198.75 | J118: 205.55 | K118: 191.95 | L118: 180.6 | M118: 67.42376
A119: 110 | B119: IOC | C119: 112.25 | D119: 112.47 | E119: 110.98 | F119: 109.72 | G119: 108.23 | H119: 113.73 | I119: 115.22 | J119: 116.48 | K119: 113.95 | L119: 111.2 | M119: 169.28369
A120: 111 | B120: IRCTC | C120: 718 | D120: 722.13 | E120: 704.27 | F120: 690.53 | G120: 672.67 | H120: 735.87 | I120: 753.73 | J120: 767.47 | K120: 740 | L120: 708.4 | M120: 62.57302
A121: 112 | B121: IRFC | C121: 21.2 | D121: 21.25 | E121: 21.05 | F121: 20.90 | G121: 20.70 | H121: 21.40 | I121: 21.60 | J121: 21.75 | K121: 21.45 | L121: 21.1 | M121: 55.12286
A122: 113 | B122: IGL | C122: 337.65 | D122: 333.87 | E122: 324.78 | F122: 311.92 | G122: 302.83 | H122: 346.73 | I122: 355.82 | J122: 368.68 | K122: 342.95 | L122: 321 | M122: 40.36753
A123: 114 | B123: INDUSTOWER | C123: 198.85 | D123: 200.65 | E123: 195.05 | F123: 191.25 | G123: 185.65 | H123: 204.45 | I123: 210.05 | J123: 213.85 | K123: 206.25 | L123: 196.85 | M123: 42.51367
A124: 115 | B124: INDUSINDBK | C124: 834.4 | D124: 852.28 | E124: 807.62 | F124: 780.83 | G124: 736.17 | H124: 879.07 | I124: 923.73 | J124: 950.52 | K124: 896.95 | L124: 825.5 | M124: 63.23502
A125: 116 | B125: NAUKRI | C125: 4287.9 | D125: 4281.78 | E125: 4214.57 | F125: 4141.23 | G125: 4074.02 | H125: 4355.12 | I125: 4422.33 | J125: 4495.67 | K125: 4349 | L125: 4208.45 | M125: 3.28664
A126: 117 | B126: INFY | C126: 1739.85 | D126: 1728.95 | E126: 1706.90 | F126: 1673.95 | G126: 1651.90 | H126: 1761.90 | I126: 1783.95 | J126: 1816.90 | K126: 1751 | L126: 1696 | M126: 97.42588
A127: 118 | B127: INDIGO | C127: 1617 | D127: 1626.38 | E127: 1584.77 | F127: 1552.53 | G127: 1510.92 | H127: 1658.62 | I127: 1700.23 | J127: 1732.47 | K127: 1668 | L127: 1594.15 | M127: 15.86234
A128: 119 | B128: IPCALAB | C128: 973.5 | D128: 962.40 | E128: 940.35 | F128: 907.20 | G128: 885.15 | H128: 995.55 | I128: 1017.60 | J128: 1050.75 | K128: 984.45 | L128: 929.25 | M128: 3.47123
A129: 120 | B129: JSWENERGY | C129: 312.7 | D129: 315.85 | E129: 309.45 | F129: 306.20 | G129: 299.80 | H129: 319.10 | I129: 325.50 | J129: 328.75 | K129: 322.25 | L129: 312.6 | M129: 8.65738
A130: 121 | B130: JSWSTEEL | C130: 637.15 | D130: 634.22 | E130: 625.43 | F130: 613.72 | G130: 604.93 | H130: 645.93 | I130: 654.72 | J130: 666.43 | K130: 643 | L130: 622.5 | M130: 55.07113
A131: 122 | B131: JINDALSTEL | C131: 443.85 | D131: 439.98 | E131: 433.02 | F131: 422.18 | G131: 415.22 | H131: 450.82 | I131: 457.78 | J131: 468.62 | K131: 446.95 | L131: 429.15 | M131: 98.16426
A132: 123 | B132: JUBLFOOD | C132: 2553.45 | D132: 2532.93 | E132: 2495.52 | F132: 2437.58 | G132: 2400.17 | H132: 2590.87 | I132: 2628.28 | J132: 2686.22 | K132: 2570.35 | L132: 2475 | M132: 13.81781
A133: 124 | B133: KOTAKBANK | C133: 1711.9 | D133: 1707.62 | E133: 1684.33 | F133: 1656.77 | G133: 1633.48 | H133: 1735.18 | I133: 1758.47 | J133: 1786.03 | K133: 1730.9 | L133: 1680.05 | M133: 26.97935
A134: 125 | B134: L&TFH | C134: 59.4 | D134: 59.63 | E134: 58.27 | F134: 57.13 | G134: 55.77 | H134: 60.77 | I134: 62.13 | J134: 63.27 | K134: 61 | L134: 58.5 | M134: 86.45724
A135: 126 | B135: LTTS | C135: 4610.35 | D135: 4583.73 | E135: 4527.62 | F135: 4444.88 | G135: 4388.77 | H135: 4666.47 | I135: 4722.58 | J135: 4805.32 | K135: 4639.85 | L135: 4501 | M135: 3.15964
A136: 127 | B136: LICHSGFIN | C136: 330.7 | D136: 330.23 | E136: 321.47 | F136: 312.23 | G136: 303.47 | H136: 339.47 | I136: 348.23 | J136: 357.47 | K136: 339 | L136: 321 | M136: 44.43897
A137: 128 | B137: LTI | C137: 6212.75 | D137: 6135.48 | E137: 6026.02 | F137: 5839.28 | G137: 5729.82 | H137: 6322.22 | I137: 6431.68 | J137: 6618.42 | K137: 6244.95 | L137: 5948.75 | M137: 3.78431
A138: 129 | B138: LT | C138: 1634.45 | D138: 1635.60 | E138: 1604.40 | F138: 1574.35 | G138: 1543.15 | H138: 1665.65 | I138: 1696.85 | J138: 1726.90 | K138: 1666.8 | L138: 1605.55 | M138: 63.18251
A139: 130 | B139: LAURUSLABS | C139: 528.1 | D139: 527.43 | E139: 522.07 | F139: 516.03 | G139: 510.67 | H139: 533.47 | I139: 538.83 | J139: 544.87 | K139: 532.8 | L139: 521.4 | M139: 14.11378
A140: 131 | B140: LUPIN | C140: 700.8 | D140: 694.38 | E140: 685.22 | F140: 669.63 | G140: 660.47 | H140: 709.97 | I140: 719.13 | J140: 734.72 | K140: 703.55 | L140: 678.8 | M140: 13.48569
A141: 132 | B141: MRF | C141: 66153.1 | D141: 65447.57 | E141: 64447.13 | F141: 62741.17 | G141: 61740.73 | H141: 67153.53 | I141: 68153.97 | J141: 69859.93 | K141: 66448 | L141: 63741.6 | M141: 0.29607
A142: 133 | B142: MGL | C142: 713.7 | D142: 713.67 | E142: 696.33 | F142: 678.97 | G142: 661.63 | H142: 731.03 | I142: 748.37 | J142: 765.73 | K142: 731 | L142: 696.3 | M142: 6.45139
A143: 134 | B143: M&MFIN | C143: 130.6 | D143: 131.83 | E143: 126.77 | F143: 122.93 | G143: 117.87 | H143: 135.67 | I143: 140.73 | J143: 144.57 | K143: 136.9 | L143: 128 | M143: 86.55255
A144: 135 | B144: M&M | C144: 690.55 | D144: 697.38 | E144: 674.92 | F144: 659.28 | G144: 636.82 | H144: 713.02 | I144: 735.48 | J144: 751.12 | K144: 719.85 | L144: 681.75 | M144: 70.08637
A145: 136 | B145: MANAPPURAM | C145: 114.45 | D145: 113.67 | E145: 112.08 | F145: 109.72 | G145: 108.13 | H145: 116.03 | I145: 117.62 | J145: 119.98 | K145: 115.25 | L145: 111.3 | M145: 52.54336
A146: 137 | B146: MARICO | C146: 481.85 | D146: 486.92 | E146: 471.83 | F146: 461.82 | G146: 446.73 | H146: 496.93 | I146: 512.02 | J146: 522.03 | K146: 502 | L146: 476.9 | M146: 15.40133
A147: 138 | B147: MARUTI | C147: 6769.05 | D147: 6842.97 | E147: 6656.08 | F147: 6543.12 | G147: 6356.23 | H147: 6955.93 | I147: 7142.82 | J147: 7255.78 | K147: 7029.85 | L147: 6730 | M147: 24.69925
A148: 139 | B148: MFSL | C148: 779.15 | D148: 777.48 | E148: 756.72 | F148: 734.28 | G148: 713.52 | H148: 799.92 | I148: 820.68 | J148: 843.12 | K148: 798.25 | L148: 755.05 | M148: 9.8121
A149: 140 | B149: MINDTREE | C149: 3858.85 | D149: 3839.58 | E149: 3789.27 | F149: 3719.68 | G149: 3669.37 | H149: 3909.17 | I149: 3959.48 | J149: 4029.07 | K149: 3889.9 | L149: 3770 | M149: 5.1009
A150: 141 | B150: MPHASIS | C150: 3126.4 | D150: 3138.77 | E150: 3087.63 | F150: 3048.87 | G150: 2997.73 | H150: 3177.53 | I150: 3228.67 | J150: 3267.43 | K150: 3189.9 | L150: 3100 | M150: 8.26638
A151: 142 | B151: MUTHOOTFIN | C151: 1350.3 | D151: 1357.43 | E151: 1335.92 | F151: 1321.53 | G151: 1300.02 | H151: 1371.82 | I151: 1393.33 | J151: 1407.72 | K151: 1378.95 | L151: 1343.05 | M151: 7.31166
A152: 143 | B152: NATCOPHARM | C152: 844.35 | D152: 840.67 | E152: 826.33 | F152: 808.32 | G152: 793.98 | H152: 858.68 | I152: 873.02 | J152: 891.03 | K152: 855 | L152: 822.65 | M152: 2.05787
A153: 144 | B153: NMDC | C153: 153.05 | D153: 151.17 | E153: 148.48 | F153: 143.92 | G153: 141.23 | H153: 155.73 | I153: 158.42 | J153: 162.98 | K153: 153.85 | L153: 146.6 | M153: 122.26489
A154: 145 | B154: NTPC | C154: 130.05 | D154: 129.15 | E154: 127.80 | F154: 125.55 | G154: 124.20 | H154: 131.40 | I154: 132.75 | J154: 135.00 | K154: 130.5 | L154: 126.9 | M154: 149.85637
A155: 146 | B155: NATIONALUM | C155: 127.1 | D155: 125.75 | E155: 123.45 | F155: 119.80 | G155: 117.50 | H155: 129.40 | I155: 131.70 | J155: 135.35 | K155: 128.05 | L155: 122.1 | M155: 392.61391
A156: 147 | B156: NAVINFLUOR | C156: 3550.45 | D156: 3536.52 | E156: 3435.93 | F156: 3321.42 | G156: 3220.83 | H156: 3651.03 | I156: 3751.62 | J156: 3866.13 | K156: 3637.1 | L156: 3422 | M156: 2.1353
A157: 148 | B157: NESTLEIND | C157: 17342.05 | D157: 17263.27 | E157: 17118.78 | F157: 16895.52 | G157: 16751.03 | H157: 17486.53 | I157: 17631.02 | J157: 17854.28 | K157: 17407.75 | L157: 17040 | M157: 0.66542
A158: 149 | B158: NAM-INDIA | C158: 289.65 | D158: 290.15 | E158: 283.30 | F158: 276.95 | G158: 270.10 | H158: 296.50 | I158: 303.35 | J158: 309.70 | K158: 297 | L158: 283.8 | M158: 6.01352
A159: 150 | B159: OBEROIRLTY | C159: 797.35 | D159: 805.45 | E159: 777.90 | F159: 758.45 | G159: 730.90 | H159: 824.90 | I159: 852.45 | J159: 871.90 | K159: 833 | L159: 786 | M159: 11.24903
A160: 151 | B160: ONGC | C160: 186.95 | D160: 181.28 | E160: 172.77 | F160: 158.58 | G160: 150.07 | H160: 195.47 | I160: 203.98 | J160: 218.17 | K160: 189.8 | L160: 167.1 | M160: 1325.38155
A161: 152 | B161: OIL | C161: 249.2 | D161: 250.63 | E161: 243.87 | F161: 238.53 | G161: 231.77 | H161: 255.97 | I161: 262.73 | J161: 268.07 | K161: 257.4 | L161: 245.3 | M161: 67.88037
A162: 153 | B162: PIIND | C162: 2406.3 | D162: 2395.17 | E162: 2362.43 | F162: 2318.57 | G162: 2285.83 | H162: 2439.03 | I162: 2471.77 | J162: 2515.63 | K162: 2427.9 | L162: 2351.3 | M162: 1.80365
A163: 154 | B163: PAGEIND | C163: 39914.3 | D163: 39980.18 | E163: 39561.37 | F163: 39208.43 | G163: 38789.62 | H163: 40333.12 | I163: 40751.93 | J163: 41104.87 | K163: 40399 | L163: 39627.25 | M163: 0.22782
A164: 155 | B164: PETRONET | C164: 218.2 | D164: 216.80 | E164: 213.60 | F164: 209.00 | G164: 205.80 | H164: 221.40 | I164: 224.60 | J164: 229.20 | K164: 220 | L164: 212.2 | M164: 34.94236
A165: 156 | B165: PFIZER | C165: 4266.8 | D165: 4276.02 | E165: 4178.08 | F165: 4089.37 | G165: 3991.43 | H165: 4364.73 | I165: 4462.67 | J165: 4551.38 | K165: 4373.95 | L165: 4187.3 | M165: 0.26387
A166: 157 | B166: PIDILITIND | C166: 2164.65 | D166: 2177.27 | E166: 2131.68 | F166: 2098.72 | G166: 2053.13 | H166: 2210.23 | I166: 2255.82 | J166: 2288.78 | K166: 2222.85 | L166: 2144.3 | M166: 7.44449
A167: 158 | B167: PEL | C167: 1886.6 | D167: 1925.68 | E167: 1826.42 | F167: 1766.23 | G167: 1666.97 | H167: 1985.87 | I167: 2085.13 | J167: 2145.32 | K167: 2024.95 | L167: 1865.5 | M167: 11.52943
A168: 159 | B168: POLYCAB | C168: 2202.15 | D168: 2200.70 | E168: 2163.45 | F168: 2124.75 | G168: 2087.50 | H168: 2239.40 | I168: 2276.65 | J168: 2315.35 | K168: 2237.95 | L168: 2162 | M168: 4.32285
A169: 160 | B169: PFC | C169: 106 | D169: 106.08 | E169: 104.32 | F169: 102.63 | G169: 100.87 | H169: 107.77 | I169: 109.53 | J169: 111.22 | K169: 107.85 | L169: 104.4 | M169: 56.22313
A170: 161 | B170: POWERGRID | C170: 212.8 | D170: 212.28 | E170: 209.37 | F170: 205.93 | G170: 203.02 | H170: 215.72 | I170: 218.63 | J170: 222.07 | K170: 215.2 | L170: 208.85 | M170: 132.2674
A171: 162 | B171: PRESTIGE | C171: 405.8 | D171: 411.03 | E171: 395.92 | F171: 386.03 | G171: 370.92 | H171: 420.92 | I171: 436.03 | J171: 445.92 | K171: 426.15 | L171: 401.15 | M171: 7.77113
A172: 163 | B172: PGHH | C172: 14099.4 | D172: 14353.13 | E172: 13746.27 | F172: 13393.13 | G172: 12786.27 | H172: 14706.27 | I172: 15313.13 | J172: 15666.27 | K172: 14960 | L172: 14000 | M172: 0.08822
A173: 164 | B173: PNB | C173: 34.2 | D173: 34.08 | E173: 33.47 | F173: 32.73 | G173: 32.12 | H173: 34.82 | I173: 35.43 | J173: 36.17 | K173: 34.7 | L173: 33.35 | M173: 620.92259
A174: 165 | B174: RBLBANK | C174: 121.85 | D174: 121.72 | E174: 118.23 | F174: 114.62 | G174: 111.13 | H174: 125.33 | I174: 128.82 | J174: 132.43 | K174: 125.2 | L174: 118.1 | M174: 163.08304
A175: 166 | B175: RECLTD | C175: 120.7 | D175: 120.75 | E175: 119.10 | F175: 117.50 | G175: 115.85 | H175: 122.35 | I175: 124.00 | J175: 125.60 | K175: 122.4 | L175: 119.15 | M175: 39.37409
A176: 167 | B176: RELIANCE | C176: 2239.55 | D176: 2257.88 | E176: 2203.67 | F176: 2167.78 | G176: 2113.57 | H176: 2293.77 | I176: 2347.98 | J176: 2383.87 | K176: 2312.1 | L176: 2222 | M176: 82.99295
A177: 168 | B177: SBICARD | C177: 730.55 | D177: 726.27 | E177: 716.53 | F177: 702.52 | G177: 692.78 | H177: 740.28 | I177: 750.02 | J177: 764.03 | K177: 736 | L177: 712.25 | M177: 12.68569
A178: 169 | B178: SBILIFE | C178: 1028.9 | D178: 1033.57 | E178: 1018.33 | F178: 1007.77 | G178: 992.53 | H178: 1044.13 | I178: 1059.37 | J178: 1069.93 | K178: 1048.8 | L178: 1023 | M178: 8.52067
A179: 170 | B179: SRF | C179: 2153.3 | D179: 2149.77 | E179: 2109.53 | F179: 2065.77 | G179: 2025.53 | H179: 2193.53 | I179: 2233.77 | J179: 2277.53 | K179: 2190 | L179: 2106 | M179: 7.21602
A180: 171 | B180: SANOFI | C180: 7021.25 | D180: 7054.78 | E180: 6969.57 | F180: 6917.88 | G180: 6832.67 | H180: 7106.47 | I180: 7191.68 | J180: 7243.37 | K180: 7140 | L180: 7003.1 | M180: 0.26253
A181: 172 | B181: SHREECEM | C181: 21990.35 | D181: 22003.50 | E181: 21636.85 | F181: 21283.35 | G181: 20916.70 | H181: 22357.00 | I181: 22723.65 | J181: 23077.15 | K181: 22370.15 | L181: 21650 | M181: 0.55412
A182: 173 | B182: SRTRANSFIN | C182: 1021.3 | D182: 1032.48 | E182: 1005.12 | F182: 988.93 | G182: 961.57 | H182: 1048.67 | I182: 1076.03 | J182: 1092.22 | K182: 1059.85 | L182: 1016.3 | M182: 9.80312
A183: 174 | B183: SIEMENS | C183: 2220.7 | D183: 2232.92 | E183: 2187.78 | F183: 2154.87 | G183: 2109.73 | H183: 2265.83 | I183: 2310.97 | J183: 2343.88 | K183: 2278.05 | L183: 2200 | M183: 1.8739
A184: 175 | B184: SBIN | C184: 440.3 | D184: 442.57 | E184: 431.18 | F184: 422.07 | G184: 410.68 | H184: 451.68 | I184: 463.07 | J184: 472.18 | K184: 453.95 | L184: 433.45 | M184: 337.20472
A185: 176 | B185: SAIL | C185: 98 | D185: 97.33 | E185: 95.52 | F185: 93.03 | G185: 91.22 | H185: 99.82 | I185: 101.63 | J185: 104.12 | K185: 99.15 | L185: 94.85 | M185: 386.17536
A186: 177 | B186: SUNPHARMA | C186: 822.65 | D186: 820.25 | E186: 811.50 | F186: 800.35 | G186: 791.60 | H186: 831.40 | I186: 840.15 | J186: 851.30 | K186: 829 | L186: 809.1 | M186: 30.65234
A187: 178 | B187: SUNTV | C187: 438.1 | D187: 434.82 | E187: 428.28 | F187: 418.47 | G187: 411.93 | H187: 444.63 | I187: 451.17 | J187: 460.98 | K187: 441.35 | L187: 425 | M187: 9.88692
A188: 179 | B188: SYNGENE | C188: 537.45 | D188: 532.60 | E188: 523.70 | F188: 509.95 | G188: 501.05 | H188: 546.35 | I188: 555.25 | J188: 569.00 | K188: 541.5 | L188: 518.85 | M188: 3.25148
A189: 180 | B189: TVSMOTOR | C189: 530.1 | D189: 529.03 | E189: 514.07 | F189: 498.03 | G189: 483.07 | H189: 545.07 | I189: 560.03 | J189: 576.07 | K189: 544 | L189: 513 | M189: 25.81507
A190: 181 | B190: TATACHEM | C190: 848.75 | D190: 845.65 | E190: 834.20 | F190: 819.65 | G190: 808.20 | H190: 860.20 | I190: 871.65 | J190: 886.20 | K190: 857.1 | L190: 831.1 | M190: 12.1333
A191: 182 | B191: TATACOMM | C191: 1130.05 | D191: 1119.03 | E191: 1096.02 | F191: 1061.98 | G191: 1038.97 | H191: 1153.07 | I191: 1176.08 | J191: 1210.12 | K191: 1142.05 | L191: 1085 | M191: 4.18415
A192: 183 | B192: TCS | C192: 3484.9 | D192: 3488.15 | E192: 3428.30 | F192: 3371.70 | G192: 3311.85 | H192: 3544.75 | I192: 3604.60 | J192: 3661.20 | K192: 3548 | L192: 3431.55 | M192: 30.5413
A193: 184 | B193: TATACONSUM | C193: 659.85 | D193: 661.18 | E193: 648.87 | F193: 637.88 | G193: 625.57 | H193: 672.17 | I193: 684.48 | J193: 695.47 | K193: 673.5 | L193: 650.2 | M193: 21.37318
A194: 185 | B194: TATAELXSI | C194: 6554.75 | D194: 6552.25 | E194: 6467.50 | F194: 6380.25 | G194: 6295.50 | H194: 6639.50 | I194: 6724.25 | J194: 6811.50 | K194: 6637 | L194: 6465 | M194: 1.71241
A195: 186 | B195: TATAMOTORS | C195: 394 | D195: 394.42 | E195: 387.08 | F195: 380.17 | G195: 372.83 | H195: 401.33 | I195: 408.67 | J195: 415.58 | K195: 401.75 | L195: 387.5 | M195: 448.36205
A196: 187 | B196: TATAPOWER | C196: 216.2 | D196: 216.05 | E196: 212.40 | F196: 208.60 | G196: 204.95 | H196: 219.85 | I196: 223.50 | J196: 227.30 | K196: 219.7 | L196: 212.25 | M196: 234.98823
A197: 188 | B197: TATASTEEL | C197: 1291.9 | D197: 1285.90 | E197: 1270.00 | F197: 1248.10 | G197: 1232.20 | H197: 1307.80 | I197: 1323.70 | J197: 1345.60 | K197: 1301.8 | L197: 1264 | M197: 110.40001
A198: 189 | B198: TECHM | C198: 1424.1 | D198: 1433.05 | E198: 1402.10 | F198: 1380.10 | G198: 1349.15 | H198: 1455.05 | I198: 1486.00 | J198: 1508.00 | K198: 1464 | L198: 1411.05 | M198: 33.41715
A199: 190 | B199: RAMCOCEM | C199: 699.3 | D199: 704.13 | E199: 687.37 | F199: 675.43 | G199: 658.67 | H199: 716.07 | I199: 732.83 | J199: 744.77 | K199: 720.9 | L199: 692.2 | M199: 8.82093
A200: 191 | B200: TITAN | C200: 2389.7 | D200: 2379.88 | E200: 2339.82 | F200: 2289.93 | G200: 2249.87 | H200: 2429.77 | I200: 2469.83 | J200: 2519.72 | K200: 2419.95 | L200: 2330 | M200: 15.45686
A201: 192 | B201: TORNTPHARM | C201: 2698.55 | D201: 2701.68 | E201: 2657.87 | F201: 2617.18 | G201: 2573.37 | H201: 2742.37 | I201: 2786.18 | J201: 2826.87 | K201: 2745.5 | L201: 2661 | M201: 1.30931
A202: 193 | B202: TORNTPOWER | C202: 465.55 | D202: 462.42 | E202: 451.58 | F202: 437.62 | G202: 426.78 | H202: 476.38 | I202: 487.22 | J202: 501.18 | K202: 473.25 | L202: 448.45 | M202: 2.38804
A203: 194 | B203: TRENT | C203: 1064.2 | D203: 1061.40 | E203: 1042.80 | F203: 1021.40 | G203: 1002.80 | H203: 1082.80 | I203: 1101.40 | J203: 1122.80 | K203: 1080 | L203: 1040 | M203: 3.72706
A204: 195 | B204: UPL | C204: 731.9 | D204: 717.55 | E204: 700.10 | F204: 668.30 | G204: 650.85 | H204: 749.35 | I204: 766.80 | J204: 798.60 | K204: 735 | L204: 685.75 | M204: 69.69575
A205: 196 | B205: ULTRACEMCO | C205: 5698.1 | D205: 5770.68 | E205: 5612.07 | F205: 5526.03 | G205: 5367.42 | H205: 5856.72 | I205: 6015.33 | J205: 6101.37 | K205: 5929.3 | L205: 5684.65 | M205: 12.80108
... 29 more rows

Sheet MidCap Intra
L5: Back To Main Page
A6: FOR INTRA DAY TRADING | K6: =Main!B10 -> 2022-03-08
A9: Sr.no | B9: Scrip | C9: CLOSE RATE | D9: Pivot Point | E9: Supports | H9: Resistances
E10: S1 | F10: S2 | G10: S3 | H10: R1 | I10: R2 | J10: R3 | K10: HIGH | L10: LOW | M10: Total Trade Quanity in Lakhs
A11: 1 | B11: 3MINDIA | C11: 19925.95 | D11: 19908.43 | E11: 19617.52 | F11: 19309.08 | G11: 19018.17 | H11: 20216.87 | I11: 20507.78 | J11: 20816.22 | K11: 20199.35 | L11: 19600 | M11: 0.15772
A12: 2 | B12: AARTIDRUGS | C12: 441.8 | D12: 441.38 | E12: 437.77 | F12: 433.73 | G12: 430.12 | H12: 445.42 | I12: 449.03 | J12: 453.07 | K12: 445 | L12: 437.35 | M12: 1.41782
A13: 3 | B13: AARTIIND | C13: 804.85 | D13: 801.78 | E13: 785.62 | F13: 766.38 | G13: 750.22 | H13: 821.02 | I13: 837.18 | J13: 856.42 | K13: 817.95 | L13: 782.55 | M13: 10.30588
A14: 4 | B14: AAVAS | C14: 2600.15 | D14: 2556.68 | E14: 2451.22 | F14: 2302.28 | G14: 2196.82 | H14: 2705.62 | I14: 2811.08 | J14: 2960.02 | K14: 2662.15 | L14: 2407.75 | M14: 2.60192
A15: 5 | B15: ABB | C15: 2108.95 | D15: 2112.65 | E15: 2076.50 | F15: 2044.05 | G15: 2007.90 | H15: 2145.10 | I15: 2181.25 | J15: 2213.70 | K15: 2148.8 | L15: 2080.2 | M15: 1.39363
A16: 6 | B16: ABBOTINDIA | C16: 17415.3 | D16: 17321.83 | E16: 17093.72 | F16: 16772.13 | G16: 16544.02 | H16: 17643.42 | I16: 17871.53 | J16: 18193.12 | K16: 17549.95 | L16: 17000.25 | M16: 0.23513
A17: 7 | B17: ABCAPITAL | C17: 98.6 | D17: 98.73 | E17: 96.72 | F17: 94.83 | G17: 92.82 | H17: 100.62 | I17: 102.63 | J17: 104.52 | K17: 100.75 | L17: 96.85 | M17: 53.63013
A18: 8 | B18: ABFRL | C18: 261.35 | D18: 259.12 | E18: 254.23 | F18: 247.12 | G18: 242.23 | H18: 266.23 | I18: 271.12 | J18: 278.23 | K18: 264 | L18: 252 | M18: 24.74598
A19: 9 | B19: ACC | C19: 1950.15 | D19: 1942.72 | E19: 1907.43 | F19: 1864.72 | G19: 1829.43 | H19: 1985.43 | I19: 2020.72 | J19: 2063.43 | K19: 1978 | L19: 1900 | M19: 5.36549
A20: 10 | B20: ADANIENT | C20: 1564.05 | D20: 1565.12 | E20: 1538.23 | F20: 1512.42 | G20: 1485.53 | H20: 1590.93 | I20: 1617.82 | J20: 1643.63 | K20: 1592 | L20: 1539.3 | M20: 15.08821
A21: 11 | B21: ADANIGREEN | C21: 1803.75 | D21: 1822.45 | E21: 1765.40 | F21: 1727.05 | G21: 1670.00 | H21: 1860.80 | I21: 1917.85 | J21: 1956.20 | K21: 1879.5 | L21: 1784.1 | M21: 6.36784
A22: 12 | B22: ADANIPORTS | C22: 677.8 | D22: 677.68 | E22: 663.67 | F22: 649.53 | G22: 635.52 | H22: 691.82 | I22: 705.83 | J22: 719.97 | K22: 691.7 | L22: 663.55 | M22: 48.90958
A23: 13 | B23: ADANITRANS | C23: 2207.35 | D23: 2259.80 | E23: 2154.60 | F23: 2101.85 | G23: 1996.65 | H23: 2312.55 | I23: 2417.75 | J23: 2470.50 | K23: 2365 | L23: 2207.05 | M23: 2.26577
A24: 14 | B24: ADVENZYMES | C24: 300.5 | D24: 302.17 | E24: 292.33 | F24: 284.17 | G24: 274.33 | H24: 310.33 | I24: 320.17 | J24: 328.33 | K24: 312 | L24: 294 | M24: 2.2599
A25: 15 | B25: AEGISCHEM | C25: 194.5 | D25: 195.67 | E25: 188.38 | F25: 182.27 | G25: 174.98 | H25: 201.78 | I25: 209.07 | J25: 215.18 | K25: 202.95 | L25: 189.55 | M25: 11.96745
A26: 16 | B26: AFFLE | C26: 1148 | D26: 1140.50 | E26: 1116.00 | F26: 1084.00 | G26: 1059.50 | H26: 1172.50 | I26: 1197.00 | J26: 1229.00 | K26: 1165 | L26: 1108.5 | M26: 3.26917
A27: 17 | B27: AIAENG | C27: 1586.45 | D27: 1553.17 | E27: 1508.33 | F27: 1430.22 | G27: 1385.38 | H27: 1631.28 | I27: 1676.12 | J27: 1754.23 | K27: 1598 | L27: 1475.05 | M27: 0.69813
A28: 18 | B28: AJANTPHARM | C28: 1705.4 | D28: 1693.87 | E28: 1642.68 | F28: 1579.97 | G28: 1528.78 | H28: 1756.58 | I28: 1807.77 | J28: 1870.48 | K28: 1745.05 | L28: 1631.15 | M28: 0.55593
A29: 19 | B29: ALEMBICLTD | C29: 81.2 | D29: 81.08 | E29: 80.17 | F29: 79.13 | G29: 78.22 | H29: 82.12 | I29: 83.03 | J29: 84.07 | K29: 82 | L29: 80.05 | M29: 2.26153
A30: 20 | B30: ALKEM | C30: 3261.3 | D30: 3244.60 | E30: 3124.55 | F30: 2987.80 | G30: 2867.75 | H30: 3381.35 | I30: 3501.40 | J30: 3638.15 | K30: 3364.65 | L30: 3107.85 | M30: 1.03285
A31: 21 | B31: ALKYLAMINE | C31: 2801.65 | D31: 2795.58 | E31: 2766.17 | F31: 2730.68 | G31: 2701.27 | H31: 2831.07 | I31: 2860.48 | J31: 2895.97 | K31: 2825 | L31: 2760.1 | M31: 0.4919
A32: 22 | B32: ALOKINDS | C32: 23.25 | D32: 23.25 | E32: 22.95 | F32: 22.65 | G32: 22.35 | H32: 23.55 | I32: 23.85 | J32: 24.15 | K32: 23.55 | L32: 22.95 | M32: 110.1365
A33: 23 | B33: AMARAJABAT | C33: 547.7 | D33: 545.85 | E33: 538.85 | F33: 530.00 | G33: 523.00 | H33: 554.70 | I33: 561.70 | J33: 570.55 | K33: 552.85 | L33: 537 | M33: 5.14419
A34: 24 | B34: AMBER | C34: 3360 | D34: 3396.67 | E34: 3301.33 | F34: 3242.67 | G34: 3147.33 | H34: 3455.33 | I34: 3550.67 | J34: 3609.33 | K34: 3492 | L34: 3338 | M34: 0.53656
A35: 25 | B35: AMBUJACEM | C35: 281.2 | D35: 282.73 | E35: 276.47 | F35: 271.73 | G35: 265.47 | H35: 287.47 | I35: 293.73 | J35: 298.47 | K35: 289 | L35: 278 | M35: 69.36569
A36: 26 | B36: ANGELONE | C36: 1255.5 | D36: 1265.12 | E36: 1240.38 | F36: 1225.27 | G36: 1200.53 | H36: 1280.23 | I36: 1304.97 | J36: 1320.08 | K36: 1289.85 | L36: 1250 | M36: 3.33848
A37: 27 | B37: ANURAS | C37: 781.75 | D37: 786.15 | E37: 772.30 | F37: 762.85 | G37: 749.00 | H37: 795.60 | I37: 809.45 | J37: 818.90 | K37: 800 | L37: 776.7 | M37: 0.40541
A38: 28 | B38: APLAPOLLO | C38: 830.95 | D38: 831.95 | E38: 815.90 | F38: 800.85 | G38: 784.80 | H38: 847.00 | I38: 863.05 | J38: 878.10 | K38: 848 | L38: 816.9 | M38: 4.08126
A39: 29 | B39: APLLTD | C39: 709.65 | D39: 706.68 | E39: 698.37 | F39: 687.08 | G39: 678.77 | H39: 717.97 | I39: 726.28 | J39: 737.57 | K39: 715 | L39: 695.4 | M39: 1.14566
A40: 30 | B40: APOLLOHOSP | C40: 4664.35 | D40: 4660.33 | E40: 4587.87 | F40: 4511.38 | G40: 4438.92 | H40: 4736.82 | I40: 4809.28 | J40: 4885.77 | K40: 4732.8 | L40: 4583.85 | M40: 6.43012
A41: 31 | B41: APOLLOTYRE | C41: 173.8 | D41: 171.52 | E41: 167.53 | F41: 161.27 | G41: 157.28 | H41: 177.78 | I41: 181.77 | J41: 188.03 | K41: 175.5 | L41: 165.25 | M41: 46.32142
A42: 32 | B42: ASAHIINDIA | C42: 395.95 | D42: 396.03 | E42: 381.97 | F42: 367.98 | G42: 353.92 | H42: 410.02 | I42: 424.08 | J42: 438.07 | K42: 410.1 | L42: 382.05 | M42: 3.67603
A43: 33 | B43: ASHOKA | C43: 86.4 | D43: 87.13 | E43: 85.27 | F43: 84.13 | G43: 82.27 | H43: 88.27 | I43: 90.13 | J43: 91.27 | K43: 89 | L43: 86 | M43: 7.63309
A44: 34 | B44: ASHOKLEY | C44: 99.15 | D44: 99.95 | E44: 96.00 | F44: 92.85 | G44: 88.90 | H44: 103.10 | I44: 107.05 | J44: 110.20 | K44: 103.9 | L44: 96.8 | M44: 402.1268
A45: 35 | B45: ASIANPAINT | C45: 2708.45 | D45: 2678.58 | E45: 2629.22 | F45: 2549.98 | G45: 2500.62 | H45: 2757.82 | I45: 2807.18 | J45: 2886.42 | K45: 2727.95 | L45: 2599.35 | M45: 32.3376
A46: 36 | B46: ASTERDM | C46: 161.9 | D46: 161.83 | E46: 158.17 | F46: 154.43 | G46: 150.77 | H46: 165.57 | I46: 169.23 | J46: 172.97 | K46: 165.5 | L46: 158.1 | M46: 4.6173
A47: 37 | B47: ASTRAL | C47: 1828.05 | D47: 1822.03 | E47: 1791.07 | F47: 1754.08 | G47: 1723.12 | H47: 1859.02 | I47: 1889.98 | J47: 1926.97 | K47: 1853 | L47: 1785.05 | M47: 2.83897
A48: 38 | B48: ASTRAZEN | C48: 2607.45 | D48: 2613.32 | E48: 2586.13 | F48: 2564.82 | G48: 2537.63 | H48: 2634.63 | I48: 2661.82 | J48: 2683.13 | K48: 2640.5 | L48: 2592 | M48: 0.08312
A49: 39 | B49: ATGL | C49: 1714.95 | D49: 1739.90 | E49: 1690.00 | F49: 1665.05 | G49: 1615.15 | H49: 1764.85 | I49: 1814.75 | J49: 1839.70 | K49: 1789.8 | L49: 1714.95 | M49: 1.62241
A50: 40 | B50: ATUL | C50: 8600.8 | D50: 8500.07 | E50: 8316.98 | F50: 8033.17 | G50: 7850.08 | H50: 8783.88 | I50: 8966.97 | J50: 9250.78 | K50: 8683.15 | L50: 8216.25 | M50: 0.25788
A51: 41 | B51: AUBANK | C51: 1064.9 | D51: 1071.57 | E51: 1045.18 | F51: 1025.47 | G51: 999.08 | H51: 1091.28 | I51: 1117.67 | J51: 1137.38 | K51: 1097.95 | L51: 1051.85 | M51: 16.26925
A52: 42 | B52: AUROPHARMA | C52: 608.95 | D52: 602.20 | E52: 591.00 | F52: 573.05 | G52: 561.85 | H52: 620.15 | I52: 631.35 | J52: 649.30 | K52: 613.4 | L52: 584.25 | M52: 20.48437
A53: 43 | B53: AVANTIFEED | C53: 429.45 | D53: 437.30 | E53: 416.55 | F53: 403.65 | G53: 382.90 | H53: 450.20 | I53: 470.95 | J53: 483.85 | K53: 458.05 | L53: 424.4 | M53: 8.87529
A54: 44 | B54: AXISBANK | C54: 667.55 | D54: 676.05 | E54: 647.10 | F54: 626.65 | G54: 597.70 | H54: 696.50 | I54: 725.45 | J54: 745.90 | K54: 705 | L54: 655.6 | M54: 201.47061
A55: 45 | B55: BAJAJ-AUTO | C55: 3234.65 | D55: 3212.88 | E55: 3146.77 | F55: 3058.88 | G55: 2992.77 | H55: 3300.77 | I55: 3366.88 | J55: 3454.77 | K55: 3279 | L55: 3125 | M55: 3.35205
A56: 46 | B56: BAJAJCON | C56: 158.6 | D56: 159.10 | E56: 156.75 | F56: 154.90 | G56: 152.55 | H56: 160.95 | I56: 163.30 | J56: 165.15 | K56: 161.45 | L56: 157.25 | M56: 3.03235
A57: 47 | B57: BAJAJELEC | C57: 1119.7 | D57: 1097.13 | E57: 1054.27 | F57: 988.83 | G57: 945.97 | H57: 1162.57 | I57: 1205.43 | J57: 1270.87 | K57: 1140 | L57: 1031.7 | M57: 0.91917
A58: 48 | B58: BAJAJFINSV | C58: 14373.2 | D58: 14389.03 | E58: 13784.07 | F58: 13194.93 | G58: 12589.97 | H58: 14978.17 | I58: 15583.13 | J58: 16172.27 | K58: 14994 | L58: 13799.9 | M58: 3.71521
A59: 49 | B59: BAJAJHLDNG | C59: 4846.8 | D59: 4869.43 | E59: 4729.42 | F59: 4612.03 | G59: 4472.02 | H59: 4986.82 | I59: 5126.83 | J59: 5244.22 | K59: 5009.45 | L59: 4752.05 | M59: 0.43534
A60: 50 | B60: BAJFINANCE | C60: 6125 | D60: 6198.33 | E60: 6026.67 | F60: 5928.33 | G60: 5756.67 | H60: 6296.67 | I60: 6468.33 | J60: 6566.67 | K60: 6370 | L60: 6100 | M60: 28.43588
A61: 51 | B61: BALAMINES | C61: 2730.85 | D61: 2732.93 | E61: 2690.67 | F61: 2650.48 | G61: 2608.22 | H61: 2773.12 | I61: 2815.38 | J61: 2855.57 | K61: 2775.2 | L61: 2692.75 | M61: 0.53814
A62: 52 | B62: BALKRISIND | C62: 1824.8 | D62: 1785.45 | E62: 1729.90 | F62: 1635.00 | G62: 1579.45 | H62: 1880.35 | I62: 1935.90 | J62: 2030.80 | K62: 1841 | L62: 1690.55 | M62: 8.09797
A63: 53 | B63: BALRAMCHIN | C63: 443.8 | D63: 433.97 | E63: 419.03 | F63: 394.27 | G63: 379.33 | H63: 458.73 | I63: 473.67 | J63: 498.43 | K63: 448.9 | L63: 409.2 | M63: 45.87312
A64: 54 | B64: BANDHANBNK | C64: 253.85 | D64: 256.57 | E64: 247.68 | F64: 241.52 | G64: 232.63 | H64: 262.73 | I64: 271.62 | J64: 277.78 | K64: 265.45 | L64: 250.4 | M64: 82.83275
A65: 55 | B65: BANKBARODA | C65: 92.8 | D65: 94.77 | E65: 89.03 | F65: 85.27 | G65: 79.53 | H65: 98.53 | I65: 104.27 | J65: 108.03 | K65: 100.5 | L65: 91 | M65: 846.78404
A66: 56 | B66: BANKINDIA | C66: 46.25 | D66: 46.13 | E66: 45.17 | F66: 44.08 | G66: 43.12 | H66: 47.22 | I66: 48.18 | J66: 49.27 | K66: 47.1 | L66: 45.05 | M66: 52.00513
A67: 57 | B67: BASF | C67: 2629.3 | D67: 2645.18 | E67: 2606.12 | F67: 2582.93 | G67: 2543.87 | H67: 2668.37 | I67: 2707.43 | J67: 2730.62 | K67: 2684.25 | L67: 2622 | M67: 0.43852
A68: 58 | B68: BATAINDIA | C68: 1699.05 | D68: 1690.60 | E68: 1662.50 | F68: 1625.95 | G68: 1597.85 | H68: 1727.15 | I68: 1755.25 | J68: 1791.80 | K68: 1718.7 | L68: 1654.05 | M68: 2.74726
A69: 59 | B69: BAYERCROP | C69: 4316.55 | D69: 4330.18 | E69: 4271.42 | F69: 4226.28 | G69: 4167.52 | H69: 4375.32 | I69: 4434.08 | J69: 4479.22 | K69: 4388.95 | L69: 4285.05 | M69: 0.0764
A70: 60 | B70: BBTC | C70: 878.2 | D70: 883.43 | E70: 854.32 | F70: 830.43 | G70: 801.32 | H70: 907.32 | I70: 936.43 | J70: 960.32 | K70: 912.55 | L70: 859.55 | M70: 0.87314
A71: 61 | B71: BDL | C71: 444.3 | D71: 446.33 | E71: 436.62 | F71: 428.93 | G71: 419.22 | H71: 454.02 | I71: 463.73 | J71: 471.42 | K71: 456.05 | L71: 438.65 | M71: 7.36732
A72: 62 | B72: BEL | C72: 214.25 | D72: 213.07 | E72: 207.73 | F72: 201.22 | G72: 195.88 | H72: 219.58 | I72: 224.92 | J72: 231.43 | K72: 218.4 | L72: 206.55 | M72: 127.48011
A73: 63 | B73: BEML | C73: 1440.05 | D73: 1454.68 | E73: 1402.37 | F73: 1364.68 | G73: 1312.37 | H73: 1492.37 | I73: 1544.68 | J73: 1582.37 | K73: 1507 | L73: 1417 | M73: 1.36907
A74: 64 | B74: BERGEPAINT | C74: 628.75 | D74: 631.18 | E74: 620.92 | F74: 613.08 | G74: 602.82 | H74: 639.02 | I74: 649.28 | J74: 657.12 | K74: 641.45 | L74: 623.35 | M74: 11.36428
A75: 65 | B75: BHARATFORG | C75: 612.65 | D75: 612.87 | E75: 602.98 | F75: 593.32 | G75: 583.43 | H75: 622.53 | I75: 632.42 | J75: 642.08 | K75: 622.75 | L75: 603.2 | M75: 21.97227
A76: 66 | B76: BHARATRAS | C76: 11515.3 | D76: 11631.77 | E76: 11283.53 | F76: 11051.77 | G76: 10703.53 | H76: 11863.53 | I76: 12211.77 | J76: 12443.53 | K76: 11980 | L76: 11400 | M76: 0.02095
A77: 67 | B77: BHARTIARTL | C77: 675.4 | D77: 664.58 | E77: 649.82 | F77: 624.23 | G77: 609.47 | H77: 690.17 | I77: 704.93 | J77: 730.52 | K77: 679.35 | L77: 639 | M77: 126.15451
A78: 68 | B78: BHEL | C78: 48.75 | D78: 48.47 | E78: 47.78 | F78: 46.82 | G78: 46.13 | H78: 49.43 | I78: 50.12 | J78: 51.08 | K78: 49.15 | L78: 47.5 | M78: 256.8651
A79: 69 | B79: BIOCON | C79: 330 | D79: 327.03 | E79: 322.07 | F79: 314.13 | G79: 309.17 | H79: 334.97 | I79: 339.93 | J79: 347.87 | K79: 332 | L79: 319.1 | M79: 33.43221
A80: 70 | B80: BIRLACORPN | C80: 1040.05 | D80: 1023.62 | E80: 998.53 | F80: 957.02 | G80: 931.93 | H80: 1065.13 | I80: 1090.22 | J80: 1131.73 | K80: 1048.7 | L80: 982.1 | M80: 1.74475
A81: 71 | B81: BLUEDART | C81: 5537.3 | D81: 5520.52 | E81: 5442.03 | F81: 5346.77 | G81: 5268.28 | H81: 5615.78 | I81: 5694.27 | J81: 5789.53 | K81: 5599 | L81: 5425.25 | M81: 0.12958
A82: 72 | B82: BLUESTARCO | C82: 1008.15 | D82: 1004.22 | E82: 983.48 | F82: 958.82 | G82: 938.08 | H82: 1028.88 | I82: 1049.62 | J82: 1074.28 | K82: 1024.95 | L82: 979.55 | M82: 1.03478
A83: 73 | B83: BOSCHLTD | C83: 14165.95 | D83: 14266.48 | E83: 13953.42 | F83: 13740.88 | G83: 13427.82 | H83: 14479.02 | I83: 14792.08 | J83: 15004.62 | K83: 14579.55 | L83: 14053.95 | M83: 0.28624
A84: 74 | B84: BPCL | C84: 338 | D84: 338.93 | E84: 330.87 | F84: 323.73 | G84: 315.67 | H84: 346.07 | I84: 354.13 | J84: 361.27 | K84: 347 | L84: 331.8 | M84: 99.68
A85: 75 | B85: BRIGADE | C85: 435.6 | D85: 446.20 | E85: 418.40 | F85: 401.20 | G85: 373.40 | H85: 463.40 | I85: 491.20 | J85: 508.40 | K85: 474 | L85: 429 | M85: 5.52297
A86: 76 | B86: BRITANNIA | C86: 3153.45 | D86: 3197.52 | E86: 3094.48 | F86: 3035.52 | G86: 2932.48 | H86: 3256.48 | I86: 3359.52 | J86: 3418.48 | K86: 3300.55 | L86: 3138.55 | M86: 7.11477
A87: 77 | B87: BSE | C87: 2057.9 | D87: 2047.63 | E87: 2021.27 | F87: 1984.63 | G87: 1958.27 | H87: 2084.27 | I87: 2110.63 | J87: 2147.27 | K87: 2074 | L87: 2011 | M87: 8.33197
A88: 78 | B88: BSOFT | C88: 431.1 | D88: 432.98 | E88: 422.77 | F88: 414.43 | G88: 404.22 | H88: 441.32 | I88: 451.53 | J88: 459.87 | K88: 443.2 | L88: 424.65 | M88: 31.54297
A89: 79 | B89: INTELLECT | C89: 681.2 | D89: 673.67 | E89: 660.63 | F89: 640.07 | G89: 627.03 | H89: 694.23 | I89: 707.27 | J89: 727.83 | K89: 686.7 | L89: 653.1 | M89: 4.68536
A90: 80 | B90: CAMS | C90: 2387.9 | D90: 2382.20 | E90: 2345.95 | F90: 2304.00 | G90: 2267.75 | H90: 2424.15 | I90: 2460.40 | J90: 2502.35 | K90: 2418.45 | L90: 2340.25 | M90: 1.53229
A91: 81 | B91: CANBK | C91: 200.85 | D91: 200.97 | E91: 196.28 | F91: 191.72 | G91: 187.03 | H91: 205.53 | I91: 210.22 | J91: 214.78 | K91: 205.65 | L91: 196.4 | M91: 155.76434
A92: 82 | B92: CANFINHOME | C92: 542.4 | D92: 539.90 | E92: 522.70 | F92: 503.00 | G92: 485.80 | H92: 559.60 | I92: 576.80 | J92: 596.50 | K92: 557.1 | L92: 520.2 | M92: 8.19961
A93: 83 | B93: CAPLIPOINT | C93: 704.75 | D93: 703.58 | E93: 689.17 | F93: 673.58 | G93: 659.17 | H93: 719.17 | I93: 733.58 | J93: 749.17 | K93: 718 | L93: 688 | M93: 1.06245
A94: 84 | B94: CARBORUNIV | C94: 709.8 | D94: 704.60 | E94: 691.20 | F94: 672.60 | G94: 659.20 | H94: 723.20 | I94: 736.60 | J94: 755.20 | K94: 718 | L94: 686 | M94: 8.90612
A95: 85 | B95: CASTROLIND | C95: 107.25 | D95: 107.10 | E95: 106.20 | F95: 105.15 | G95: 104.25 | H95: 108.15 | I95: 109.05 | J95: 110.10 | K95: 108 | L95: 106.05 | M95: 6.9384
A96: 86 | B96: CCL | C96: 381.95 | D96: 384.72 | E96: 374.48 | F96: 367.02 | G96: 356.78 | H96: 392.18 | I96: 402.42 | J96: 409.88 | K96: 394.95 | L96: 377.25 | M96: 4.28359
A97: 87 | B97: CDSL | C97: 1325.55 | D97: 1327.57 | E97: 1307.98 | F97: 1290.42 | G97: 1270.83 | H97: 1345.13 | I97: 1364.72 | J97: 1382.28 | K97: 1347.15 | L97: 1310 | M97: 4.54444
A98: 88 | B98: CEATLTD | C98: 1009.25 | D98: 1015.73 | E98: 983.52 | F98: 957.78 | G98: 925.57 | H98: 1041.47 | I98: 1073.68 | J98: 1099.42 | K98: 1047.95 | L98: 990 | M98: 2.38455
A99: 89 | B99: CENTRALBK | C99: 17.8 | D99: 17.80 | E99: 17.50 | F99: 17.20 | G99: 16.90 | H99: 18.10 | I99: 18.40 | J99: 18.70 | K99: 18.1 | L99: 17.5 | M99: 27.59436
A100: 90 | B100: CENTURYPLY | C100: 588.4 | D100: 583.82 | E100: 569.28 | F100: 550.17 | G100: 535.63 | H100: 602.93 | I100: 617.47 | J100: 636.58 | K100: 598.35 | L100: 564.7 | M100: 2.24912
A101: 91 | B101: CENTURYTEX | C101: 707.3 | D101: 711.70 | E101: 693.95 | F101: 680.60 | G101: 662.85 | H101: 725.05 | I101: 742.80 | J101: 756.15 | K101: 729.45 | L101: 698.35 | M101: 2.87041
A102: 92 | B102: CERA | C102: 4276.7 | D102: 4315.58 | E102: 4171.17 | F102: 4065.63 | G102: 3921.22 | H102: 4421.12 | I102: 4565.53 | J102: 4671.07 | K102: 4460 | L102: 4210.05 | M102: 0.27932
A103: 93 | B103: CESC | C103: 78.2 | D103: 77.73 | E103: 76.47 | F103: 74.73 | G103: 73.47 | H103: 79.47 | I103: 80.73 | J103: 82.47 | K103: 79 | L103: 76 | M103: 15.84099
A104: 94 | B104: CGCL | C104: 583.35 | D104: 587.78 | E104: 575.57 | F104: 567.78 | G104: 555.57 | H104: 595.57 | I104: 607.78 | J104: 615.57 | K104: 600 | L104: 580 | M104: 2.21811
A105: 95 | B105: CGPOWER | C105: 161.35 | D105: 163.07 | E105: 159.63 | F105: 157.92 | G105: 154.48 | H105: 164.78 | I105: 168.22 | J105: 169.93 | K105: 166.5 | L105: 161.35 | M105: 12.62518
A106: 96 | B106: CHALET | C106: 256.8 | D106: 258.20 | E106: 251.15 | F106: 245.50 | G106: 238.45 | H106: 263.85 | I106: 270.90 | J106: 276.55 | K106: 265.25 | L106: 252.55 | M106: 6.40463
A107: 97 | B107: CHAMBLFERT | C107: 379.6 | D107: 381.52 | E107: 375.23 | F107: 370.87 | G107: 364.58 | H107: 385.88 | I107: 392.17 | J107: 396.53 | K107: 387.8 | L107: 377.15 | M107: 7.71024
A108: 98 | B108: CHOLAFIN | C108: 607.3 | D108: 617.10 | E108: 586.20 | F108: 565.10 | G108: 534.20 | H108: 638.20 | I108: 669.10 | J108: 690.20 | K108: 648 | L108: 596 | M108: 36.84167
A109: 99 | B109: CHOLAHLDNG | C109: 634.1 | D109: 630.72 | E109: 611.78 | F109: 589.47 | G109: 570.53 | H109: 653.03 | I109: 671.97 | J109: 694.28 | K109: 649.65 | L109: 608.4 | M109: 0.49015
A110: 100 | B110: CIPLA | C110: 941.15 | D110: 934.73 | E110: 923.47 | F110: 905.78 | G110: 894.52 | H110: 952.42 | I110: 963.68 | J110: 981.37 | K110: 946 | L110: 917.05 | M110: 26.04231
A111: 101 | B111: COALINDIA | C111: 188.7 | D111: 187.47 | E111: 182.93 | F111: 177.17 | G111: 172.63 | H111: 193.23 | I111: 197.77 | J111: 203.53 | K111: 192 | L111: 181.7 | M111: 416.42776
A112: 102 | B112: COCHINSHIP | C112: 286.1 | D112: 286.23 | E112: 283.47 | F112: 280.83 | G112: 278.07 | H112: 288.87 | I112: 291.63 | J112: 294.27 | K112: 289 | L112: 283.6 | M112: 1.83968
A113: 103 | B113: COFORGE | C113: 4722.4 | D113: 4650.52 | E113: 4553.03 | F113: 4383.67 | G113: 4286.18 | H113: 4819.88 | I113: 4917.37 | J113: 5086.73 | K113: 4748 | L113: 4481.15 | M113: 4.93455
A114: 104 | B114: COLPAL | C114: 1401.25 | D114: 1405.07 | E114: 1386.18 | F114: 1371.12 | G114: 1352.23 | H114: 1420.13 | I114: 1439.02 | J114: 1454.08 | K114: 1423.95 | L114: 1390 | M114: 4.06101
A115: 105 | B115: CONCOR | C115: 573.55 | D115: 571.80 | E115: 563.85 | F115: 554.15 | G115: 546.20 | H115: 581.50 | I115: 589.45 | J115: 599.15 | K115: 579.75 | L115: 562.1 | M115: 16.76862
A116: 106 | B116: COROMANDEL | C116: 759.1 | D116: 758.52 | E116: 742.03 | F116: 724.97 | G116: 708.48 | H116: 775.58 | I116: 792.07 | J116: 809.13 | K116: 775 | L116: 741.45 | M116: 2.6045
A117: 107 | B117: CREDITACC | C117: 655.85 | D117: 658.48 | E117: 642.37 | F117: 628.88 | G117: 612.77 | H117: 671.97 | I117: 688.08 | J117: 701.57 | K117: 674.6 | L117: 645 | M117: 0.42815
A118: 108 | B118: CRISIL | C118: 2636.4 | D118: 2666.55 | E118: 2583.10 | F118: 2529.80 | G118: 2446.35 | H118: 2719.85 | I118: 2803.30 | J118: 2856.60 | K118: 2750 | L118: 2613.25 | M118: 0.45871
A119: 109 | B119: CROMPTON | C119: 376 | D119: 378.00 | E119: 370.50 | F119: 365.00 | G119: 357.50 | H119: 383.50 | I119: 391.00 | J119: 396.50 | K119: 385.5 | L119: 372.5 | M119: 18.06681
A120: 110 | B120: CSBBANK | C120: 207.3 | D120: 208.80 | E120: 199.50 | F120: 191.70 | G120: 182.40 | H120: 216.60 | I120: 225.90 | J120: 233.70 | K120: 218.1 | L120: 201 | M120: 3.87599
A121: 111 | B121: CUB | C121: 110.35 | D121: 112.05 | E121: 107.30 | F121: 104.25 | G121: 99.50 | H121: 115.10 | I121: 119.85 | J121: 122.90 | K121: 116.8 | L121: 109 | M121: 28.87417
A122: 112 | B122: CUMMINSIND | C122: 942.55 | D122: 938.83 | E122: 912.87 | F122: 883.18 | G122: 857.22 | H122: 968.52 | I122: 994.48 | J122: 1024.17 | K122: 964.8 | L122: 909.15 | M122: 4.05357
A123: 113 | B123: CYIENT | C123: 919.75 | D123: 904.85 | E123: 865.90 | F123: 812.05 | G123: 773.10 | H123: 958.70 | I123: 997.65 | J123: 1051.50 | K123: 943.8 | L123: 851 | M123: 10.29195
A124: 114 | B124: DABUR | C124: 505.95 | D124: 511.65 | E124: 496.30 | F124: 486.65 | G124: 471.30 | H124: 521.30 | I124: 536.65 | J124: 546.30 | K124: 527 | L124: 502 | M124: 31.7803
A125: 115 | B125: DALBHARAT | C125: 1331 | D125: 1331.68 | E125: 1289.47 | F125: 1247.93 | G125: 1205.72 | H125: 1373.22 | I125: 1415.43 | J125: 1456.97 | K125: 1373.9 | L125: 1290.15 | M125: 5.53126
A126: 116 | B126: DBL | C126: 245 | D126: 247.32 | E126: 240.88 | F126: 236.77 | G126: 230.33 | H126: 251.43 | I126: 257.87 | J126: 261.98 | K126: 253.75 | L126: 243.2 | M126: 4.97977
A127: 117 | B127: DCBBANK | C127: 69.25 | D127: 69.78 | E127: 68.07 | F127: 66.88 | G127: 65.17 | H127: 70.97 | I127: 72.68 | J127: 73.87 | K127: 71.5 | L127: 68.6 | M127: 9.87347
A128: 118 | B128: DCMSHRIRAM | C128: 955.5 | D128: 970.95 | E128: 935.90 | F128: 916.30 | G128: 881.25 | H128: 990.55 | I128: 1025.60 | J128: 1045.20 | K128: 1006 | L128: 951.35 | M128: 1.18844
A129: 119 | B129: DEEPAKNTR | C129: 1830.65 | D129: 1843.20 | E129: 1797.70 | F129: 1764.75 | G129: 1719.25 | H129: 1876.15 | I129: 1921.65 | J129: 1954.60 | K129: 1888.7 | L129: 1810.25 | M129: 7.81215
A130: 120 | B130: DELTACORP | C130: 250.8 | D130: 249.87 | E130: 245.03 | F130: 239.27 | G130: 234.43 | H130: 255.63 | I130: 260.47 | J130: 266.23 | K130: 254.7 | L130: 244.1 | M130: 29.31763
A131: 121 | B131: DHANI | C131: 69.25 | D131: 70.02 | E131: 67.33 | F131: 65.42 | G131: 62.73 | H131: 71.93 | I131: 74.62 | J131: 76.53 | K131: 72.7 | L131: 68.1 | M131: 63.54722
A132: 122 | B132: DHANUKA | C132: 729.3 | D132: 722.43 | E132: 702.92 | F132: 676.53 | G132: 657.02 | H132: 748.82 | I132: 768.33 | J132: 794.72 | K132: 741.95 | L132: 696.05 | M132: 0.5147
A133: 123 | B133: DIVISLAB | C133: 4074.95 | D133: 4047.98 | E133: 4001.02 | F133: 3927.08 | G133: 3880.12 | H133: 4121.92 | I133: 4168.88 | J133: 4242.82 | K133: 4094.95 | L133: 3974.05 | M133: 5.40735
A134: 124 | B134: DIXON | C134: 4060.65 | D134: 4030.88 | E134: 3966.77 | F134: 3872.88 | G134: 3808.77 | H134: 4124.77 | I134: 4188.88 | J134: 4282.77 | K134: 4095 | L134: 3937 | M134: 2.63177
A135: 125 | B135: DLF | C135: 313.6 | D135: 313.37 | E135: 306.23 | F135: 298.87 | G135: 291.73 | H135: 320.73 | I135: 327.87 | J135: 335.23 | K135: 320.5 | L135: 306 | M135: 110.47929
A136: 126 | B136: DMART | C136: 3991.65 | D136: 4045.82 | E136: 3916.63 | F136: 3841.62 | G136: 3712.43 | H136: 4120.83 | I136: 4250.02 | J136: 4325.03 | K136: 4175 | L136: 3970.8 | M136: 6.94633
A137: 127 | B137: DRREDDY | C137: 3769.4 | D137: 3743.12 | E137: 3694.28 | F137: 3619.17 | G137: 3570.33 | H137: 3818.23 | I137: 3867.07 | J137: 3942.18 | K137: 3791.95 | L137: 3668 | M137: 6.03086
A138: 128 | B138: ECLERX | C138: 2325.65 | D138: 2290.90 | E138: 2196.80 | F138: 2067.95 | G138: 1973.85 | H138: 2419.75 | I138: 2513.85 | J138: 2642.70 | K138: 2385 | L138: 2162.05 | M138: 1.01364
A139: 129 | B139: EDELWEISS | C139: 50.75 | D139: 51.13 | E139: 50.02 | F139: 49.28 | G139: 48.17 | H139: 51.87 | I139: 52.98 | J139: 53.72 | K139: 52.25 | L139: 50.4 | M139: 29.44055
A140: 130 | B140: EICHERMOT | C140: 2259.65 | D140: 2249.32 | E140: 2201.38 | F140: 2143.12 | G140: 2095.18 | H140: 2307.58 | I140: 2355.52 | J140: 2413.78 | K140: 2297.25 | L140: 2191.05 | M140: 15.1343
A141: 131 | B141: EIDPARRY | C141: 403.6 | D141: 401.20 | E141: 395.40 | F141: 387.20 | G141: 381.40 | H141: 409.40 | I141: 415.20 | J141: 423.40 | K141: 407 | L141: 393 | M141: 6.73232
A142: 132 | B142: EIHOTEL | C142: 124.75 | D142: 124.83 | E142: 122.92 | F142: 121.08 | G142: 119.17 | H142: 126.67 | I142: 128.58 | J142: 130.42 | K142: 126.75 | L142: 123 | M142: 4.68025
A143: 133 | B143: ELGIEQUIP | C143: 327.35 | D143: 331.35 | E143: 318.00 | F143: 308.65 | G143: 295.30 | H143: 340.70 | I143: 354.05 | J143: 363.40 | K143: 344.7 | L143: 322 | M143: 4.30775
A144: 134 | B144: EMAMILTD | C144: 453.6 | D144: 455.53 | E144: 443.32 | F144: 433.03 | G144: 420.82 | H144: 465.82 | I144: 478.03 | J144: 488.32 | K144: 467.75 | L144: 445.25 | M144: 8.83023
A145: 135 | B145: ENDURANCE | C145: 1134.35 | D145: 1128.47 | E145: 1088.93 | F145: 1043.52 | G145: 1003.98 | H145: 1173.88 | I145: 1213.42 | J145: 1258.83 | K145: 1168 | L145: 1083.05 | M145: 2.02785
A146: 136 | B146: ENGINERSIN | C146: 64.4 | D146: 64.23 | E146: 62.57 | F146: 60.73 | G146: 59.07 | H146: 66.07 | I146: 67.73 | J146: 69.57 | K146: 65.9 | L146: 62.4 | M146: 13.7592
A147: 137 | B147: EPL | C147: 150 | D147: 151.97 | E147: 147.03 | F147: 144.07 | G147: 139.13 | H147: 154.93 | I147: 159.87 | J147: 162.83 | K147: 156.9 | L147: 149 | M147: 1.60127
A148: 138 | B148: EQUITAS | C148: 101.1 | D148: 102.38 | E148: 98.77 | F148: 96.43 | G148: 92.82 | H148: 104.72 | I148: 108.33 | J148: 110.67 | K148: 106 | L148: 100.05 | M148: 4.0346
A149: 139 | B149: EQUITASBNK | C149: 47.45 | D149: 47.68 | E149: 46.47 | F149: 45.48 | G149: 44.27 | H149: 48.67 | I149: 49.88 | J149: 50.87 | K149: 48.9 | L149: 46.7 | M149: 13.0129
A150: 140 | B150: ERIS | C150: 663.65 | D150: 665.27 | E150: 655.63 | F150: 647.62 | G150: 637.98 | H150: 673.28 | I150: 682.92 | J150: 690.93 | K150: 674.9 | L150: 657.25 | M150: 0.42566
A151: 141 | B151: ESCORTS | C151: 1797.15 | D151: 1798.00 | E151: 1777.15 | F151: 1757.15 | G151: 1736.30 | H151: 1818.00 | I151: 1838.85 | J151: 1858.85 | K151: 1818.85 | L151: 1778 | M151: 13.70571
A152: 142 | B152: EXIDEIND | C152: 141.3 | D152: 141.50 | E152: 139.10 | F152: 136.90 | G152: 134.50 | H152: 143.70 | I152: 146.10 | J152: 148.30 | K152: 143.9 | L152: 139.3 | M152: 30.48239
A153: 143 | B153: FACT | C153: 109.2 | D153: 109.00 | E153: 106.40 | F153: 103.60 | G153: 101.00 | H153: 111.80 | I153: 114.40 | J153: 117.20 | K153: 111.6 | L153: 106.2 | M153: 1.31982
A154: 144 | B154: FDC | C154: 258.4 | D154: 261.10 | E154: 254.80 | F154: 251.20 | G154: 244.90 | H154: 264.70 | I154: 271.00 | J154: 274.60 | K154: 267.4 | L154: 257.5 | M154: 2.33169
A155: 145 | B155: FEDERALBNK | C155: 87.4 | D155: 88.63 | E155: 84.77 | F155: 82.13 | G155: 78.27 | H155: 91.27 | I155: 95.13 | J155: 97.77 | K155: 92.5 | L155: 86 | M155: 245.02834
A156: 146 | B156: FINCABLES | C156: 378.45 | D156: 382.48 | E156: 369.97 | F156: 361.48 | G156: 348.97 | H156: 390.97 | I156: 403.48 | J156: 411.97 | K156: 395 | L156: 374 | M156: 2.80709
A157: 147 | B157: FINEORG | C157: 3893.4 | D157: 3921.57 | E157: 3821.83 | F157: 3750.27 | G157: 3650.53 | H157: 3993.13 | I157: 4092.87 | J157: 4164.43 | K157: 4021.3 | L157: 3850 | M157: 0.35417
A158: 148 | B158: FINPIPE | C158: 146.6 | D158: 146.72 | E158: 144.53 | F158: 142.47 | G158: 140.28 | H158: 148.78 | I158: 150.97 | J158: 153.03 | K158: 148.9 | L158: 144.65 | M158: 4.32085
A159: 149 | B159: FLUOROCHEM | C159: 2508.8 | D159: 2494.20 | E159: 2443.40 | F159: 2378.00 | G159: 2327.20 | H159: 2559.60 | I159: 2610.40 | J159: 2675.80 | K159: 2545 | L159: 2428.8 | M159: 0.97513
A160: 150 | B160: FORTIS | C160: 256.55 | D160: 255.43 | E160: 252.12 | F160: 247.68 | G160: 244.37 | H160: 259.87 | I160: 263.18 | J160: 267.62 | K160: 258.75 | L160: 251 | M160: 7.16152
A161: 151 | B161: FRETAIL | C161: 48.65 | D161: 48.97 | E161: 48.03 | F161: 47.42 | G161: 46.48 | H161: 49.58 | I161: 50.52 | J161: 51.13 | K161: 49.9 | L161: 48.35 | M161: 35.07003
A162: 152 | B162: FSL | C162: 126.7 | D162: 125.50 | E162: 123.50 | F162: 120.30 | G162: 118.30 | H162: 128.70 | I162: 130.70 | J162: 133.90 | K162: 127.5 | L162: 122.3 | M162: 27.71859
A163: 153 | B163: GAEL | C163: 194.4 | D163: 193.85 | E163: 187.75 | F163: 181.10 | G163: 175.00 | H163: 200.50 | I163: 206.60 | J163: 213.25 | K163: 199.95 | L163: 187.2 | M163: 6.27848
A164: 154 | B164: GAIL | C164: 161.65 | D164: 160.28 | E164: 156.57 | F164: 151.48 | G164: 147.77 | H164: 165.37 | I164: 169.08 | J164: 174.17 | K164: 164 | L164: 155.2 | M164: 332.35321
A165: 155 | B165: GALAXYSURF | C165: 2701.1 | D165: 2702.03 | E165: 2654.07 | F165: 2607.03 | G165: 2559.07 | H165: 2749.07 | I165: 2797.03 | J165: 2844.07 | K165: 2750 | L165: 2655 | M165: 0.25921
A166: 156 | B166: GARFIBRES | C166: 2799.2 | D166: 2809.67 | E166: 2729.53 | F166: 2659.87 | G166: 2579.73 | H166: 2879.33 | I166: 2959.47 | J166: 3029.13 | K166: 2889.8 | L166: 2740 | M166: 0.21773
A167: 157 | B167: GESHIP | C167: 317.65 | D167: 314.55 | E167: 307.10 | F167: 296.55 | G167: 289.10 | H167: 325.10 | I167: 332.55 | J167: 343.10 | K167: 322 | L167: 304 | M167: 4.64349
A168: 158 | B168: GICRE | C168: 112.25 | D168: 112.43 | E168: 111.17 | F168: 110.08 | G168: 108.82 | H168: 113.52 | I168: 114.78 | J168: 115.87 | K168: 113.7 | L168: 111.35 | M168: 1.98913
A169: 159 | B169: GILLETTE | C169: 4922.1 | D169: 4932.57 | E169: 4837.43 | F169: 4752.77 | G169: 4657.63 | H169: 5017.23 | I169: 5112.37 | J169: 5197.03 | K169: 5027.7 | L169: 4847.9 | M169: 0.11144
A170: 160 | B170: GLAND | C170: 3199.75 | D170: 3193.23 | E170: 3139.77 | F170: 3079.78 | G170: 3026.32 | H170: 3253.22 | I170: 3306.68 | J170: 3366.67 | K170: 3246.7 | L170: 3133.25 | M170: 1.13299
A171: 161 | B171: GLAXO | C171: 1505.95 | D171: 1498.20 | E171: 1467.75 | F171: 1429.55 | G171: 1399.10 | H171: 1536.40 | I171: 1566.85 | J171: 1605.05 | K171: 1528.65 | L171: 1460 | M171: 1.59348
A172: 162 | B172: GLENMARK | C172: 435.55 | D172: 429.03 | E172: 420.62 | F172: 405.68 | G172: 397.27 | H172: 443.97 | I172: 452.38 | J172: 467.32 | K172: 437.45 | L172: 414.1 | M172: 19.60144
A173: 163 | B173: GMMPFAUDLR | C173: 4274.55 | D173: 4271.15 | E173: 4192.35 | F173: 4110.15 | G173: 4031.35 | H173: 4353.35 | I173: 4432.15 | J173: 4514.35 | K173: 4349.95 | L173: 4188.95 | M173: 0.1606
A174: 164 | B174: GNFC | C174: 608.2 | D174: 598.57 | E174: 579.63 | F174: 551.07 | G174: 532.13 | H174: 627.13 | I174: 646.07 | J174: 674.63 | K174: 617.5 | L174: 570 | M174: 38.47406
A175: 165 | B175: GODFRYPHLP | C175: 983.8 | D175: 988.53 | E175: 972.27 | F175: 960.73 | G175: 944.47 | H175: 1000.07 | I175: 1016.33 | J175: 1027.87 | K175: 1004.8 | L175: 977 | M175: 0.19378
A176: 166 | B176: GODREJAGRO | C176: 472.3 | D176: 475.48 | E176: 463.07 | F176: 453.83 | G176: 441.42 | H176: 484.72 | I176: 497.13 | J176: 506.37 | K176: 487.9 | L176: 466.25 | M176: 0.81198
A177: 167 | B177: GODREJCP | C177: 664.7 | D177: 685.63 | E177: 639.12 | F177: 613.53 | G177: 567.02 | H177: 711.22 | I177: 757.73 | J177: 783.32 | K177: 732.15 | L177: 660.05 | M177: 32.63788
A178: 168 | B178: GODREJIND | C178: 492.4 | D178: 485.12 | E178: 472.28 | F178: 452.17 | G178: 439.33 | H178: 505.23 | I178: 518.07 | J178: 538.18 | K178: 497.95 | L178: 465 | M178: 0.99977
A179: 169 | B179: GODREJPROP | C179: 1374.8 | D179: 1384.78 | E179: 1340.57 | F179: 1306.33 | G179: 1262.12 | H179: 1419.02 | I179: 1463.23 | J179: 1497.47 | K179: 1429 | L179: 1350.55 | M179: 15.88956
A180: 170 | B180: GPPL | C180: 81.5 | D180: 81.02 | E180: 79.08 | F180: 76.67 | G180: 74.73 | H180: 83.43 | I180: 85.37 | J180: 87.78 | K180: 82.95 | L180: 78.6 | M180: 7.69789
A181: 171 | B181: GRANULES | C181: 286 | D181: 283.78 | E181: 279.27 | F181: 272.53 | G181: 268.02 | H181: 290.52 | I181: 295.03 | J181: 301.77 | K181: 288.3 | L181: 277.05 | M181: 7.02528
A182: 172 | B182: GRAPHITE | C182: 496.5 | D182: 484.83 | E182: 466.67 | F182: 436.83 | G182: 418.67 | H182: 514.67 | I182: 532.83 | J182: 562.67 | K182: 503 | L182: 455 | M182: 30.57833
A183: 173 | B183: GRASIM | C183: 1446.55 | D183: 1443.98 | E183: 1412.27 | F183: 1377.98 | G183: 1346.27 | H183: 1478.27 | I183: 1509.98 | J183: 1544.27 | K183: 1475.7 | L183: 1409.7 | M183: 9.23769
A184: 174 | B184: GREAVESCOT | C184: 162 | D184: 161.92 | E184: 156.58 | F184: 151.17 | G184: 145.83 | H184: 167.33 | I184: 172.67 | J184: 178.08 | K184: 167.25 | L184: 156.5 | M184: 23.42083
A185: 175 | B185: GRINDWELL | C185: 1645.6 | D185: 1647.52 | E185: 1603.08 | F185: 1560.57 | G185: 1516.13 | H185: 1690.03 | I185: 1734.47 | J185: 1776.98 | K185: 1691.95 | L185: 1605 | M185: 1.60071
A186: 176 | B186: GSFC | C186: 130 | D186: 128.67 | E186: 124.93 | F186: 119.87 | G186: 116.13 | H186: 133.73 | I186: 137.47 | J186: 142.53 | K186: 132.4 | L186: 123.6 | M186: 35.89883
A187: 177 | B187: GSPL | C187: 264.35 | D187: 267.12 | E187: 258.23 | F187: 252.12 | G187: 243.23 | H187: 273.23 | I187: 282.12 | J187: 288.23 | K187: 276 | L187: 261 | M187: 12.09967
A188: 178 | B188: GUJALKALI | C188: 620.05 | D188: 623.88 | E188: 609.77 | F188: 599.48 | G188: 585.37 | H188: 634.17 | I188: 648.28 | J188: 658.57 | K188: 638 | L188: 613.6 | M188: 1.40401
A189: 179 | B189: GUJGASLTD | C189: 496.75 | D189: 498.95 | E189: 483.80 | F189: 470.85 | G189: 455.70 | H189: 511.90 | I189: 527.05 | J189: 540.00 | K189: 514.1 | L189: 486 | M189: 19.63539
A190: 180 | B190: HAL | C190: 1325.05 | D190: 1331.25 | E190: 1298.35 | F190: 1271.65 | G190: 1238.75 | H190: 1357.95 | I190: 1390.85 | J190: 1417.55 | K190: 1364.15 | L190: 1304.55 | M190: 5.88068
A191: 181 | B191: HAPPSTMNDS | C191: 947.9 | D191: 943.62 | E191: 922.23 | F191: 896.57 | G191: 875.18 | H191: 969.28 | I191: 990.67 | J191: 1016.33 | K191: 965 | L191: 917.95 | M191: 3.31931
A192: 182 | B192: HATHWAY | C192: 17.8 | D192: 17.78 | E192: 17.52 | F192: 17.23 | G192: 16.97 | H192: 18.07 | I192: 18.33 | J192: 18.62 | K192: 18.05 | L192: 17.5 | M192: 27.1311
A193: 183 | B193: HATSUN | C193: 1084.8 | D193: 1082.98 | E193: 1046.97 | F193: 1009.13 | G193: 973.12 | H193: 1120.82 | I193: 1156.83 | J193: 1194.67 | K193: 1119 | L193: 1045.15 | M193: 0.25275
A194: 184 | B194: HAVELLS | C194: 1072.05 | D194: 1063.48 | E194: 1045.97 | F194: 1019.88 | G194: 1002.37 | H194: 1089.57 | I194: 1107.08 | J194: 1133.17 | K194: 1081 | L194: 1037.4 | M194: 15.96458
A195: 185 | B195: HCLTECH | C195: 1154.2 | D195: 1142.03 | E195: 1122.67 | F195: 1091.13 | G195: 1071.77 | H195: 1173.57 | I195: 1192.93 | J195: 1224.47 | K195: 1161.4 | L195: 1110.5 | M195: 52.49845
A196: 186 | B196: HDFC | C196: 2121.95 | D196: 2125.02 | E196: 2095.13 | F196: 2068.32 | G196: 2038.43 | H196: 2151.83 | I196: 2181.72 | J196: 2208.53 | K196: 2154.9 | L196: 2098.2 | M196: 76.75627
A197: 187 | B197: HDFCAMC | C197: 2038.55 | D197: 2035.47 | E197: 1990.93 | F197: 1943.32 | G197: 1898.78 | H197: 2083.08 | I197: 2127.62 | J197: 2175.23 | K197: 2080 | L197: 1987.85 | M197: 3.03012
A198: 188 | B198: HDFCBANK | C198: 1324.8 | D198: 1318.07 | E198: 1303.78 | F198: 1282.77 | G198: 1268.48 | H198: 1339.08 | I198: 1353.37 | J198: 1374.38 | K198: 1332.35 | L198: 1297.05 | M198: 135.27229
A199: 189 | B199: HDFCLIFE | C199: 503.5 | D199: 507.17 | E199: 494.33 | F199: 485.17 | G199: 472.33 | H199: 516.33 | I199: 529.17 | J199: 538.33 | K199: 520 | L199: 498 | M199: 91.56126
A200: 190 | B200: HEG | C200: 1290.75 | D200: 1238.55 | E200: 1162.20 | F200: 1033.65 | G200: 957.30 | H200: 1367.10 | I200: 1443.45 | J200: 1572.00 | K200: 1314.9 | L200: 1110 | M200: 17.19813
A201: 191 | B201: HEIDELBERG | C201: 181.3 | D201: 181.90 | E201: 178.10 | F201: 174.90 | G201: 171.10 | H201: 185.10 | I201: 188.90 | J201: 192.10 | K201: 185.7 | L201: 178.7 | M201: 1.39787
A202: 192 | B202: HEMIPROP | C202: 101.85 | D202: 101.92 | E202: 100.33 | F202: 98.82 | G202: 97.23 | H202: 103.43 | I202: 105.02 | J202: 106.53 | K202: 103.5 | L202: 100.4 | M202: 7.08256
A203: 193 | B203: HEROMOTOCO | C203: 2198.7 | D203: 2219.53 | E203: 2149.27 | F203: 2099.83 | G203: 2029.57 | H203: 2268.97 | I203: 2339.23 | J203: 2388.67 | K203: 2289.8 | L203: 2170.1 | M203: 12.84637
A204: 194 | B204: HFCL | C204: 68.3 | D204: 68.33 | E204: 67.47 | F204: 66.63 | G204: 65.77 | H204: 69.17 | I204: 70.03 | J204: 70.87 | K204: 69.2 | L204: 67.5 | M204: 61.49955
A205: 195 | B205: HGS | C205: 1126.05 | D205: 1130.32 | E205: 1112.98 | F205: 1099.92 | G205: 1082.58 | H205: 1143.38 | I205: 1160.72 | J205: 1173.78 | K205: 1147.65 | L205: 1117.25 | M205: 0.71649
A206: 196 | B206: HIKAL | C206: 351.35 | D206: 351.35 | E206: 345.30 | F206: 339.25 | G206: 333.20 | H206: 357.40 | I206: 363.45 | J206: 369.50 | K206: 357.4 | L206: 345.3 | M206: 0.88498
... 320 more rows

Sheet Bulk Deals
E6: Back To Main Page
A7: Subject : | B7: BULK DEAL | D7: =Main!B10 -> 2022-03-08
A9: Date | B9: Scrip code | C9: Scrip Name | D9: Client Name | E9: Buy / Sell | F9: Quantity Traded | G9: Trade Price / Wt.Avg.trade price | H9: Exchange
A10: 2022-03-07 | B10: 540615 | C10: 7NR | D10: H S SHAH | E10: BUY | F10: 130,904 | G10: 20.88 | H10: BSE
A11: 2022-03-07 | B11: 540615 | C11: 7NR | D11: H S SHAH | E11: SELL | F11: 9,104 | G11: 20.95 | H11: BSE
A12: 2022-03-07 | B12: 540615 | C12: 7NR | D12: VIKRAMKUMAR KARANRAJ SAKARIA HUF | E12: BUY | F12: 66,200 | G12: 20.55 | H12: BSE
A13: 2022-03-07 | B13: 540615 | C13: 7NR | D13: VIKRAMKUMAR KARANRAJ SAKARIA HUF | E13: SELL | F13: 31,200 | G13: 20.96 | H13: BSE
A14: 2022-03-07 | B14: 540615 | C14: 7NR | D14: NNM SECURITIES PVT LTD | E14: SELL | F14: 74,000 | G14: 21 | H14: BSE
A15: 2022-03-07 | B15: 539661 | C15: ACEMEN | D15: RAJ DEVANGBHAI PATEL | E15: BUY | F15: 1,228 | G15: 39.92 | H15: BSE
A16: 2022-03-07 | B16: 539661 | C16: ACEMEN | D16: RAJ DEVANGBHAI PATEL | E16: SELL | F16: 17,451 | G16: 39.96 | H16: BSE
A17: 2022-03-07 | B17: 539661 | C17: ACEMEN | D17: URVASHI UMESHBHAI PATEL | E17: BUY | F17: 17,000 | G17: 39.91 | H17: BSE
A18: 2022-03-07 | B18: 537492 | C18: AGRIMONY | D18: RAJ DEVRAJBHAI PATEL | E18: SELL | F18: 60,000 | G18: 10.59 | H18: BSE
A19: 2022-03-07 | B19: 537492 | C19: AGRIMONY | D19: DIPTI MUKUND JARIWALA | E19: SELL | F19: 60,000 | G19: 12.07 | H19: BSE
A20: 2022-03-07 | B20: 537492 | C20: AGRIMONY | D20: VIVEK DHANJIBHAI KALATHIYA | E20: SELL | F20: 120,000 | G20: 11.95 | H20: BSE
A21: 2022-03-07 | B21: 537492 | C21: AGRIMONY | D21: RAJWARDHAN PANDOLE | E21: BUY | F21: 100,000 | G21: 11.87 | H21: BSE
A22: 2022-03-07 | B22: 537492 | C22: AGRIMONY | D22: SHACHI JOHRI | E22: BUY | F22: 150,000 | G22: 11.87 | H22: BSE
A23: 2022-03-07 | B23: 532166 | C23: ALKASEC | D23: ARUN SHANKAR TIWARI | E23: SELL | F23: 700,000 | G23: 0.5 | H23: BSE
A24: 2022-03-07 | B24: 543349 | C24: AMIORG | D24: PLUTUS WEALTH MANAGEMENT LLP | E24: SELL | F24: 200,000 | G24: 885 | H24: BSE
A25: 2022-03-07 | B25: 539546 | C25: BNL | D25: PUJA BAJORIA | E25: BUY | F25: 40,000 | G25: 9.2 | H25: BSE
A26: 2022-03-07 | B26: 540597 | C26: CONTAINER | D26: N L RUNGTA HUF | E26: BUY | F26: 78,000 | G26: 2.91 | H26: BSE
A27: 2022-03-07 | B27: 540597 | C27: CONTAINER | D27: SHRADDHABAHAN SAGARKUMAR GHETIA | E27: BUY | F27: 40,000 | G27: 2.91 | H27: BSE
A28: 2022-03-07 | B28: 540597 | C28: CONTAINER | D28: GLASTON MARIO MENEZES | E28: BUY | F28: 50,000 | G28: 2.91 | H28: BSE
A29: 2022-03-07 | B29: 540597 | C29: CONTAINER | D29: AMREX MARKETING PVT. LTD. | E29: SELL | F29: 302,000 | G29: 2.91 | H29: BSE
A30: 2022-03-07 | B30: 540597 | C30: CONTAINER | D30: ALPESHBHAI RASIKLAL SHAH | E30: BUY | F30: 45,000 | G30: 2.91 | H30: BSE
A31: 2022-03-07 | B31: 543475 | C31: EKENNIS | D31: ROHITASH GUPTA | E31: SELL | F31: 11,200 | G31: 84 | H31: BSE
A32: 2022-03-07 | B32: 543475 | C32: EKENNIS | D32: HARYANA REFRACTORIES PRIVATE LIMITED | E32: BUY | F32: 11,200 | G32: 80 | H32: BSE
A33: 2022-03-07 | B33: 543475 | C33: EKENNIS | D33: NISHANT LALITBHAI GANDHI | E33: BUY | F33: 19,200 | G33: 80 | H33: BSE
A34: 2022-03-07 | B34: 543475 | C34: EKENNIS | D34: PANKAJVASUDEOCHHAPARWAL | E34: SELL | F34: 11,200 | G34: 80 | H34: BSE
A35: 2022-03-07 | B35: 543475 | C35: EKENNIS | D35: SANTOSH RANI | E35: BUY | F35: 11,200 | G35: 80 | H35: BSE
A36: 2022-03-07 | B36: 543475 | C36: EKENNIS | D36: KINCHIT SUNILKUMAR MEHTA HUF | E36: BUY | F36: 8,000 | G36: 84 | H36: BSE
A37: 2022-03-07 | B37: 543475 | C37: EKENNIS | D37: RAJ KUMAR JAIN | E37: BUY | F37: 11,200 | G37: 80 | H37: BSE
A38: 2022-03-07 | B38: 543475 | C38: EKENNIS | D38: MEHUL BHARATBHAI SHAH HUF | E38: BUY | F38: 8,000 | G38: 84 | H38: BSE
A39: 2022-03-07 | B39: 526473 | C39: ELEFLOR | D39: PUSPA DEVI LOHIA | E39: BUY | F39: 399,998 | G39: 19.3 | H39: BSE
A40: 2022-03-07 | B40: 526473 | C40: ELEFLOR | D40: ROUNAK LOHIA HUF | E40: BUY | F40: 500,000 | G40: 19.3 | H40: BSE
A41: 2022-03-07 | B41: 504351 | C41: EMPOWER | D41: AVANCE TECHNOLOGIES LIMITED | E41: SELL | F41: 12,145,896 | G41: 0.15 | H41: BSE
A42: 2022-03-07 | B42: 504397 | C42: GANHOLD | D42: PARMESHWAR NAVEEN VARMA | E42: BUY | F42: 2,700 | G42: 68.45 | H42: BSE
A43: 2022-03-07 | B43: 504397 | C43: GANHOLD | D43: MAHAVIR TEXTURISING PVT LTD | E43: SELL | F43: 2,446 | G43: 68.45 | H43: BSE
A44: 2022-03-07 | B44: 504397 | C44: GANHOLD | D44: SUSWANI TEXTILE PVT LTD | E44: SELL | F44: 6,785 | G44: 68.45 | H44: BSE
A45: 2022-03-07 | B45: 538787 | C45: GBFL | D45: ANUSTUP TRADING PRIVATE LIMITED | E45: BUY | F45: 141,000 | G45: 8.16 | H45: BSE
A46: 2022-03-07 | B46: 538787 | C46: GBFL | D46: NISHIL SURENDRABHAI MARFATIA | E46: SELL | F46: 144,889 | G46: 8.16 | H46: BSE
A47: 2022-03-07 | B47: 540614 | C47: GGENG | D47: SANGEETA BERIWAL | E47: SELL | F47: 800,000 | G47: 7.34 | H47: BSE
A48: 2022-03-07 | B48: 541627 | C48: HITECHWIND | D48: PURSHOTTAM AGARWAL | E48: BUY | F48: 277,180 | G48: 3.03 | H48: BSE
A49: 2022-03-07 | B49: 541627 | C49: HITECHWIND | D49: SUSHILA DEVI AGARWAL | E49: SELL | F49: 277,180 | G49: 3.03 | H49: BSE
A50: 2022-03-07 | B50: 535730 | C50: KHOOBSURAT | D50: DULCET ADVISORY PRIVATE LIMITED | E50: SELL | F50: 800,000 | G50: 3.43 | H50: BSE
A51: 2022-03-07 | B51: 530443 | C51: KIRANSY-B | D51: JAGDISH ISHVERLAL PANWALA | E51: SELL | F51: 28,134 | G51: 25 | H51: BSE
A52: 2022-03-07 | B52: 539519 | C52: MAYUKH | D52: MEHTA MANISHKUMAR INDRAVADAN | E52: SELL | F52: 46,000 | G52: 12.69 | H52: BSE
A53: 2022-03-07 | B53: 540519 | C53: MEERA | D53: NIMESH RAMANBHAI NAIK | E53: BUY | F53: 62,820 | G53: 89.13 | H53: BSE
A54: 2022-03-07 | B54: 539767 | C54: MNIL | D54: NIKHIL SIPANI | E54: SELL | F54: 24,000 | G54: 13 | H54: BSE
A55: 2022-03-07 | B55: 539767 | C55: MNIL | D55: KABIR SHRAN DAGAR HUF | E55: BUY | F55: 24,000 | G55: 13 | H55: BSE
A56: 2022-03-07 | B56: 543262 | C56: MRP | D56: JAANDAR AGRO PRIVATE LIMITED | E56: BUY | F56: 42,000 | G56: 41.51 | H56: BSE
A57: 2022-03-07 | B57: 539291 | C57: OZONEWORLD | D57: PIYALI MAJUMDER | E57: SELL | F57: 21,522 | G57: 9.83 | H57: BSE
A58: 2022-03-07 | B58: 524572 | C58: PHARMAID | D58: PADMAJA KALYANI SADHANALA | E58: SELL | F58: 201,000 | G58: 14.1 | H58: BSE
A59: 2022-03-07 | B59: 524572 | C59: PHARMAID | D59: KALPESH JAVERILAL OSWAL | E59: BUY | F59: 153,050 | G59: 14.14 | H59: BSE
A60: 2022-03-07 | B60: 524572 | C60: PHARMAID | D60: KALPESH JAVERILAL OSWAL | E60: SELL | F60: 76,972 | G60: 14.47 | H60: BSE
A61: 2022-03-07 | B61: 539561 | C61: REMLIFE | D61: CNM FINVEST PRIVATE LIMITED . | E61: BUY | F61: 72,000 | G61: 138.25 | H61: BSE
A62: 2022-03-07 | B62: 539561 | C62: REMLIFE | D62: NIRAJ LAHERCHAND MODI | E62: SELL | F62: 72,000 | G62: 138.25 | H62: BSE
A63: 2022-03-07 | B63: 540079 | C63: SPRAYKING | D63: SANJAY POPATLAL JAIN | E63: BUY | F63: 24,000 | G63: 34.48 | H63: BSE
A64: 2022-03-07 | B64: 532070 | C64: SUPRBPA | D64: SIMPLURIS TECHNOLOGIES PVT LTD . | E64: SELL | F64: 40,000 | G64: 25.1 | H64: BSE
A65: 2022-03-07 | B65: 531205 | C65: TINEAGRO | D65: ANKIT AJITBHAI PANCHAL | E65: BUY | F65: 315 | G65: 56 | H65: BSE
A66: 2022-03-07 | B66: 531205 | C66: TINEAGRO | D66: ANKIT AJITBHAI PANCHAL | E66: SELL | F66: 62,214 | G66: 56.05 | H66: BSE
A67: 2022-03-07 | B67: 531205 | C67: TINEAGRO | D67: KUNTAL JITENDRA TRIVEDI | E67: SELL | F67: 186,700 | G67: 56.05 | H67: BSE
A68: 2022-03-07 | B68: 531205 | C68: TINEAGRO | D68: SUBBA PONNAM | E68: BUY | F68: 30,000 | G68: 56.05 | H68: BSE
A69: 2022-03-07 | B69: 531205 | C69: TINEAGRO | D69: MANJULABEN PARMAR | E69: BUY | F69: 42,420 | G69: 56 | H69: BSE
A70: 2022-03-07 | B70: 531205 | C70: TINEAGRO | D70: DHAVAL VINODBHAI GADANI | E70: SELL | F70: 30,000 | G70: 56.05 | H70: BSE
A71: 2022-03-07 | B71: 531205 | C71: TINEAGRO | D71: MANJULABEN PARMAR | E71: SELL | F71: 42,420 | G71: 56.05 | H71: BSE
A72: 2022-03-07 | B72: 531205 | C72: TINEAGRO | D72: VIDUR ADITYA MEHTA | E72: SELL | F72: 65,000 | G72: 56.02 | H72: BSE
A73: 2022-03-07 | B73: 531205 | C73: TINEAGRO | D73: PUNJIBEN BABUBHAI RATHOD | E73: BUY | F73: 30,000 | G73: 56 | H73: BSE
A74: 2022-03-07 | B74: 531205 | C74: TINEAGRO | D74: DHAVAL GIRISHBHAI PARMAR | E74: BUY | F74: 45,000 | G74: 55.84 | H74: BSE
A75: 2022-03-07 | B75: 531205 | C75: TINEAGRO | D75: DHAVAL GIRISHBHAI PARMAR | E75: SELL | F75: 45,000 | G75: 56.05 | H75: BSE
A76: 2022-03-07 | B76: 531205 | C76: TINEAGRO | D76: PUNJIBEN BABUBHAI RATHOD | E76: SELL | F76: 122,587 | G76: 56.05 | H76: BSE
A77: 2022-03-07 | B77: 531205 | C77: TINEAGRO | D77: KUNTAL JITENDRA TRIVEDI | E77: SELL | F77: 65,400 | G77: 56.05 | H77: BSE
A78: 2022-03-07 | B78: 531205 | C78: TINEAGRO | D78: NAYAN MAHENDRABHAI THAKKAR | E78: SELL | F78: 100,000 | G78: 56.05 | H78: BSE
A79: 2022-03-07 | B79: 542923 | C79: TRANWAY | D79: VIVEKKAUL | E79: BUY | F79: 40,000 | G79: 16.21 | H79: BSE
A80: 2022-03-07 | B80: 542923 | C80: TRANWAY | D80: VIVEKKAUL | E80: SELL | F80: 90,000 | G80: 15.23 | H80: BSE
A81: 2022-03-07 | B81: 543350 | C81: VIJAYA | D81: KARAKORAM LIMITED | E81: SELL | F81: 7,294,115 | G81: 425.75 | H81: BSE
A82: 2022-03-07 | B82: 543350 | C82: VIJAYA | D82: AL MEHWAR COMMERCIAL INVESTMENTS LLC | E82: BUY | F82: 2,035,857 | G82: 425.75 | H82: BSE
A83: 2022-03-07 | B83: 543350 | C83: VIJAYA | D83: DESTINATIONS INT EQ FUND A SERIES OF BRINKER CAPITAL DESTINATIONS TRUST | E83: BUY | F83: 894,610 | G83: 425.75 | H83: BSE
A84: 2022-03-07 | B84: 543350 | C84: VIJAYA | D84: WASATCH ADVISORS INC A/C WASATCH EMERGING INDIA FUND | E84: BUY | F84: 2,767,033 | G84: 425.75 | H84: BSE
A85: 2022-03-07 | B85: 543350 | C85: VIJAYA | D85: WASATCH ADVISORS INC A/C WASATCH INTERNATIONAL OPPORTUNITIES FUND | E85: BUY | F85: 1,243,005 | G85: 425.75 | H85: BSE
A86: 2022-03-07 | B86: 530521 | C86: VIRAT | D86: JUZAR FEROZ BASRAI | E86: BUY | F86: 25,000 | G86: 162.1 | H86: BSE
A87: 2022-03-07 | B87: 542667 | C87: WORL | D87: JAYANTILAL HANSRAJ LODHA | E87: BUY | F87: 89,000 | G87: 854.1 | H87: BSE
A88: 2022-03-07 | B88: FELDVR | C88: Class B shares (Series 1) | D88: ADROIT FINANCIAL SERVICES PVT LTD | E88: BUY | F88: 203,144 | G88: 21.97 | H88: NSE
A89: 2022-03-07 | B89: GMDCLTD | C89: Gujarat Min. Dev. Corpn | D89: XTX MARKETS LLP | E89: BUY | F89: 2,251,088 | G89: 167.67 | H89: NSE
A90: 2022-03-07 | B90: HGS | C90: Hinduja Global Sols Ltd | D90: HINDUJA REALTY VENTURES LIMITED | E90: BUY | F90: 814,490 | G90: 1130 | H90: NSE
A91: 2022-03-07 | B91: LIBAS | C91: Libas Consu Products Ltd | D91: PANKAJ BABULAL VORA | E91: BUY | F91: 100,000 | G91: 28.41 | H91: NSE
A92: 2022-03-07 | B92: SUPREMEENG | C92: Supreme Engineering Ltd | D92: PAPITA NANDI | E92: BUY | F92: 1,338,998 | G92: 2.45 | H92: NSE
A93: 2022-03-07 | B93: VAISHALI | C93: Vaishali Pharma Limited | D93: GANGAR ANUP NAVALCHAND | E93: BUY | F93: 55,000 | G93: 59.69 | H93: NSE
A94: 2022-03-07 | B94: FELDVR | C94: Class B shares (Series 1) | D94: ADROIT FINANCIAL SERVICES PVT LTD | E94: SELL | F94: 156,031 | G94: 22.01 | H94: NSE
A95: 2022-03-07 | B95: GMDCLTD | C95: Gujarat Min. Dev. Corpn | D95: XTX MARKETS LLP | E95: SELL | F95: 2,194,935 | G95: 167.79 | H95: NSE
A96: 2022-03-07 | B96: HGS | C96: Hinduja Global Sols Ltd | D96: AASIA EXPORTS | E96: SELL | F96: 814,490 | G96: 1130 | H96: NSE
A97: 2022-03-07 | B97: IBULHSGFIN | C97: Indiabulls Hsg Fin Ltd | D97: PRUSIK UMBRELLA UCITS FUND PLC | E97: SELL | F97: 2,912,000 | G97: 137.48 | H97: NSE
A98: 2022-03-07 | B98: JISLDVREQS | C98: Jain DVR Equity Shares | D98: DEEPAK SHANTILAL GALA | E98: SELL | F98: 96,956 | G98: 18.74 | H98: NSE
A99: 2022-03-07 | B99: LIBAS | C99: Libas Consu Products Ltd | D99: P S SHETH | E99: SELL | F99: 120,000 | G99: 28.42 | H99: NSE
A100: 2022-03-07 | B100: PATINTPP | C100: Patel Inte Rs. 2.5 ppd up | D100: ROHIT SRIVASTAVA | E100: SELL | F100: 211,000 | G100: 4.21 | H100: NSE

Sheet Call Tracker (Equity & F&O)
M5: Back To Main Page
A6: Retail Research Technical Calls & Fundamental Performance Report for the month of Mar-2022
M7: =Main!B10 -> 2022-03-08
B8: Positional Call
A9: Sr.no | B9: Date | D9: Company | E9: Rec | F9: Rec Price | G9: Stop Loss*** | H9: Call Closed At | I9: Target | J9: Remark | K9: Profit / Loss per Share | L9: All charges | M9: Net Gain / Loss % | N9: Status | O9: Closed Date | P9: Market Closing Price
A10: 1 | B10: 2022-01-21 | D10: HCLTECH | E10: Buy | F10: 1150-1170 | G10: 1090 | I10: 1250-1300 | J10: Open | P10: =VLOOKUP(D10,'MidCap Intra'!B55:C546,2,0) -> 1154.2 | R10: H
A11: 2 | B11: 2022-01-25 | D11: TRENT | E11: Buy | F11: 1069 | G11: 995 | H11: 1,132.50 | I11: 1150-1200 | J11: Profit of Rs.63.5/- | K11: =H11-F11 -> 63.5 | L11: =(F11*-0.7)/100 -> -7.48 | M11: =(K11+L11)/F11 -> 5.24% | N11: Successful | O11: 2022-03-03 | R11: H
A12: 3 | B12: 2022-02-11 | D12: CARBORUNIV | E12: Buy | F12: 847.5 | G12: 798 | H12: 798.00 | I12: 920-960 | J12: Loss of Rs.49.5/- | K12: =H12-F12 -> -49.5 | L12: =(F12*-0.7)/100 -> -5.93 | M12: =(K12+L12)/F12 -> -6.54% | N12: Unsuccessful | O12: 2022-03-03 | R12: H
A13: 4 | B13: 2022-02-28 | D13: REDINGTON | E13: Buy | F13: 148 | G13: 138 | H13: 156.00 | I13: 160-170 | J13: Profit of Rs.8/- | K13: =H13-F13 -> 8 | L13: =(F13*-0.4)/100 -> -0.59 | M13: =(K13+L13)/F13 -> 5.01% | N13: Successful | O13: 2022-03-03
A14: 5 | B14: 2022-02-28 | D14: HDFC | E14: Buy | F14: 2360 | G14: 2230 | H14: 2,230.00 | I14: 2500-2600 | J14: Loss of Rs.130/- | K14: -130 | L14: =(F14*-0.7)/100 -> -16.52 | M14: -6.21% | N14: Unsuccessful | O14: 2022-03-04
A15: 6 | B15: 2022-02-28 | D15: ICICIBANK | E15: Buy | F15: 715 | G15: 675 | H15: =(675+738.5)/2 -> 706.75 | I15: 750-780 | J15: Loss of Rs.8.25/- | K15: =H15-F15 -> -8.25 | L15: =(F15*-0.4)/100 -> -2.86 | M15: =(K15+L15)/F15 -> -1.55% | N15: Unsuccessful | O15: 2022-03-08 | P15: =VLOOKUP(D15,'MidCap Intra'!B11:C566,2,0) -> 653.75
A16: 7 | B16: 2022-02-28 | D16: AARTIIND | E16: Buy | F16: 925 | G16: 860 | H16: 860.00 | I16: 1000-1050 | J16: Loss of Rs.65/- | K16: -65 | L16: =(F16*-0.7)/100 -> -6.48 | M16: -7.73% | N16: Unsuccessful | O16: 2022-03-04
A17: 8 | B17: 2022-03-02 | D17: BHARTIARTL | E17: Buy | F17: 666-672 | G17: 618 | I17: 740-780 | J17: Open | P17: =VLOOKUP(D17,'MidCap Intra'!B13:C568,2,0) -> 675.4
A18: 9 | B18: 2022-03-03 | D18: ACC | E18: Buy | F18: 1990-2005 | G18: 1870 | I18: 2150-2250 | J18: Open | P18: =VLOOKUP(D18,'MidCap Intra'!B14:C569,2,0) -> 1950.15
A19: 10 | B19: 2022-03-07 | D19: TRENT | E19: Buy | F19: 1065-1075 | G19: 990 | I19: 1140-1200 | J19: Open | P19: =VLOOKUP(D19,'MidCap Intra'!B15:C570,2,0) -> 1064.2
A20: 11 | B20: 2022-03-07 | D20: RELIANCE | E20: Buy | F20: 2270-2290 | G20: 2170 | I20: 2450-2550 | J20: Open | P20: =VLOOKUP(D20,'MidCap Intra'!B16:C571,2,0) -> 2239.55
A25: CLBS = Closing Basis ***
A26: Dividend adjusted <> | F26: Reinitiated $
A27: Part book {} | D27: s | F27: Revised stoploss #
B29: Momentum Call
A30: Sr.no | B30: Date | D30: Company | E30: Rec | F30: Rec Price | G30: Stop Loss | H30: Call Closed At | I30: Target | J30: Remark | K30: Profit / Loss per Share/Lot | L30: All charges | M30: Net Gain / Loss % | N30: Status | O30: Closed Date
A31: 1 | B31: 2022-02-28 | D31: BALKRISIND | E31: Buy | F31: 1810-1815 | G31: 1750 | I31: 1880-1920 | J31: Open
A32: 2 | B32: 2022-03-02 | D32: JSWSTEEL | E32: Buy | F32: 642 | G32: 618 | H32: 661 | I32: 680-690 | J32: Profit of Rs.19/- | K32: =H32-F32 -> 19 | L32: =(F32*-0.7)/100 -> -4.49 | M32: =(K32+L32)/F32 -> 2.26% | N32: Successful | O32: 2022-02-28
A33: 3 | B33: 2022-03-03 | D33: CROMPTON | E33: Buy | F33: 411 | G33: 398 | H33: 398 | I33: 430-440 | J33: Loss of Rs.13/- | K33: -13 | L33: =(F33*-0.07)/100 -> -0.29 | M33: -3.23% | N33: Unsuccessful | O33: 2022-03-04
A34: 4 | B34: 2022-03-03 | D34: BRITANNIA | E34: Buy | F34: 3405 | G34: 3290 | H34: 3290 | I34: 3550-3600 | J34: Loss of Rs.115/- | K34: -115 | L34: =(F34*-0.07)/100 -> -2.38 | M34: -3.45% | N34: Unsuccessful | O34: 2022-03-07
A35: 5 | B35: 2022-03-03 | D35: LT | E35: Buy | F35: 1775 | G35: 1730 | H35: 1730 | I35: 1850-1900 | J35: Loss of Rs.45/- | K35: =H35-F35 -> -45 | L35: =(F35*-0.07)/100 -> -1.24 | M35: =(K35+L35)/F35 -> -2.61% | N35: Unsuccessful | O35: 2022-03-04
A36: 6 | B36: 2022-03-04 | D36: MAXHEALTH | E36: Buy | F36: 364 | G36: 354 | H36: 354 | I36: 380-385 | J36: Loss of Rs.10/- | K36: =H36-F36 -> -10 | L36: =(F36*-0.07)/100 -> -0.25 | M36: =(K36+L36)/F36 -> -2.82% | N36: Unsuccessful | O36: 2022-03-04
A37: 7 | B37: 2022-03-04 | D37: AMBUJACEM | E37: Buy | F37: 288.5 | G37: 278 | H37: 295.5 | I37: 300-310 | J37: Profit of Rs.7/- | K37: =H37-F37 -> 7 | L37: =(F37*-0.07)/100 -> -0.20 | M37: =(K37+L37)/F37 -> 2.36% | N37: Successful | O37: 2022-03-04
A38: 8 | B38: 2022-03-04 | D38: INDIGO | E38: Buy | F38: 1730 | G38: 1675 | H38: 1675 | I38: 1800-1820 | J38: Loss of Rs.55/- | K38: -55 | L38: =(F38*-0.07)/100 -> -1.21 | M38: -3.25% | N38: Unsuccessful | O38: 2022-03-07
A39: 9 | B39: 2022-03-04 | D39: BAJFINANCE | E39: Buy | F39: 6650 | G39: 6490 | H39: 6490 | I39: 6900-7000 | J39: Loss of Rs.160/- | K39: -160 | L39: -4.66 | M39: -2.48% | N39: Unsuccessful | O39: 2022-03-07
A40: 10 | B40: 2022-03-07 | D40: ROUTE | E40: Buy | F40: 1520 | G40: 1460 | H40: 1537.5 | I40: 1570-1600 | J40: Profit of Rs.17.5/- | K40: =H40-F40 -> 17.5 | L40: =(F40*-0.07)/100 -> -1.06 | M40: =(K40+L40)/F40 -> 1.08% | N40: Successful | O40: 2022-03-07
A43: CLBS = Closing Basis *** | H43: *
A44: Dividend adjusted <> | F44: Reinitiated $
F45: Revised stoploss #
A47: Master Trade High Risk
A48: Sr.no | B48: Date | D48: Company | E48: Rec | F48: Rec Price | G48: Stop Loss | H48: Call Closed At | I48: Target | J48: Remark | K48: Profit / Loss per share | L48: All charges | M48: Gain / Loss per Lot | N48: Lot | O48: Status | P48: Closed Date
A49: 1 | B49: 2022-02-28 | D49: HDFCBANK MAR FUT | E49: Buy | F49: 1436 | G49: 1414 | H49: 1414 | I49: 1470-1480 | J49: Loss of Rs.22/- | K49: =H49-F49 -> -22 | L49: =(H49*N49)*0.07% -> 544.39 | M49: =(K49*N49)-L49 -> -12644.4 | N49: 550 | O49: Unsuccessful | P49: 2022-03-02
A50: 2 | B50: 2022-02-28 | D50: SIEMENS MAR FUT | E50: Buy | F50: 2342.5 | G50: 2300 | H50: 2368 | I50: 2400-2450 | J50: Profit of Rs.25.5/- | K50: 25.5 | L50: 455.84 | M50: 6556.7 | N50: 275 | O50: Successful | P50: 2021-03-02
A51: 3 | B51: 2022-03-02 | D51: BHARATFORG MAR FUT | E51: Buy | F51: 661 | G51: 642 | H51: 644 | I51: 680-695 | J51: Loss of Rs.17/- | K51: =H51-F51 -> -17 | L51: =(H51*N51)*0.07% -> 338.10 | M51: =(K51*N51)-L51 -> -13088.1 | N51: 750 | O51: Unsuccessful | P51: 2022-03-03
A52: 4 | B52: 2022-03-02 | D52: INFY MAR FUT | E52: Buy | F52: 1702.5 | G52: 1662 | H52: 1730 | I52: 1750-1780 | J52: Profit of Rs.27.5/- | K52: =H52-F52 -> 27.5 | L52: =(H52*N52)*0.07% -> 363.30 | M52: =(K52*N52)-L52 -> 7886.7 | N52: 300 | O52: Successful | P52: 2021-03-03
A53: 5 | B53: 2022-03-02 | D53: SRF MAR FUT | E53: Buy | F53: 2342.5 | G53: 2305 | H53: 2387.5 | I53: 2380-2420 | J53: Profit of Rs.45/- | K53: 45 | L53: 626.72 | M53: 16248.3 | N53: 375 | O53: Successful | P53: 2021-03-03
A54: 6 | B54: 2022-03-02 | D54: GSPL MAR FUT | E54: Buy | F54: 280.5 | G54: 274 | H54: 285.5 | I54: 290-295 | J54: Profit of Rs.5/- | K54: 5 | L54: 339.75 | M54: 8160.3 | N54: 1700 | O54: Successful | P54: 2021-03-03
A55: 7 | B55: 2022-03-03 | D55: SRF MAR FUT | E55: Buy | F55: 2337.5 | G55: 2300 | H55: 2300 | I55: 2380-2420 | J55: Loss of Rs.37.5/- | K55: -37.5 | L55: 603.75 | M55: -14666.3 | N55: 375 | O55: Unsuccessful | P55: 2022-03-04
A56: 8 | B56: 2022-03-03 | D56: GSPL MAR FUT | E56: Buy | F56: 276.5 | G56: 269 | H56: 281.5 | I56: 285-295 | J56: Profit of Rs.5/- | K56: =H56-F56 -> 5 | L56: =(H56*N56)*0.07% -> 334.99 | M56: =(K56*N56)-L56 -> 8165.0 | N56: 1700 | O56: Successful | P56: 2021-03-04
A57: 9 | B57: 2021-03-04 | D57: SBIN MAR FUT | E57: Buy | F57: 459.5 | G57: 451 | H57: 465.5 | I57: 470-480 | J57: Profit of Rs.6/- | K57: =H57-F57 -> 6 | L57: =(H57*N57)*0.07% -> 488.78 | M57: =(K57*N57)-L57 -> 8511.2 | N57: 1500 | O57: Successful | P57: 2021-03-04
A58: 10 | B58: 2021-03-04 | D58: MPHASIS MAR FUT | E58: Buy | F58: 3105 | G58: 3030 | H58: 3165 | I58: 3200-3250 | J58: Profit of Rs.60/- | K58: =H58-F58 -> 60 | L58: =(H58*N58)*0.07% -> 387.71 | M58: =(K58*N58)-L58 -> 10112.3 | N58: 175 | O58: Successful | P58: 2021-03-04
A59: 11 | B59: 2021-03-04 | D59: INFY MAR FUT | E59: Buy | F59: 1698 | G59: 1658 | H59: 1731 | I59: 1750-1780 | J59: Profit of Rs.33/- | K59: 33 | L59: 363.51 | M59: 9536.5 | N59: 300 | O59: Successful | P59: 2021-03-04
A60: 12 | B60: 2021-03-04 | D60: TECHM MAR FUT | E60: Buy | F60: 1422.5 | G60: 1400 | H60: 1437 | I60: 1450-1470 | J60: Profit of Rs.14.5/- | K60: 14.5 | L60: 653.84 | M60: 8771.2 | N60: 650 | O60: Successful | P60: 2021-03-04
A61: 13 | B61: 2021-03-04 | D61: SIEMENS MAR FUT | E61: Buy | F61: 2322 | G61: 2275 | H61: 2275 | I61: 2370-2430 | J61: Loss of Rs.47/- | K61: -47 | L61: 437.94 | M61: -13362.9 | N61: 275 | O61: Unsuccessful | P61: 2022-03-07
A62: 14 | B62: 2022-03-07 | D62: HCLTECH MAR FUT | E62: Buy | F62: 1137 | G62: 1120 | H62: 1151 | I62: 1160-1175 | J62: Profit of Rs.14/- | K62: =H62-F62 -> 14 | L62: =(H62*N62)*0.07% -> 563.99 | M62: =(K62*N62)-L62 -> 9236.0 | N62: 700 | O62: Successful | P62: 2021-03-07
A63: 15 | B63: 2022-03-07 | D63: APOLLOTYRE MAR FUT | E63: Buy | F63: 172.5-173.5 | G63: 167.5 | I63: 180-185 | J63: Open
A68: Master Trade Medium Risk
A69: Sr.no | B69: Date | D69: Company | E69: Rec | F69: Rec Price | G69: Stop Loss | H69: Call Closed At | I69: Target | J69: Remark | K69: Profit/ Loss per lot | L69: All charges | M69: Gain / Loss per Lot | N69: Lot | O69: Status | P69: Closed Date
A70: 1 | B70: 2022-03-02 | D70: RELIANCE 2420 CE MAR | E70: Buy | F70: 49.5 | G70: 30 | H70: 61 | I70: 70-90 | J70: Profit of Rs.11.5/- | K70: =H70-F70 -> 11.5 | L70: 100.00 | M70: =(K70*N70)-L70 -> 2775.0 | N70: 250 | O70: Successful | P70: 2021-03-02
A71: 2 | B71: 2022-03-02 | D71: NIFTY 16750 CE 03-MAR | E71: Buy | F71: 82.5 | G71: 35 | H71: 88.5 | I71: 150-200 | J71: Profit of Rs.6/- | K71: 6 | L71: 100.00 | M71: 200.0 | N71: 50 | O71: Neutral | P71: 2021-03-03
A72: 3 | B72: 2022-03-02 | D72: ASIANPAINT 3100 CE MAR | E72: Buy | F72: 85 | G72: 45 | H72: 49 | I72: 140-160 | J72: Loss of Rs.36/- | K72: =H72-F72 -> -36 | L72: 100.00 | M72: =(K72*N72)-L72 -> -5500.0 | N72: 150 | O72: Unsuccessful | P72: 2022-03-03
A73: 4 | B73: 2022-03-03 | D73: INFY 1740 CE MAR | E73: Buy | F73: 42 | G73: 26 | H73: 49.5 | I73: 60-75 | J73: Profit of Rs.7.5/- | K73: 7.5 | L73: 100.00 | M73: 2150.0 | N73: 300 | O73: Successful | P73: 2021-03-04
A74: 5 | B74: 2022-03-03 | D74: RELIANCE 2420 CE MAR | E74: Buy | F74: 55 | G74: 35 | H74: 35 | I74: 80-90 | J74: Loss of Rs.20/- | K74: =H74-F74 -> -20 | L74: 100.00 | M74: =(K74*N74)-L74 -> -5100.0 | N74: 250 | O74: Unsuccessful | P74: 2022-03-07
A75: 6 | B75: 2022-03-03 | D75: NIFTY 16500 CE 03-MAR | E75: Buy | F75: 51.5 | G75: 17 | H75: 71 | I75: 80-100 | J75: Profit of Rs.19.5/- | K75: =H75-F75 -> 19.5 | L75: 100.00 | M75: =(K75*N75)-L75 -> 875.0 | N75: 50 | O75: Successful | P75: 2021-03-03
A76: 7 | B76: 2022-03-04 | D76: HDFC 2300 CE MAR | E76: Buy | F76: 55 | G76: 38 | H76: 38 | I76: 80-90 | J76: Loss of Rs.17/- | K76: -17 | L76: 100.00 | M76: -5200.0 | N76: 300 | O76: Unsuccessful | P76: 2022-03-07
A81: Techno -Funda (positional)
A82: Sr.no | B82: Date | D82: Company | E82: Rec | F82: Rec Price | G82: Stop Loss*** | H82: Call Closed At | I82: Target | J82: Remark | K82: Profit / Loss per Share/Lot | L82: All charges | M82: Net Gain / Loss % | N82: Status | O82: Closed Date | P82: Market Closing Price
A83: 1 | B83: 2021-10-19 | D83: ITC | E83: Buy | F83: 230-251 | G83: 198 | I83: 320-340 | J83: Open | R83: H
A84: 2 | B84: 2022-02-07 | D84: BEL | E84: Buy | F84: 200 | G84: 183 | H84: 224.00 | I84: 230-240 | J84: Part Profit of Rs.24/- | K84: =H84-F84 -> 24 | L84: =(F84*-0.7)/100 -> -1.40 | M84: =(K84+L84)/F84 -> 11.30% | N84: Successful | O84: 2022-03-04 | R84: H
A86: CLBS = Closing Basis *** | F86: Reinitiated $
A87: Dividend adjusted <> | F87: Revised stoploss # | H87: .................
B89: Intrday Call
A90: Sr.no | B90: Date | D90: Company | E90: Rec | F90: Rec Price | G90: Stop Loss | H90: Call Closed At | I90: Target | J90: Remark | K90: Profit / Loss per Share/Lot | L90: Gain / Loss per Lot | M90: Lot | N90: All charges | O90: Net Gain / Loss % | P90: Status | Q90: Closed Date
B103: Investment Idea
A104: Sr.no | B104: Date | D104: Company | E104: Rec | F104: Rec Price | G104: Point of Review | H104: Close Rate | I104: Target | J104: Remark | K104: Profit / Loss per Share | L104: Gain / Loss % | M104: Status | N104: Closed Date
A105: 1 | B105: 2013-11-01 | D105: L&T Finance Holding | E105: Accu | F105: 82.00 | G105: - | H105: 100 | I105: 100.00 | J105: Target Achieved | K105: =H105-F105 -> 18.00 | L105: =K105/F105 -> 21.95% | M105: Successful | N105: 2016-10-14
A106: 2 | B106: 2014-06-04 | D106: Finolex Inds | E106: Buy | F106: 257.00 | G106: - | H106: 300 | I106: 300.00 | J106: Target Achieved | K106: 43.00 | L106: 16.73% | M106: Successful | N106: 2014-07-02
A107: 3 | B107: 2014-07-08 | D107: JK Cement | E107: Buy | F107: 393.00 | G107: - | H107: 468 | I107: 468.00 | J107: Target Achieved | K107: 75.00 | L107: 19.08% | M107: Successful | N107: 2014-08-12
A108: 4 | B108: 2014-08-06 | D108: Finolex Cables | E108: Buy | F108: 205.00 | G108: - | H108: 275 | I108: 250.00 | J108: Target Achieved | K108: 70.00 | L108: 34.15% | M108: Successful | N108: 2014-11-19
A109: 5 | B109: 2014-09-04 | D109: Exide Inds | E109: Buy | F109: 162.00 | G109: - | H109: 190 | I109: 190.00 | J109: Target Achieved | K109: 28.00 | L109: 17.28% | M109: Successful | N109: 2015-01-02
A110: 6 | B110: 2014-09-04 | D110: Deepak Nitrite | E110: Buy | F110: 75.00 | G110: - | H110: 91.5 | I110: 95-100 | J110: Profit of Rs.16.50/- | K110: 16.50 | L110: 22.00% | M110: Successful | N110: 2014-11-11
A111: 7 | B111: 2014-10-01 | D111: Mercks | E111: Buy | F111: 850.00 | G111: - | H111: 982.5 | I111: 1050.00 | J111: Profit of Rs.132.50/- | K111: 132.50 | L111: 15.59% | M111: Successful | N111: 2015-02-04
A112: 8 | B112: 2014-10-01 | D112: Grindwell Norton | E112: Buy | F112: 475.00 | G112: - | H112: 515 | I112: 600.00 | J112: Profit of Rs.40/- | K112: 40.00 | L112: 8.42% | M112: Successful | N112: 2014-10-27
A113: 9 | B113: 2014-10-01 | D113: Snowman Logistics | E113: Buy | F113: 86.00 | G113: - | H113: 99 | I113: 140.00 | J113: Profit of Rs.13.00/- | K113: 13.00 | L113: 15.12% | M113: Successful | N113: 2014-10-27
A114: 10 | B114: 2014-10-14 | D114: Birla Corp | E114: Buy | F114: 496.60 | G114: - | H114: 621 | I114: 580.00 | J114: Target Achieved | K114: 124.40 | L114: 25.05% | M114: Successful | N114: 2016-08-23
A115: 11 | B115: 2014-10-14 | D115: Ultratech Cem | E115: Buy | F115: 2481.90 | G115: - | H115: 2840 | I115: 2870.00 | J115: Profit of Rs.358.10/- | K115: 358.10 | L115: 14.43% | M115: Successful | N115: 2015-01-13
A116: 12 | B116: 2014-10-16 | D116: Sintex Inds | E116: Buy | F116: 84.50 | G116: - | H116: 93 | I116: 110.00 | J116: Profit of Rs.8.50/- | K116: 8.50 | L116: 10.06% | M116: Successful | N116: 2014-10-27
A117: 13 | B117: 2014-10-16 | D117: HSIL | E117: Buy | F117: 401.00 | G117: - | H117: 428 | I117: 450.00 | J117: Profit of Rs.27.00/- | K117: 27.00 | L117: 6.73% | M117: Successful | N117: 2015-01-16
A118: 14 | B118: 2014-10-16 | D118: Eveready Inds | E118: Buy | F118: 101.00 | G118: - | H118: 112 | I118: 120.00 | J118: Profit of Rs.11.00/- | K118: 11.00 | L118: 10.89% | M118: Successful | N118: 2014-10-27
A119: 15 | B119: 2014-11-11 | D119: Pennar Inds | E119: Buy | F119: 59.00 | G119: - | H119: 76 | I119: 76.00 | J119: Target Achieved | K119: 17.00 | L119: 28.81% | M119: Successful | N119: 2017-10-24
A120: 16 | B120: 2014-11-11 | D120: Snowman Logistics | E120: Buy | F120: 99.00 | G120: - | H120: 120 | I120: 120.00 | J120: Profit of Rs.21/- | K120: 21.00 | L120: 21.21% | M120: Successful | N120: 2014-11-17
A121: 17 | B121: 2014-11-13 | D121: Dharamsi Morarji Chem | E121: Buy | F121: 22.00 | G121: - | H121: 33.55 | I121: 32.00 | J121: Profit of Rs 11.55/- | K121: 11.55 | L121: 52.50% | M121: Successful | N121: 2015-07-03
A122: 18 | B122: 2014-12-03 | D122: Tatachem | E122: Buy | F122: 440.00 | G122: - | H122: 520 | I122: 520.00 | J122: Profit of Rs 80.00/- | K122: 80.00 | L122: 18.18% | M122: Successful | N122: 2015-07-23
A123: 19 | B123: 2014-12-03 | D123: Advanta | E123: Buy | F123: 360.00 | G123: - | H123: 427 | I123: 425.00 | J123: Profit of Rs.67.00/- | K123: 67.00 | L123: 18.61% | M123: Successful | N123: 2015-02-23
A124: 20 | B124: 2015-01-08 | D124: GDL | E124: Buy | F124: 360.00 | G124: - | H124: 455 | I124: 420.00 | J124: Profit of Rs.95.00/- | K124: 95.00 | L124: 26.39% | M124: Successful | N124: 2015-01-20
A125: 21 | B125: 2015-01-08 | D125: NRB Bearing | E125: Buy | F125: 130.00 | H125: 175.5 | I125: 165.00 | J125: Profit of Rs 45.50/- | K125: 45.50 | L125: 35.00% | M125: Successful | N125: 2017-12-19
A126: 22 | B126: 2015-02-05 | D126: GSFC | E126: Accu | F126: 98.00 | H126: 120 | I126: 120.00 | J126: Target Achieved | K126: 22.00 | L126: 22.45% | M126: Successful | N126: 2017-01-18
A127: 23 | B127: 2015-02-05 | D127: Sundrmfast | E127: Accu | F127: 196.00 | H127: 262 | I127: 255.00 | J127: Target Achieved | K127: 66.00 | L127: 33.67% | M127: Successful | N127: 2016-08-17
A128: 24 | B128: 2015-03-04 | D128: GPPL | E128: Accu | F128: 235 | H128: 77.00 | I128: 280-285 | J128: Loss of Rs.158/- | K128: -158.00 | L128: -67.23% | M128: Unsuccessful | N128: 2019-02-26
A129: 25 | B129: 2015-03-04 | D129: ORIENTCEM | E129: Accu | F129: 185.00 | H129: 224 | I129: 220-225 | J129: Target Achieved | K129: 39.00 | L129: 21.08% | M129: Successful | N129: 2016-10-04
A130: 26 | B130: 2015-03-27 | D130: PFS | E130: Accu | F130: 49.5 | H130: 15.85 | I130: 67.00 | J130: Loss of Rs.33.65/- | K130: -33.65 | L130: -68% | M130: Unsuccessful | N130: 2019-06-11
A131: 27 | B131: 2015-03-30 | D131: Walchandnagar Ind Ltd | E131: Accu | F131: 183.50 | H131: 219 | I131: 218.00 | J131: Profit of Rs.35.50/- | K131: 35.50 | L131: 19.35% | M131: Successful | N131: 2015-04-09
A132: 28 | B132: 2015-04-20 | D132: Kalpataru Power Transmission Ltd | E132: Accu | F132: =(227+237)/2 -> 232.00 | H132: 298 | I132: 298.00 | J132: Target Achieved | K132: 66.00 | L132: 28.45% | M132: Successful | N132: 2017-03-29
A133: 29 | B133: 2015-05-04 | D133: Mastek Ltd | E133: Buy | F133: 385.00 | H133: =212.5+331 -> 543.5 | I133: 510.00 | J133: Profit of Rs 158.50/- | K133: 158.50 | L133: 41.17% | M133: Successful | N133: 2015-08-19
A134: 30 | B134: 2015-05-04 | D134: Suprajit Eng | E134: Buy | F134: 115.50 | H134: 146 | I134: 142.00 | J134: Profit of Rs 30.50/- | K134: 30.50 | L134: 26.41% | M134: Successful | N134: 2015-07-17
A135: 31 | B135: 2015-05-27 | D135: TCI | E135: Buy | F135: 237.50 | H135: 279.5 | I135: 278.00 | J135: Target Achieved | K135: 42.00 | L135: 17.68% | M135: Successful | N135: 2015-08-06
A136: 32 | B136: 2015-06-19 | D136: HSIL | E136: Accu | F136: 340.00 | H136: 448 | I136: 448.00 | J136: Target Achieved | K136: 108.00 | L136: 31.76% | M136: Successful | N136: 2017-10-10
A137: 33 | B137: 2015-07-06 | D137: Capital First | E137: Accu | F137: 390.00 | H137: 460 | I137: 460.00 | J137: Target Achieved | K137: 70.00 | L137: 17.95% | M137: Successful | N137: 2016-04-18
A138: 34 | B138: 2015-07-10 | D138: Dolphin OffShore | E138: Accu | F138: 122.5 | H138: 61.00 | I138: 172.00 | J138: Loss of Rs.61.50/- | K138: -61.50 | L138: -50.20% | M138: Unsuccessful | N138: 2018-08-21
A139: 35 | B139: 2015-08-03 | D139: Allcargo logistics | E139: Accu | F139: 297.50 | H139: 350 | I139: 360.00 | J139: Profit of Rs 52.50/- | K139: 52.50 | L139: 17.65% | M139: Successful | N139: 2015-08-16
A140: 36 | B140: 2015-08-03 | D140: Camline Fine | E140: Accu | F140: 115.50 | H140: 149 | I140: 140.00 | J140: Profit of Rs 33.50/- | K140: 33.50 | L140: 29.00% | M140: Successful | N140: 2017-01-05
A141: 37 | B141: 2015-09-04 | D141: TCI | E141: Accu | F141: 226.00 | H141: 292 | I141: 292.00 | J141: Target Achieved | K141: 66.00 | L141: 29.20% | M141: Successful | N141: 2015-10-09
A142: 38 | B142: 2015-09-07 | D142: Kalpataru Power Transmission Ltd | E142: Accu | F142: 232.50 | H142: 312.5 | I142: 310.00 | J142: Target Achieved | K142: 80.00 | L142: 34.41% | M142: Successful | N142: 2017-03-29
A143: 39 | B143: 2015-09-21 | D143: LLOYD ELECTRIC & ENG LTD | E143: Accu | F143: 196.50 | H143: 238 | I143: 238.00 | J143: Target Achieved | K143: 41.50 | L143: 21.12% | M143: Successful | N143: 2015-10-14
A144: 40 | B144: 2015-09-24 | D144: L&T Finance Holding | E144: Accu | F144: 65.00 | H144: 82 | I144: 82.00 | J144: Target Achieved | K144: 17.00 | L144: 26.15% | M144: Successful | N144: 2016-07-27
A145: 41 | B145: 2015-10-14 | D145: KEC International ltd | E145: Accu | F145: 144.00 | H145: 182.5 | I145: 181.00 | J145: Target Achieved | K145: 38.50 | L145: 26.74% | M145: Successful | N145: 2017-03-23
A146: 42 | B146: 2015-10-14 | D146: Gruh Finance | E146: Accu | F146: 264.00 | H146: 311 | I146: 311.00 | J146: Target Achieved | K146: 47.00 | L146: 17.80% | M146: Successful | N146: 2016-08-22
A147: 43 | B147: 2015-11-10 | D147: Pidilitind | E147: Buy | F147: 549.50 | H147: 630 | I147: 630.00 | J147: Target Achieved | K147: 80.50 | L147: 14.65% | M147: Successful | N147: 2016-02-19
A148: 44 | B148: 2015-12-04 | D148: Zensar Technology | E148: Accu | F148: 1027.50 | H148: 1315 | I148: 1250.00 | J148: Target Achieved | K148: 287.50 | L148: 27.98% | M148: Successful | N148: 2018-05-24
A149: 45 | B149: 2015-12-29 | D149: Vinati Organics Ltd | E149: Accu | F149: 465.00 | H149: 540 | I149: 540.00 | J149: Target Achieved | K149: 75.00 | L149: 16.13% | M149: Successful | N149: 2016-06-09
A150: 46 | B150: 2016-01-11 | D150: GSFC | E150: Buy | F150: 81.00 | H150: 110 | I150: 110.00 | J150: Target Achieved | K150: 29.00 | L150: 35.80% | M150: Successful | N150: 2017-01-10
A151: 47 | B151: 2016-01-13 | D151: SSWL | E151: Buy | F151: 417.50 | H151: 547 | I151: 535.00 | J151: Target Achieved | K151: 129.50 | L151: 31.02% | M151: Successful | N151: 2016-07-27
A152: 48 | B152: 2016-02-08 | D152: Persistent System Ltd | E152: Accu | F152: 650.00 | H152: 800 | I152: 800.00 | J152: Target Achieved | K152: 150.00 | L152: 23.08% | M152: Successful | N152: 2018-02-23
A153: 49 | B153: 2016-03-04 | D153: UPL | E153: Accu | F153: 437.50 | H153: 504.5 | I153: 522.00 | J153: Profit of Rs.67/- | K153: 67.00 | L153: 15.31% | M153: Successful | N153: 2016-04-20
A154: 50 | B154: 2016-03-09 | D154: Ashoka Buildcon Ltd | E154: Accu | F154: 189.50 | H154: 218 | I154: 218.00 | J154: Target Achieved | K154: 28.50 | L154: 15.04% | M154: Successful | N154: 2017-10-26
A155: 51 | B155: 2016-04-11 | D155: PTC INDIA FIN SERV LTD | E155: Accu | F155: 36.5 | H155: 15.85 | I155: 60.00 | J155: Loss of Rs.20.65/- | K155: -20.65 | L155: -56.58% | M155: Unsuccessful | N155: 2019-06-11
A156: 52 | B156: 2016-04-12 | D156: CAMLINFINE $ | E156: Accu | F156: 93.00 | H156: 149 | I156: 140.00 | J156: Profit of Rs 56/- | K156: 56.00 | L156: 60.22% | M156: Successful | N156: 2017-01-05
A157: 53 | B157: 2016-04-12 | D157: Greaves Cotton Ltd. | E157: Accu | F157: 130.00 | H157: 150 | I157: 150-155 | J157: Target Achieved | K157: 20.00 | L157: 15.38% | M157: Successful | N157: 2016-07-13
A158: 54 | B158: 2016-04-13 | D158: DHFL | E158: Accu | F158: 196.00 | H158: 299 | I158: 299.00 | J158: Target Achieved | K158: 103.00 | L158: 52.55% | M158: Successful | N158: 2016-09-07
A159: 55 | B159: 2016-04-13 | D159: Magma | E159: Accu | F159: 88.00 | H159: 103 | I159: 103.00 | J159: Target Achieved | K159: 15.00 | L159: 17.05% | M159: Successful | N159: 2016-06-09
A160: 56 | B160: 2016-05-02 | D160: KEC International ltd $ | E160: Accu | F160: 127.50 | H160: 148 | I160: 148-150 | J160: Target Achieved | K160: =H160-F160 -> 20.50 | L160: =K160/F160 -> 16.08% | M160: Successful | N160: 2016-07-13
A161: 57 | B161: 2016-05-03 | D161: Mindtree | E161: Accu | F161: 675.00 | H161: 815 | I161: 790-800 | J161: Target Achieved | K161: 140.00 | L161: 20.74% | M161: Successful | N161: 2018-02-23
A162: 58 | B162: 2016-06-01 | D162: Atulauto | E162: Accu | F162: 500 | H162: 232.50 | I162: 565-570 | J162: Loss of Rs.267.50 /- | K162: -267.50 | L162: -53.50% | M162: Unsuccessful | N162: 2019-09-27
A163: 59 | B163: 2016-06-06 | D163: TRITURBINE | E163: Accu | F163: 110.00 | H163: 126.5 | I163: 125.00 | J163: Profit of Rs.16.50/- | K163: 16.50 | L163: 15.00% | M163: Successful | N163: 2016-07-01
A164: 60 | B164: 2016-06-17 | D164: Pennar Industries Ltd | E164: Accu | F164: 44.00 | H164: 69.5 | I164: 69.50 | J164: Profit of Rs.25.50/- | K164: 25.50 | L164: 57.95% | M164: Successful | N164: 2017-08-30
A165: 61 | B165: 2016-06-28 | D165: EVEREADY | E165: Accu | F165: 262.50 | H165: 340 | I165: 333.00 | J165: Profit of Rs.77.50/- | K165: 77.50 | L165: 29.52% | M165: Successful | N165: 2017-10-09
A166: 62 | B166: 2016-06-28 | D166: FIEMIND | E166: Accu | F166: 840.00 | H166: 1230 | I166: 1230.00 | J166: Target Achieved | K166: 390.00 | L166: 46.43% | M166: Successful | N166: 2016-10-06
A167: 63 | B167: 2016-07-05 | D167: Bajaj Corp Ltd | E167: Accu | F167: 395 | H167: =(468.5+342.5)/2 -> 405.50 | I167: 510.00 | J167: Profit of Rs.10.50/- | K167: =H167-F167 -> 10.50 | L167: =K167/F167 -> 3% | M167: Neutral | N167: 2019-05-21
A168: 64 | B168: 2016-08-02 | D168: GPPL $ | E168: Buy | F168: =169.5-12.8 -> 156.7 | H168: 77.00 | I168: 198-200 | J168: Loss of Rs.79.7/- | K168: -79.70 | L168: -50.86% | M168: Unsuccessful | N168: 2019-02-26
A169: 65 | B169: 2016-08-04 | D169: WONDERLA HOLIDAYS LTD | E169: Accu | F169: 400 | H169: 305.00 | I169: 475.00 | J169: Loss of Rs.95/- | K169: -95.00 | L169: -23.75% | M169: Unsuccessful | N169: 2019-05-21
A170: 66 | B170: 2016-08-11 | D170: CAMLINFINE | E170: Accu | F170: 86.50 | H170: 130 | I170: 130.00 | J170: Profit of Rs.43.50/- | K170: 43.50 | L170: 50.29% | M170: Successful | N170: 2017-12-22
A171: 67 | B171: 2016-08-18 | D171: GRANULES | E171: Accu | F171: 133.5 | H171: 126.50 | I171: 178.00 | J171: Exit | K171: -7.00 | L171: -5.24% | M171: Unsuccessful | N171: 2016-09-02
A172: 68 | B172: 2016-08-31 | D172: VA TECH WABAG | E172: Accu | F172: 560.00 | H172: 725 | I172: 725.00 | J172: Target Achieved | K172: 165.00 | L172: 29.46% | M172: Successful | N172: 2016-03-27
A173: 69 | B173: 2016-09-01 | D173: SKIPPER LIMITED | E173: Accu | F173: 160.50 | H173: 210 | I173: 210.00 | J173: Target Achieved | K173: 49.50 | L173: 30.84% | M173: Successful | N173: 2017-05-16
A174: 70 | B174: 2016-10-03 | D174: IFBIND | E174: Accu | F174: 430.00 | H174: 596 | I174: 575.00 | J174: Profit of Rs.166/- | K174: 166.00 | L174: 38.60% | M174: Successful | N174: 2017-02-03
A175: 71 | B175: 2016-10-14 | D175: ASIANTILES | E175: Accu | F175: 280.00 | H175: 345 | I175: 345.00 | J175: Target Achieved | K175: =H175-F175 -> 65.00 | L175: =K175/F175 -> 23.21% | M175: Successful | N175: 2017-03-20
A176: 72 | B176: 2016-10-14 | D176: DEEPIND | E176: Accu | F176: 245.00 | H176: 325.5 | I176: 330.00 | J176: Profit of Rs.80.5/- | K176: 80.50 | L176: 32.86% | M176: Successful | N176: 2017-02-03
A177: 73 | B177: 2016-10-17 | D177: DCBBANK | E177: Accu | F177: 125.00 | H177: 160 | I177: 160.00 | J177: Target Achieved | K177: 35.00 | L177: 28.00% | M177: Successful | N177: 2017-03-09
A178: 74 | B178: 2016-10-17 | D178: ORIENTREF | E178: Accu | F178: 114.00 | H178: 145 | I178: 145.00 | J178: Target Achieved | K178: 31.00 | L178: =K178/F178 -> 27.19% | M178: Successful | N178: 2017-05-04
A179: 75 | B179: 2016-10-17 | D179: GANECOS | E179: Accu | F179: 212.00 | H179: 280 | I179: 276.00 | J179: Profit of Rs.68/- | K179: 68.00 | L179: 32.08% | M179: Successful | N179: 2017-05-03
A180: 76 | B180: 2016-11-04 | D180: NBCC | E180: Accu | F180: 155.00 | H180: 210 | I180: 210.00 | J180: Profit of Rs.55/- | K180: 55.00 | L180: 35.48% | M180: Successful | N180: 2017-07-28
A181: 77 | B181: 2016-12-06 | D181: PRECAM | E181: Accu | F181: 150.5 | H181: 72.50 | I181: 174.00 | J181: Loss of Rs.78/- | K181: -78.00 | L181: -51.83% | M181: Unsuccessful | N181: 2018-08-21
A182: 78 | B182: 2016-12-08 | D182: INFRATEL | E182: Accu | F182: 380.00 | H182: 478 | I182: 468.00 | J182: Target Achieved | K182: =H182-F182 -> 98.00 | L182: =K182/F182 -> 25.79% | M182: Successful | N182: 2017-10-17
A183: 79 | B183: 2016-12-30 | D183: GODREJPROP | E183: Accu | F183: 305.00 | H183: 375 | I183: 375.00 | J183: Target Achieved | K183: 70.00 | L183: 22.95% | M183: Successful | N183: 2017-02-02
A184: 80 | B184: 2017-01-04 | D184: DEEPAKNTR | E184: Accu | F184: 99.50 | H184: 158 | I184: 158.00 | J184: Target Achieved | K184: 58.50 | L184: 58.79% | M184: Successful | N184: 2017-06-12
A185: 81 | B185: 2017-01-04 | D185: DEEPAKNTR | E185: Accu | F185: 99.50 | H185: 158 | I185: 158.00 | J185: Target Achieved | K185: 58.50 | L185: 58.79% | M185: Successful | N185: 2017-06-12
A186: 82 | B186: 2017-02-20 | D186: RECLTD | E186: Accu | F186: 140.50 | H186: 220 | I186: 220.00 | J186: Target Achieved | K186: =H186-F186 -> 79.50 | L186: =K186/F186 -> 56.58% | M186: Successful | N186: 2017-05-09
A187: 83 | B187: 2017-02-20 | D187: SUBROS | E187: Accu | F187: 202.50 | H187: 234 | I187: 234.00 | J187: Target Achieved | K187: 31.50 | L187: 15.56% | M187: Successful | N187: 2017-04-11
A188: 84 | B188: 2017-03-24 | D188: VRLLOG | E188: Accu | F188: 300.50 | H188: 417.5 | I188: 420.00 | J188: Profit of Rs.117/- | K188: =H188-F188 -> 117.00 | L188: =K188/F188 -> 38.94% | M188: Successful | N188: 2017-12-01
A189: 85 | B189: 2017-03-24 | D189: FIEMIND | E189: Accu | F189: 850.00 | H189: 1042.5 | I189: 1023.00 | J189: Profit of Rs 192.50/- | K189: 192.50 | L189: 22.65% | M189: Successful | N189: 2017-04-05
A190: 86 | B190: 2017-04-05 | D190: RATNAMANI | E190: Accu | F190: 785.00 | H190: 930 | I190: 920.00 | J190: Profit of Rs.145/- | K190: =H190-F190 -> 145.00 | L190: =K190/F190 -> 18.47% | M190: Successful | N190: 2017-08-29
A191: 87 | B191: 2017-04-06 | D191: ZEEMEDIA | E191: Accu | F191: 40 | H191: 13.10 | I191: 60.00 | J191: Loss of Rs.26.9/- | K191: -26.90 | L191: -67.25% | M191: Unsuccessful | N191: 2018-02-07
A192: 88 | B192: 2017-04-12 | D192: DABUR | E192: Accu | F192: 289.50 | H192: 354 | I192: 360.00 | J192: Profit of Rs.64.5/- | K192: =H192-F192 -> 64.50 | L192: =K192/F192 -> 22.28% | M192: Successful | N192: 2017-11-01
A193: 89 | B193: 2017-04-20 | D193: KPRMILL | E193: Accu | F193: 700.00 | H193: 840 | I193: 840.00 | J193: Profit of Rs.140/- | K193: 140.00 | L193: 20.00% | M193: Successful | N193: 2017-06-07
A194: 90 | B194: 2017-06-01 | D194: ESSELPACK | E194: Accu | F194: 130.00 | H194: 144.25 | I194: 170.00 | J194: Profit of Rs.14.25/- | K194: 14.25 | L194: 10.96% | M194: Successful | N194: 2019-07-29
A195: 91 | B195: 2017-06-15 | D195: KEI | E195: Accu | F195: 214.50 | H195: 262 | I195: 262.00 | J195: Profit of Rs.47.5/- | K195: 47.50 | L195: 22.14% | M195: Successful | N195: 2017-08-30
A196: 92 | B196: 2017-07-17 | D196: MAYURUNIQ | E196: Accu | F196: 370.00 | H196: 447.5 | I196: 450.00 | J196: Target Achieved | K196: 77.50 | L196: 20.95% | M196: Successful | N196: 2017-10-27
A197: 93 | B197: 2017-07-27 | D197: RAMCOCEM | E197: Accu | F197: 657.50 | H197: 825 | I197: 820.00 | J197: Target Achieved | K197: 167.50 | L197: 25.48% | M197: Successful | N197: 2017-12-21
A198: 94 | B198: 2017-08-17 | D198: FINPIPE | E198: Accu | F198: 605.00 | H198: 750 | I198: 750.00 | J198: Profit of Rs.145/- | K198: 145.00 | L198: 23.97% | M198: Successful | N198: 2017-10-19
A199: 95 | B199: 2017-09-01 | D199: SHK | E199: Accu | F199: 255 | H199: 217.25 | I199: 320.00 | J199: Loss of Rs.37.75/- | K199: -37.75 | L199: -15% | M199: Unsuccessful | N199: 2019-07-15
A200: 96 | B200: 2017-09-19 | D200: SKIPPER | E200: Accu | F200: 215.00 | H200: 258 | I200: 258.00 | J200: Target Achieved | K200: 43.00 | L200: 20.00% | M200: Successful | N200: 2017-11-01
A201: 97 | B201: 2017-09-19 | D201: SKIPPER | E201: Accu | F201: 215.00 | H201: 258 | I201: 258.00 | J201: Target Achieved | K201: 43.00 | L201: 20.00% | M201: Successful | N201: 2017-11-01
A202: 98 | B202: 2017-09-20 | D202: CAMLINFINE$ | E202: Accu | F202: 75.00 | H202: 90 | I202: 90.00 | J202: Profit of Rs.15.00/- | K202: =H202-F202 -> 15.00 | L202: =K202/F202 -> 20.00% | M202: Successful | N202: 2017-10-11
A203: 99 | B203: 2017-10-03 | D203: GNA | E203: Accu | F203: 315.00 | H203: 392 | I203: 384.00 | J203: Profit of Rs.77/- | K203: 77.00 | L203: 24.44% | M203: Successful | N203: 2017-10-09
A204: 100 | B204: 2017-10-05 | D204: NOCIL | E204: Accu | F204: 145.00 | H204: 179 | I204: 180.00 | J204: Profit of Rs.34/- | K204: 34.00 | L204: 23.45% | M204: Successful | N204: 2017-10-17
A205: 101 | B205: 2017-10-06 | D205: CENTURYPLY | E205: Accu | F205: 256.00 | H205: 323 | I205: 320.00 | J205: Target Achieved | K205: 67.00 | L205: 26.17% | M205: Successful | N205: 2017-11-28
A206: 102 | B206: 2017-10-09 | D206: EIHOTEL | E206: Accu | F206: 137.50 | H206: 184 | I206: 183.00 | J206: Profit of Rs.46.5/- | K206: 46.50 | L206: 33.82% | M206: Successful | N206: 2018-01-08
A207: 103 | B207: 2017-10-10 | D207: NRBBEARING | E207: Accu | F207: 125.50 | H207: 158 | I207: 155.00 | J207: Profit of Rs.32.5/- | K207: 32.50 | L207: 25.90% | M207: Successful | N207: 2017-11-28
A208: 104 | B208: 2017-10-10 | D208: BOROSIL | E208: Accu | F208: 895.00 | H208: 1122.5 | I208: 1078.00 | J208: Profit of Rs.227.5/- | K208: 227.50 | L208: 25.42% | M208: Successful | N208: 2018-01-17
A209: 105 | B209: 2017-10-12 | D209: CYIENT | E209: Accu | F209: 525.00 | H209: 629 | I209: 629.00 | J209: Target Achieved | K209: 104.00 | L209: 19.81% | M209: Successful | N209: 2018-01-19
A210: 106 | B210: 2017-11-07 | D210: HATSUN | E210: Accu | F210: 740.00 | H210: 892.5 | I210: 900.00 | J210: Profit of Rs.152.5/- | K210: =H210-F210 -> 152.50 | L210: =K210/F210 -> 20.61% | M210: Successful | N210: 2017-11-13
A211: 107 | B211: 2017-12-04 | D211: SANGHIIND | E211: Accu | F211: 118.50 | H211: 143.5 | I211: 145.00 | J211: Profit of Rs.25/- | K211: 25.00 | L211: 21.10% | M211: Successful | N211: 2017-12-28
A212: 108 | B212: 2017-12-21 | D212: KAJARIACER | E212: Accu | F212: 715 | H212: 500.00 | I212: 872.00 | J212: Loss of Rs.215/- | K212: -215.00 | L212: -30.07% | M212: Unsuccessful | N212: 2019-07-24
A213: 109 | B213: 2017-12-29 | D213: GNA | E213: Accu | F213: 435.00 | H213: 542.5 | I213: 539.00 | J213: Target Achieved | K213: 107.50 | L213: 24.71% | M213: Successful | N213: 2018-04-16
A214: 110 | B214: 2017-12-29 | D214: ZENSARTECH | E214: Accu | F214: 885.00 | H214: 1090 | I214: 1084.00 | J214: Target Achieved | K214: 205.00 | L214: 23.16% | M214: Successful | N214: 2018-04-23
A215: 111 | B215: 2018-04-02 | D215: EVERESTIND | E215: Accu | F215: 478.50 | H215: 442 | I215: 613.00 | J215: Loss of Rs.36.50 /- | K215: =H215-F215 -> -36.50 | L215: =K215/F215 -> -7.63% | M215: Unsuccessful | N215: 2019-10-24
A216: 112 | B216: 2018-04-04 | D216: GPPL$ | E216: Accu | F216: =141.5-7.3 -> 134.2 | H216: 77.00 | I216: 180.00 | J216: Loss of Rs.57.2/- | K216: -57.20 | L216: -42.62% | M216: Unsuccessful | N216: 2019-02-26
A217: 113 | B217: 2018-04-19 | D217: MANPASAND | E217: Accu | F217: 430 | H217: 220.00 | I217: 537.00 | J217: Loss of Rs.210/- | K217: -210.00 | L217: -48.84% | M217: Unsuccessful | N217: 2018-06-01
A218: 114 | B218: 2018-04-30 | D218: HEIDELBERG | E218: Accu | F218: 153.5 | H218: 196 | I218: 196.00 | J218: Profit of Rs.42.50/- | K218: 42.50 | L218: 27.69% | M218: Successful | N218: 2019-05-20
A219: 115 | B219: 2018-07-25 | D219: ZEEMEDIA | E219: Accu | F219: 27.5 | H219: 13.10 | I219: 60.00 | J219: Loss of Rs.14.40/- | K219: -14.40 | L219: -52.36% | M219: Unsuccessful | N219: 2018-02-07
A220: 116 | B220: 2018-08-06 | D220: GABRIEL | E220: Accu | F220: 148.5 | H220: 102 | I220: 182.00 | J220: Loss of Rs.46.50/- | K220: =H220-F220 -> -46.50 | L220: =K220/F220 -> -31.31% | M220: Unsuccessful | N220: 2019-07-15
A221: 117 | B221: 2018-08-23 | D221: INDIANHUME | E221: Accu | F221: 285 | H221: 355 | I221: 364.00 | J221: Profit of Rs.70/- | K221: 70.00 | L221: 24.56% | M221: Successful | N221: 2018-12-21
A222: 118 | B222: 2018-08-29 | D222: GRINDWELL | E222: Accu | F222: 525 | H222: 585 | I222: 635.00 | J222: Profit of Rs.60- | K222: =H222-F222 -> 60.00 | L222: =K222/F222 -> 11.43% | M222: Successful | N222: 2019-07-16
A223: 119 | B223: 2018-10-22 | D223: FINPIPE | E223: Accu | F223: 475 | H223: 574 | I223: 570.00 | J223: Target Achieved | K223: 99.00 | L223: 20.84% | M223: Successful | N223: 2018-10-30
A224: 120 | B224: 2018-10-24 | D224: GULFOILLUB | E224: Accu | F224: 707.5 | H224: 872 | I224: 872.00 | J224: Target Achieved | K224: 164.50 | L224: 23.25% | M224: Successful | N224: 2019-01-17
A225: 121 | B225: 2018-10-25 | D225: DBCORP | E225: Accu | F225: 162 | H225: 204 | I225: 209.00 | J225: Profit of Rs.42/- | K225: 42.00 | L225: 25.93% | M225: Successful | N225: 2019-03-15
A226: 122 | B226: 2018-10-26 | D226: RITES | E226: Accu | F226: 240 | H226: 297 | I226: 297.00 | J226: Target Achieved | K226: 57.00 | L226: 23.75% | M226: Successful | N226: 2018-11-13
A227: 123 | B227: 2018-12-05 | D227: BRIGADE | E227: Accu | F227: 202.5 | H227: 255 | I227: 252.00 | J227: Target Achieved | K227: 52.50 | L227: 25.93% | M227: Successful | N227: 2019-03-18 | R227: V
A228: 124 | B228: 2018-12-31 | D228: JKCEMENT | E228: Accu | F228: 710 | H228: 866 | I228: 866.00 | J228: Target Achieved | K228: 156.00 | L228: 21.97% | M228: Successful | N228: 2019-03-29 | R228: V
A229: 125 | B229: 2019-02-26 | D229: MARICO | E229: Accu | F229: 337.25 | H229: 398.5 | I229: 411.00 | J229: Profit of Rs.61.25/- | K229: 61.25 | L229: 18.16% | M229: Successful | N229: 2019-10-22 | R229: V
A230: 126 | B230: 2019-04-04 | D230: ITDCEM | E230: Accu | F230: 130 | H230: 65 | I230: 158.00 | J230: Loss of Rs.65 /- | K230: -65.00 | L230: -50.00% | M230: Unsuccessful | N230: 2019-09-18 | R230: K
A231: 127 | B231: 2017-10-09 | D231: RECLTD | E231: Accu | F231: 141.5 | H231: 183.5 | I231: 210.00 | J231: Profit of Rs.42/- | K231: 42.00 | L231: 29.68% | M231: Successful | N231: 2017-11-03 | R231: K
A232: 128 | B232: 2017-12-05 | D232: ALLCARGO | E232: Accu | F232: 172.00 | H232: 155.25 | I232: 230.00 | J232: Loss of Rs.16.75/- | K232: -16.75 | L232: -9.74% | M232: Unsuccessful | N232: 2019-11-18 | R232: K
A233: 129 | B233: 2018-10-25 | D233: GODREJCP | E233: Accu | F233: 698.5 | H233: 890 | I233: 890.00 | J233: Profit of Rs.191.50/- | K233: 191.50 | L233: 27.42% | M233: Successful | N233: 2021-05-12 | R233: V
A234: 130 | B234: 2017-05-22 | D234: GREAVESCOT | E234: Accu | F234: 127.6 | H234: 138 | I234: 190.00 | J234: Profit of Rs.10.40 | K234: 10.40 | L234: 8.15% | M234: Successful | N234: 2019-11-05 | R234: K
... 46 more rows
